Workbook

Sheet Menu
B4: PLANILHA DE CUSTOS SISTEMA DE BALSAS
B5: Morada Nova de Minas
C9: I. Encargos Sociais e Trabalhistas | F9: 1. Custo com pessoal
F10: 1.1 Custo com pessoal mensal
F11: 1.2. Salários por Cargo
F12: 1.3. Custo Pessoal Mensal
F14: 2. Planilha de custo Manutenção Balsas
F15: 3. Planilha de custo Manutenção Veículos e Máquinas
F16: 4. Custo com Outros Materiais de Manutenção
F17: 5. Planilha de custo com serviços terceirizados
F18: 6. Custos Gerais
F20: 7. Planilha de apropriação de custo
F22: 9. Capacidade Instalada
F23: 10. Estatísticas dos Portos
C24: a. Volume e Faturamento do Serviço
F25: 11. Cálculo da Tarifa dos Serviços de Transporte

Sheet Encargos Folha
B54: Resumo dos Encargos
B55: GRUPO A | D55: 0.38
B56: GRUPO B | D56: 0.183
B57: GRUPO C | D57: 0.1161
B58: GRUPO D | D58: 0.0741
B59: Total | D59: =SUM(D55:D58) -> 0.7532

Sheet BDI
B2: DETALHAMENTO DO BDI - SERVIÇOS
B7: Item | C7: Descrição dos Serviços | D7: % | E7: %
D8: PV | E8: CD
B10: 1 | C10: ADMINISTRAÇÃO CENTRAL | E10: 8
B11: 1.1 | C11: ESCRITÓRIO CENTRAL
B12: 1.2 | C12: VIAGENS
B13: 1.3 | C13: OUTROS
B15: 2 | C15: IMPOSTOS E TAXAS | D15: =SUM(D16:D18) -> 6.65 | E15: =ROUND(SUM(E16:E18),2) -> 8.31
B16: 2.1 | C16: ISS | D16: 3 | E16: 3.75 | I16: =E16+E17+E18 -> 8.31
B17: 2.2 | C17: PIS | D17: 0.65 | E17: 0.81
B18: 2.3 | C18: Cofins | D18: 3 | E18: 3.75
B20: 3 | C20: TAXA DE RISCO | E20: =SUM(E21:E24) -> 1.195
B21: 3.1 | C21: SEGURO E GARANTIA | E21: 0.395
B22: 3.2 | C22: RISCO | E22: 0.4
B23: 3.3 | C23: GARANTIA | E23: 0.4
B25: 4 | C25: DESPESAS FINANCEIRAS | E25: 0.98
B27: 5 | C27: LUCRO | E27: 8
C29: BDI - CALCULADO | E29: =ROUND((((1+(E10+E20)/100)*(1+E25/100)*(1+E27/100)/(1-D15/100)-1)*100),2) -> 27.57
B33: BDI = ((1+((AC+S+R+G)/100))x(1+DF/100)x(1+L/100)/(1-I/100)-1)*100
B35: BDI (CALCULADO): | D35: =ROUND((((1+((E10+E20)/100))*(1+E25/100)*(1+E27/100))/(1-D15/100)-1)*100,2) -> 27.57
B37: Para o preenchimento da proposta deve-se utilizar o valor de ISS da Prefeitura Local.
B39: BDI CALCULADO CONFORME ACÓRDÃO Nº 2369/2011 – TCU

Sheet Custo Pessoal
A1: Voltar ao Menu
A2: 1.1 PLANILHA DE CUSTO PESSOAL
A4: Referência: | B4: JUN. 2018
F5: SALÁRIO (R$) | N5: BENEFÍCIOS | P5: INSUMOS | R5: ='Encargos Folha'!D59 -> 0.7532
A6: ORDEM | B6: MATRÍCULA | C6: NOME | D6: LOTAÇÃO | E6: CARGO/FUNÇÃO | F6: Base | G6: Anuênio | H6: Adicional Periculosidade | I6: Adicional Insalubridade | J6: Adicional Noturno | K6: Horas Extras | L6: Outros Valores | M6: Total | N6: Convênio Saúde | O6: SEGURO | P6: UNIFORME | Q6: Total | R6: Encargos Sociais | S6: TOTAL
A7: 1 | D7: ADMINISTRAÇÃO | E7: ASSISTENTE ADMINISTRATIVO | F7: 954 | M7: =SUM(F7:L7) -> 954 | N7: 91.08 | O7: 16.2 | Q7: =SUM(N7:P7) -> 107.28 | R7: =(M7)*$R$5 -> 718.5528 | S7: =M7+Q7+R7 -> 1779.8328
A8: 2 | D8: ADMINISTRAÇÃO | E8: GERENTE ADMNISTRATIVO | F8: =954*3 -> 2862 | M8: 2862 | N8: 91.08 | O8: 16.2 | Q8: =SUM(N8:P8) -> 107.28 | R8: =(M8)*$R$5 -> 2155.6584 | S8: 5124.9384 | U8: Coluna 38 FGV | V8: 1.101
A9: 3 | D9: EXTREMA | E9: MESTRE.FLUV.DE CONVES | F9: 1431 | H9: 429.3 | K9: =(F9/220)*1.5*2*30 -> 585.4090909 | M9: 2445.709091 | N9: 91.08 | O9: 16.2 | P9: 47.43 | Q9: =SUM(N9:P9) -> 154.71 | R9: 1842.108087 | S9: 4442.527178
A10: 4 | D10: EXTREMA | E10: MAR.FLUV.DE CONVES | F10: 1144.8 | H10: 343.44 | K10: =(F10/220)*1.5*2*30 -> 468.3272727 | M10: 1956.567273 | N10: 91.08 | O10: 16.2 | P10: 47.43 | Q10: =SUM(N10:P10) -> 154.71 | R10: 1473.68647 | S10: 3584.963743
A11: 5 | D11: EXTREMA | E11: MAR.FLUV.DE CONVES | F11: 1144.8 | H11: 343.44 | K11: =(F11/220)*1.5*2*30 -> 468.3272727 | M11: 1956.567273 | N11: 91.08 | O11: 16.2 | P11: 47.43 | R11: 1473.68647 | S11: 3430.253743
A12: 6 | D12: EXTREMA | E12: MAR.FLUV.DE CONVES | F12: 1144.8 | H12: 343.44 | K12: 468.3272727 | M12: 1956.567273 | N12: 91.08 | O12: 16.2 | P12: 47.43 | Q12: =SUM(N12:P12) -> 154.71 | R12: 1473.68647 | S12: 3584.963743
A13: 7 | D13: INDAIÁ DE CIMA | E13: MESTRE.FLUV.DE CONVES | F13: 1431 | H13: 429.3 | K13: 585.4090909 | M13: 2445.709091 | N13: 91.08 | O13: 16.2 | P13: 47.43 | Q13: =SUM(N13:P13) -> 154.71 | R13: 1842.108087 | S13: 4442.527178
A14: 8 | D14: INDAIÁ DE CIMA | E14: MAR.FLUV.DE CONVES | F14: 1144.8 | H14: 343.44 | K14: 468.3272727 | M14: 1956.567273 | N14: 91.08 | O14: 16.2 | P14: 47.43 | Q14: =SUM(N14:P14) -> 154.71 | R14: 1473.68647 | S14: 3584.963743
A15: 9 | D15: INDAIÁ DE CIMA | E15: MAR.FLUV.DE CONVES | F15: 1144.8 | H15: 343.44 | K15: 468.3272727 | M15: 1956.567273 | N15: 91.08 | O15: 16.2 | P15: 47.43 | Q15: =SUM(N15:P15) -> 154.71 | R15: =(M15)*$R$5 -> 1473.68647 | S15: 3584.963743
A16: 10 | D16: INDAIÁ DE CIMA | E16: MAR.FLUV.DE CONVES | F16: 1144.8 | H16: 343.44 | K16: 468.3272727 | M16: =SUM(F16:L16) -> 1956.567273 | N16: 91.08 | O16: 16.2 | P16: 47.43 | Q16: =SUM(N16:P16) -> 154.71 | R16: 1473.68647 | S16: =M16+Q16+R16 -> 3584.963743
A17: 11 | D17: NOVO | E17: MESTRE.FLUV.DE CONVES | F17: 1431 | H17: 429.3 | K17: 585.4090909 | M17: =SUM(F17:L17) -> 2445.709091 | N17: 91.08 | O17: 16.2 | P17: 47.43 | Q17: =SUM(N17:P17) -> 154.71 | R17: =(M17)*$R$5 -> 1842.108087 | S17: =M17+Q17+R17 -> 4442.527178
A18: 12 | D18: NOVO | E18: MESTRE.FLUV.DE CONVES | F18: 1431 | H18: 429.3 | K18: 585.4090909 | M18: 2445.709091 | N18: 91.08 | O18: 16.2 | P18: 47.43 | Q18: 154.71 | R18: 1842.108087 | S18: 4442.527178
A19: 13 | D19: NOVO | E19: MAR.FLUV.DE CONVES | F19: 1144.8 | H19: 343.44 | K19: 468.3272727 | M19: 1956.567273 | N19: 91.08 | O19: 16.2 | P19: 47.43 | Q19: 154.71 | R19: 1473.68647 | S19: 3584.963743
A20: 14 | D20: NOVO | E20: MAR.FLUV.DE CONVES | F20: 1144.8 | H20: 343.44 | K20: 468.3272727 | M20: 1956.567273 | N20: 91.08 | O20: 16.2 | P20: 47.43 | Q20: 154.71 | R20: 1473.68647 | S20: 3584.963743
A21: 15 | D21: NOVO | E21: MAR.FLUV.DE CONVES | F21: 1144.8 | H21: 343.44 | K21: 468.3272727 | M21: 1956.567273 | N21: 91.08 | O21: 16.2 | P21: 47.43 | Q21: 154.71 | R21: 1473.68647 | S21: 3584.963743
A22: 16 | D22: NOVO | E22: MAR.FLUV.DE CONVES | F22: 1144.8 | H22: 343.44 | K22: 468.3272727 | M22: 1956.567273 | N22: 91.08 | O22: 16.2 | P22: 47.43 | Q22: 154.71 | R22: 1473.68647 | S22: 3584.963743
A23: 17 | D23: NOVO | E23: MAR.FLUV.DE CONVES | F23: 1144.8 | H23: 343.44 | K23: 468.3272727 | M23: 1956.567273 | N23: 91.08 | O23: 16.2 | P23: 47.43 | Q23: 154.71 | R23: 1473.68647 | S23: 3584.963743
A24: 18 | D24: NOVO | E24: MAR.FLUV.DE CONVES | F24: 1144.8 | H24: 343.44 | K24: 468.3272727 | M24: 1956.567273 | N24: 91.08 | O24: 16.2 | P24: 47.43 | Q24: 154.71 | R24: 1473.68647 | S24: 3584.963743
A25: 19 | D25: INDAIÁ DE BAIXO | E25: MESTRE.FLUV.DE CONVES | F25: 1431 | H25: 429.3 | K25: 585.4090909 | M25: 2445.709091 | N25: 91.08 | O25: 16.2 | P25: 47.43 | Q25: 154.71 | R25: 1842.108087 | S25: 4442.527178
A26: 20 | D26: INDAIÁ DE BAIXO | E26: MAR.FLUV.DE CONVES | F26: 1144.8 | H26: 343.44 | K26: 468.3272727 | M26: =SUM(F26:L26) -> 1956.567273 | N26: 91.08 | O26: 16.2 | P26: 47.43 | Q26: =SUM(N26:P26) -> 154.71 | R26: 1473.68647 | S26: =M26+Q26+R26 -> 3584.963743
A27: 21 | D27: INDAIÁ DE BAIXO | E27: MAR.FLUV.DE CONVES | F27: 1144.8 | H27: 343.44 | K27: 468.3272727 | M27: 1956.567273 | N27: 91.08 | O27: 16.2 | P27: 47.43 | Q27: =SUM(N27:P27) -> 154.71 | R27: 1473.68647 | S27: 3584.963743
A28: 22 | D28: INDAIÁ DE BAIXO | E28: MAR.FLUV.DE CONVES | F28: 1144.8 | H28: 343.44 | K28: 468.3272727 | M28: 1956.567273 | N28: 91.08 | O28: 16.2 | P28: 47.43 | Q28: =SUM(N28:P28) -> 154.71 | R28: 1473.68647 | S28: 3584.963743
A29: 23 | D29: SÃO VINCENTE | E29: MESTRE.FLUV.DE CONVES | F29: 1431 | H29: 429.3 | K29: 585.4090909 | M29: 2445.709091 | N29: 91.08 | O29: 16.2 | P29: 47.43 | Q29: 154.71 | R29: 1842.108087 | S29: 4442.527178
A30: 24 | D30: SÃO VINCENTE | E30: MAR.FLUV.DE CONVES | F30: 1144.8 | H30: 343.44 | K30: 468.3272727 | M30: 1956.567273 | N30: 91.08 | O30: 16.2 | P30: 47.43 | Q30: =SUM(N30:P30) -> 154.71 | R30: 1473.68647 | S30: =M30+Q30+R30 -> 3584.963743
A31: 25 | D31: SÃO VINCENTE | E31: MAR.FLUV.DE CONVES | F31: 1144.8 | H31: 343.44 | K31: 468.3272727 | M31: =SUM(F31:L31) -> 1956.567273 | N31: 91.08 | O31: 16.2 | P31: 47.43 | Q31: 154.71 | R31: 1473.68647 | S31: 3584.963743
A32: 26 | D32: SÃO VINCENTE | E32: MAR.FLUV.DE CONVES | F32: 1144.8 | H32: 343.44 | K32: 468.3272727 | M32: 1956.567273 | N32: 91.08 | O32: 16.2 | P32: 47.43 | Q32: 154.71 | R32: 1473.68647 | S32: 3584.963743
A33: 27 | D33: MELANCIAS | E33: MESTRE.FLUV.DE CONVES | F33: 1431 | H33: 429.3 | K33: 585.4090909 | M33: 2445.709091 | N33: 91.08 | O33: 16.2 | P33: 47.43 | Q33: 154.71 | R33: 1842.108087 | S33: 4442.527178
A34: 28 | D34: MELANCIAS | E34: MAR.FLUV.DE CONVES | F34: 1144.8 | H34: 343.44 | K34: 468.3272727 | M34: 1956.567273 | N34: 91.08 | O34: 16.2 | P34: 47.43 | Q34: 154.71 | R34: 1473.68647 | S34: 3584.963743
A35: 29 | D35: MELANCIAS | E35: MAR.FLUV.DE CONVES | F35: 1144.8 | H35: 343.44 | K35: 468.3272727 | M35: 1956.567273 | N35: 91.08 | O35: 16.2 | P35: 47.43 | Q35: 154.71 | R35: 1473.68647 | S35: 3584.963743
A36: 30 | D36: MELANCIAS | E36: MAR.FLUV.DE CONVES | F36: 1144.8 | H36: 343.44 | K36: 468.3272727 | M36: 1956.567273 | N36: 91.08 | O36: 16.2 | P36: 47.43 | Q36: 154.71 | R36: 1473.68647 | S36: 3584.963743
A37: 31 | D37: MANUTENÇÃO | E37: MOTORISTA | F37: =954*2.5 -> 2385 | M37: =SUM(F37:L37) -> 2385 | N37: 91.08 | O37: 16.2 | P37: 47.43 | Q37: =SUM(N37:P37) -> 154.71 | R37: =(M37)*$R$5 -> 1796.382 | S37: =M37+Q37+R37 -> 4336.092
A38: 32 | D38: MANUTENÇÃO | E38: MECANICO | F38: =954*3.5 -> 3339 | M38: =SUM(F38:L38) -> 3339 | N38: 91.08 | O38: 16.2 | P38: 47.43 | Q38: =SUM(N38:P38) -> 154.71 | R38: =(M38)*$R$5 -> 2514.9348 | S38: =M38+Q38+R38 -> 6008.6448
A39: 33 | D39: MANUTENÇÃO | E39: SOLDADOR | F39: =954*2.5 -> 2385 | M39: =SUM(F39:L39) -> 2385 | N39: 91.08 | O39: 16.2 | P39: 47.43 | Q39: =SUM(N39:P39) -> 154.71 | R39: =(M39)*$R$5 -> 1796.382 | S39: =M39+Q39+R39 -> 4336.092
A40: TOTAL GERAL | F40: =SUM(F7:F39) -> 45982.8 | G40: 0 | H40: 10217.34 | I40: 0 | J40: 0 | K40: 13932.73636 | L40: 0 | M40: 70132.87636 | N40: 3005.64 | O40: 534.6 | P40: 1470.33 | Q40: 4855.86 | R40: 52824.08248 | S40: 127812.8188

Sheet saláriosxencargos
A1: 1.2. CUSTO PESSOAL POR SETOR
A2: =Menu!B5 -> Morada Nova de Minas
A3: LOTAÇÃO | B3: CARGO/FUNÇÃO | C3: Qtde | D3: Salário Base | E3: Anuênio | F3: Periculosidade | G3: Insalubridade | H3: Adicional Noturno | I3: Horas Extras | J3: Outros Valores | K3: Total Mensal | L3: Convênio Saúde | M3: SEGURO | N3: UNIFORME | O3: Total
A4: ADMINISTRAÇÃO | B4: ASSISTENTE ADMINISTRATIVO | C4: =COUNTIFS('Custo Pessoal'!$D$7:$D$39,A4,'Custo Pessoal'!$E$7:$E$39,B4) -> 1 | D4: =SUM(IF('Custo Pessoal'!$D$7:$D$39=$A4,IF('Custo Pessoal'!$E$7:$E$39=$B4,'Custo Pessoal'!$F$7:$F$39))) -> 954 | E4: =SUM(IF('Custo Pessoal'!$D$7:$D$39=$A4,IF('Custo Pessoal'!$E$7:$E$39=$B4,'Custo Pessoal'!G$7:G$39))) -> 0 | F4: =SUM(IF('Custo Pessoal'!$D$7:$D$39=$A4,IF('Custo Pessoal'!$E$7:$E$39=$B4,'Custo Pessoal'!H$7:H$39))) -> 0 | G4: =SUM(IF('Custo Pessoal'!$D$7:$D$39=$A4,IF('Custo Pessoal'!$E$7:$E$39=$B4,'Custo Pessoal'!I$7:I$39))) -> 0 | H4: =SUM(IF('Custo Pessoal'!$D$7:$D$39=$A4,IF('Custo Pessoal'!$E$7:$E$39=$B4,'Custo Pessoal'!J$7:J$39))) -> 0 | I4: =SUM(IF('Custo Pessoal'!$D$7:$D$39=$A4,IF('Custo Pessoal'!$E$7:$E$39=$B4,'Custo Pessoal'!K$7:K$39))) -> 0 | J4: =SUM(IF('Custo Pessoal'!$D$7:$D$39=$A4,IF('Custo Pessoal'!$E$7:$E$39=$B4,'Custo Pessoal'!L$7:L$39))) -> 0 | K4: =SUM(D4:J4) -> 954 | L4: =SUM(IF('Custo Pessoal'!$D$7:$D$39=$A4,IF('Custo Pessoal'!$E$7:$E$39=$B4,'Custo Pessoal'!N$7:N$39))) -> 91.08 | M4: =SUM(IF('Custo Pessoal'!$D$7:$D$39=$A4,IF('Custo Pessoal'!$E$7:$E$39=$B4,'Custo Pessoal'!O$7:O$39))) -> 16.2 | N4: =SUM(IF('Custo Pessoal'!$D$7:$D$39=$A4,IF('Custo Pessoal'!$E$7:$E$39=$B4,'Custo Pessoal'!P$7:P$39))) -> 0 | O4: =SUM(L4:N4) -> 107.28
A5: =A4 -> ADMINISTRAÇÃO | B5: SERVICOS GERAIS-FEMININO | C5: =COUNTIFS('Custo Pessoal'!$D$7:$D$39,A5,'Custo Pessoal'!$E$7:$E$39,B5) -> 0 | D5: =SUM(IF('Custo Pessoal'!$D$7:$D$39=$A5,IF('Custo Pessoal'!$E$7:$E$39=$B5,'Custo Pessoal'!$F$7:$F$39))) -> 0 | E5: =SUM(IF('Custo Pessoal'!$D$7:$D$39=$A5,IF('Custo Pessoal'!$E$7:$E$39=$B5,'Custo Pessoal'!G$7:G$39))) -> 0 | F5: =SUM(IF('Custo Pessoal'!$D$7:$D$39=$A5,IF('Custo Pessoal'!$E$7:$E$39=$B5,'Custo Pessoal'!H$7:H$39))) -> 0 | G5: =SUM(IF('Custo Pessoal'!$D$7:$D$39=$A5,IF('Custo Pessoal'!$E$7:$E$39=$B5,'Custo Pessoal'!I$7:I$39))) -> 0 | H5: =SUM(IF('Custo Pessoal'!$D$7:$D$39=$A5,IF('Custo Pessoal'!$E$7:$E$39=$B5,'Custo Pessoal'!J$7:J$39))) -> 0 | I5: =SUM(IF('Custo Pessoal'!$D$7:$D$39=$A5,IF('Custo Pessoal'!$E$7:$E$39=$B5,'Custo Pessoal'!K$7:K$39))) -> 0 | J5: =SUM(IF('Custo Pessoal'!$D$7:$D$39=$A5,IF('Custo Pessoal'!$E$7:$E$39=$B5,'Custo Pessoal'!L$7:L$39))) -> 0 | K5: =SUM(D5:J5) -> 0 | L5: =SUM(IF('Custo Pessoal'!$D$7:$D$39=$A5,IF('Custo Pessoal'!$E$7:$E$39=$B5,'Custo Pessoal'!N$7:N$39))) -> 0 | M5: =SUM(IF('Custo Pessoal'!$D$7:$D$39=$A5,IF('Custo Pessoal'!$E$7:$E$39=$B5,'Custo Pessoal'!O$7:O$39))) -> 0 | N5: =SUM(IF('Custo Pessoal'!$D$7:$D$39=$A5,IF('Custo Pessoal'!$E$7:$E$39=$B5,'Custo Pessoal'!P$7:P$39))) -> 0 | O5: =SUM(L5:N5) -> 0
A6: =A5 -> ADMINISTRAÇÃO | B6: GERENTE ADMNISTRATIVO | C6: =COUNTIFS('Custo Pessoal'!$D$7:$D$39,A6,'Custo Pessoal'!$E$7:$E$39,B6) -> 1 | D6: =SUM(IF('Custo Pessoal'!$D$7:$D$39=$A6,IF('Custo Pessoal'!$E$7:$E$39=$B6,'Custo Pessoal'!$F$7:$F$39))) -> 2862 | E6: =SUM(IF('Custo Pessoal'!$D$7:$D$39=$A6,IF('Custo Pessoal'!$E$7:$E$39=$B6,'Custo Pessoal'!G$7:G$39))) -> 0 | F6: =SUM(IF('Custo Pessoal'!$D$7:$D$39=$A6,IF('Custo Pessoal'!$E$7:$E$39=$B6,'Custo Pessoal'!H$7:H$39))) -> 0 | G6: =SUM(IF('Custo Pessoal'!$D$7:$D$39=$A6,IF('Custo Pessoal'!$E$7:$E$39=$B6,'Custo Pessoal'!I$7:I$39))) -> 0 | H6: =SUM(IF('Custo Pessoal'!$D$7:$D$39=$A6,IF('Custo Pessoal'!$E$7:$E$39=$B6,'Custo Pessoal'!J$7:J$39))) -> 0 | I6: =SUM(IF('Custo Pessoal'!$D$7:$D$39=$A6,IF('Custo Pessoal'!$E$7:$E$39=$B6,'Custo Pessoal'!K$7:K$39))) -> 0 | J6: =SUM(IF('Custo Pessoal'!$D$7:$D$39=$A6,IF('Custo Pessoal'!$E$7:$E$39=$B6,'Custo Pessoal'!L$7:L$39))) -> 0 | K6: 2862 | L6: =SUM(IF('Custo Pessoal'!$D$7:$D$39=$A6,IF('Custo Pessoal'!$E$7:$E$39=$B6,'Custo Pessoal'!N$7:N$39))) -> 91.08 | M6: =SUM(IF('Custo Pessoal'!$D$7:$D$39=$A6,IF('Custo Pessoal'!$E$7:$E$39=$B6,'Custo Pessoal'!O$7:O$39))) -> 16.2 | N6: =SUM(IF('Custo Pessoal'!$D$7:$D$39=$A6,IF('Custo Pessoal'!$E$7:$E$39=$B6,'Custo Pessoal'!P$7:P$39))) -> 0 | O6: =SUM(L6:N6) -> 107.28
A7: ADMINISTRAÇÃO Total | C7: =SUM(C4:C6) -> 2 | D7: =SUM(D4:D6) -> 3816 | E7: =SUM(E4:E6) -> 0 | F7: 0 | G7: 0 | H7: 0 | I7: 0 | J7: 0 | K7: =SUM(K4:K6) -> 3816 | L7: =SUM(L4:L6) -> 182.16 | M7: =SUM(M4:M6) -> 32.4 | N7: =SUM(N4:N6) -> 0 | O7: =SUM(O4:O6) -> 214.56
A8: EXTREMA | B8: MESTRE.FLUV.DE CONVES | C8: =COUNTIFS('Custo Pessoal'!$D$7:$D$39,A8,'Custo Pessoal'!$E$7:$E$39,B8) -> 1 | D8: =SUM(IF('Custo Pessoal'!$D$7:$D$39=$A8,IF('Custo Pessoal'!$E$7:$E$39=$B8,'Custo Pessoal'!$F$7:$F$39))) -> 1431 | F8: =SUM(IF('Custo Pessoal'!$D$7:$D$39=$A8,IF('Custo Pessoal'!$E$7:$E$39=$B8,'Custo Pessoal'!H$7:H$39))) -> 429.3 | I8: =SUM(IF('Custo Pessoal'!$D$7:$D$39=$A8,IF('Custo Pessoal'!$E$7:$E$39=$B8,'Custo Pessoal'!K$7:K$39))) -> 585.4090909 | K8: 2445.709091
A9: EXTREMA | B9: MAR.FLUV.DE CONVES | C9: =COUNTIFS('Custo Pessoal'!$D$7:$D$39,A9,'Custo Pessoal'!$E$7:$E$39,B9) -> 3 | D9: =SUM(IF('Custo Pessoal'!$D$7:$D$39=$A9,IF('Custo Pessoal'!$E$7:$E$39=$B9,'Custo Pessoal'!$F$7:$F$39))) -> 3434.4 | E9: =SUM(IF('Custo Pessoal'!$D$7:$D$39=$A9,IF('Custo Pessoal'!$E$7:$E$39=$B9,'Custo Pessoal'!G$7:G$39))) -> 0 | F9: =SUM(IF('Custo Pessoal'!$D$7:$D$39=$A9,IF('Custo Pessoal'!$E$7:$E$39=$B9,'Custo Pessoal'!H$7:H$39))) -> 1030.32 | G9: =SUM(IF('Custo Pessoal'!$D$7:$D$39=$A9,IF('Custo Pessoal'!$E$7:$E$39=$B9,'Custo Pessoal'!I$7:I$39))) -> 0 | H9: =SUM(IF('Custo Pessoal'!$D$7:$D$39=$A9,IF('Custo Pessoal'!$E$7:$E$39=$B9,'Custo Pessoal'!J$7:J$39))) -> 0 | I9: =SUM(IF('Custo Pessoal'!$D$7:$D$39=$A9,IF('Custo Pessoal'!$E$7:$E$39=$B9,'Custo Pessoal'!K$7:K$39))) -> 1404.981818 | J9: =SUM(IF('Custo Pessoal'!$D$7:$D$39=$A9,IF('Custo Pessoal'!$E$7:$E$39=$B9,'Custo Pessoal'!L$7:L$39))) -> 0 | K9: 5869.701818 | L9: =SUM(IF('Custo Pessoal'!$D$7:$D$39=$A9,IF('Custo Pessoal'!$E$7:$E$39=$B9,'Custo Pessoal'!N$7:N$39))) -> 273.24 | M9: =SUM(IF('Custo Pessoal'!$D$7:$D$39=$A9,IF('Custo Pessoal'!$E$7:$E$39=$B9,'Custo Pessoal'!O$7:O$39))) -> 48.6 | N9: =SUM(IF('Custo Pessoal'!$D$7:$D$39=$A9,IF('Custo Pessoal'!$E$7:$E$39=$B9,'Custo Pessoal'!P$7:P$39))) -> 142.29 | O9: =SUM(L9:N9) -> 464.13
A10: EXTREMA Total | C10: =SUM(C8:C9) -> 4 | D10: =D9 -> 3434.4 | E10: =E9 -> 0 | F10: 1030.32 | G10: 0 | H10: 0 | I10: 1404.981818 | J10: 0 | K10: =SUM(K8:K9) -> 8315.410909 | L10: =L9 -> 273.24 | M10: =M9 -> 48.6 | N10: =N9 -> 142.29 | O10: =O9 -> 464.13
A11: INDAIÁ DE BAIXO | B11: MESTRE.FLUV.DE CONVES | C11: =COUNTIFS('Custo Pessoal'!$D$7:$D$39,A11,'Custo Pessoal'!$E$7:$E$39,B11) -> 1 | D11: =SUM(IF('Custo Pessoal'!$D$7:$D$39=$A11,IF('Custo Pessoal'!$E$7:$E$39=$B11,'Custo Pessoal'!$F$7:$F$39))) -> 1431 | F11: =SUM(IF('Custo Pessoal'!$D$7:$D$39=$A11,IF('Custo Pessoal'!$E$7:$E$39=$B11,'Custo Pessoal'!H$7:H$39))) -> 429.3 | I11: =SUM(IF('Custo Pessoal'!$D$7:$D$39=$A11,IF('Custo Pessoal'!$E$7:$E$39=$B11,'Custo Pessoal'!K$7:K$39))) -> 585.4090909 | K11: 2445.709091
A12: INDAIÁ DE BAIXO | B12: MAR.FLUV.DE CONVES | C12: =COUNTIFS('Custo Pessoal'!$D$7:$D$39,A12,'Custo Pessoal'!$E$7:$E$39,B12) -> 3 | D12: =SUM(IF('Custo Pessoal'!$D$7:$D$39=$A12,IF('Custo Pessoal'!$E$7:$E$39=$B12,'Custo Pessoal'!$F$7:$F$39))) -> 3434.4 | E12: =SUM(IF('Custo Pessoal'!$D$7:$D$39=$A12,IF('Custo Pessoal'!$E$7:$E$39=$B12,'Custo Pessoal'!G$7:G$39))) -> 0 | F12: =SUM(IF('Custo Pessoal'!$D$7:$D$39=$A12,IF('Custo Pessoal'!$E$7:$E$39=$B12,'Custo Pessoal'!H$7:H$39))) -> 1030.32 | G12: =SUM(IF('Custo Pessoal'!$D$7:$D$39=$A12,IF('Custo Pessoal'!$E$7:$E$39=$B12,'Custo Pessoal'!I$7:I$39))) -> 0 | H12: =SUM(IF('Custo Pessoal'!$D$7:$D$39=$A12,IF('Custo Pessoal'!$E$7:$E$39=$B12,'Custo Pessoal'!J$7:J$39))) -> 0 | I12: =SUM(IF('Custo Pessoal'!$D$7:$D$39=$A12,IF('Custo Pessoal'!$E$7:$E$39=$B12,'Custo Pessoal'!K$7:K$39))) -> 1404.981818 | J12: =SUM(IF('Custo Pessoal'!$D$7:$D$39=$A12,IF('Custo Pessoal'!$E$7:$E$39=$B12,'Custo Pessoal'!L$7:L$39))) -> 0 | K12: 5869.701818 | L12: =SUM(IF('Custo Pessoal'!$D$7:$D$39=$A12,IF('Custo Pessoal'!$E$7:$E$39=$B12,'Custo Pessoal'!N$7:N$39))) -> 273.24 | M12: =SUM(IF('Custo Pessoal'!$D$7:$D$39=$A12,IF('Custo Pessoal'!$E$7:$E$39=$B12,'Custo Pessoal'!O$7:O$39))) -> 48.6 | N12: =SUM(IF('Custo Pessoal'!$D$7:$D$39=$A12,IF('Custo Pessoal'!$E$7:$E$39=$B12,'Custo Pessoal'!P$7:P$39))) -> 142.29 | O12: =SUM(L12:N12) -> 464.13
A13: INDAIÁ DE BAIXO Total | C13: =SUM(C11:C12) -> 4 | D13: =D12 -> 3434.4 | E13: 0 | F13: 1030.32 | G13: 0 | H13: 0 | I13: 1404.981818 | J13: 0 | K13: =SUM(K11:K12) -> 8315.410909 | L13: 273.24 | M13: 48.6 | N13: 142.29 | O13: 464.13
A14: INDAIÁ DE CIMA | B14: MESTRE.FLUV.DE CONVES | C14: =COUNTIFS('Custo Pessoal'!$D$7:$D$39,A14,'Custo Pessoal'!$E$7:$E$39,B14) -> 1 | D14: =SUM(IF('Custo Pessoal'!$D$7:$D$39=$A14,IF('Custo Pessoal'!$E$7:$E$39=$B14,'Custo Pessoal'!$F$7:$F$39))) -> 1431 | F14: =SUM(IF('Custo Pessoal'!$D$7:$D$39=$A14,IF('Custo Pessoal'!$E$7:$E$39=$B14,'Custo Pessoal'!H$7:H$39))) -> 429.3 | I14: =SUM(IF('Custo Pessoal'!$D$7:$D$39=$A14,IF('Custo Pessoal'!$E$7:$E$39=$B14,'Custo Pessoal'!K$7:K$39))) -> 585.4090909 | K14: 2445.709091
A15: INDAIÁ DE CIMA | B15: MAR.FLUV.DE CONVES | C15: =COUNTIFS('Custo Pessoal'!$D$7:$D$39,A15,'Custo Pessoal'!$E$7:$E$39,B15) -> 3 | D15: =SUM(IF('Custo Pessoal'!$D$7:$D$39=$A15,IF('Custo Pessoal'!$E$7:$E$39=$B15,'Custo Pessoal'!$F$7:$F$39))) -> 3434.4 | E15: =SUM(IF('Custo Pessoal'!$D$7:$D$39=$A15,IF('Custo Pessoal'!$E$7:$E$39=$B15,'Custo Pessoal'!G$7:G$39))) -> 0 | F15: =SUM(IF('Custo Pessoal'!$D$7:$D$39=$A15,IF('Custo Pessoal'!$E$7:$E$39=$B15,'Custo Pessoal'!H$7:H$39))) -> 1030.32 | G15: =SUM(IF('Custo Pessoal'!$D$7:$D$39=$A15,IF('Custo Pessoal'!$E$7:$E$39=$B15,'Custo Pessoal'!I$7:I$39))) -> 0 | H15: =SUM(IF('Custo Pessoal'!$D$7:$D$39=$A15,IF('Custo Pessoal'!$E$7:$E$39=$B15,'Custo Pessoal'!J$7:J$39))) -> 0 | I15: =SUM(IF('Custo Pessoal'!$D$7:$D$39=$A15,IF('Custo Pessoal'!$E$7:$E$39=$B15,'Custo Pessoal'!K$7:K$39))) -> 1404.981818 | J15: =SUM(IF('Custo Pessoal'!$D$7:$D$39=$A15,IF('Custo Pessoal'!$E$7:$E$39=$B15,'Custo Pessoal'!L$7:L$39))) -> 0 | K15: 5869.701818 | L15: =SUM(IF('Custo Pessoal'!$D$7:$D$39=$A15,IF('Custo Pessoal'!$E$7:$E$39=$B15,'Custo Pessoal'!N$7:N$39))) -> 273.24 | M15: =SUM(IF('Custo Pessoal'!$D$7:$D$39=$A15,IF('Custo Pessoal'!$E$7:$E$39=$B15,'Custo Pessoal'!O$7:O$39))) -> 48.6 | N15: =SUM(IF('Custo Pessoal'!$D$7:$D$39=$A15,IF('Custo Pessoal'!$E$7:$E$39=$B15,'Custo Pessoal'!P$7:P$39))) -> 142.29 | O15: =SUM(L15:N15) -> 464.13
A16: INDAIÁ DE CIMA Total | C16: =SUM(C14:C15) -> 4 | D16: =D15 -> 3434.4 | E16: 0 | F16: 1030.32 | G16: 0 | H16: 0 | I16: 1404.981818 | J16: 0 | K16: =SUM(K14:K15) -> 8315.410909 | L16: 273.24 | M16: 48.6 | N16: 142.29 | O16: 464.13
K17: 0
A18: MANUTENÇÃO | B18: AUXILIAR MECANICO | C18: =COUNTIFS('Custo Pessoal'!$D$7:$D$39,A18,'Custo Pessoal'!$E$7:$E$39,B18) -> 0 | D18: =SUM(IF('Custo Pessoal'!$D$7:$D$39=$A18,IF('Custo Pessoal'!$E$7:$E$39=$B18,'Custo Pessoal'!$F$7:$F$39))) -> 0 | E18: =SUM(IF('Custo Pessoal'!$D$7:$D$39=$A18,IF('Custo Pessoal'!$E$7:$E$39=$B18,'Custo Pessoal'!G$7:G$39))) -> 0 | F18: =SUM(IF('Custo Pessoal'!$D$7:$D$39=$A18,IF('Custo Pessoal'!$E$7:$E$39=$B18,'Custo Pessoal'!H$7:H$39))) -> 0 | G18: =SUM(IF('Custo Pessoal'!$D$7:$D$39=$A18,IF('Custo Pessoal'!$E$7:$E$39=$B18,'Custo Pessoal'!I$7:I$39))) -> 0 | H18: =SUM(IF('Custo Pessoal'!$D$7:$D$39=$A18,IF('Custo Pessoal'!$E$7:$E$39=$B18,'Custo Pessoal'!J$7:J$39))) -> 0 | I18: =SUM(IF('Custo Pessoal'!$D$7:$D$39=$A18,IF('Custo Pessoal'!$E$7:$E$39=$B18,'Custo Pessoal'!K$7:K$39))) -> 0 | J18: =SUM(IF('Custo Pessoal'!$D$7:$D$39=$A18,IF('Custo Pessoal'!$E$7:$E$39=$B18,'Custo Pessoal'!L$7:L$39))) -> 0 | K18: 0 | L18: =SUM(IF('Custo Pessoal'!$D$7:$D$39=$A18,IF('Custo Pessoal'!$E$7:$E$39=$B18,'Custo Pessoal'!N$7:N$39))) -> 0 | M18: =SUM(IF('Custo Pessoal'!$D$7:$D$39=$A18,IF('Custo Pessoal'!$E$7:$E$39=$B18,'Custo Pessoal'!O$7:O$39))) -> 0 | N18: =SUM(IF('Custo Pessoal'!$D$7:$D$39=$A18,IF('Custo Pessoal'!$E$7:$E$39=$B18,'Custo Pessoal'!P$7:P$39))) -> 0 | O18: =SUM(L18:N18) -> 0
A19: =A18 -> MANUTENÇÃO | B19: MECANICO | C19: =COUNTIFS('Custo Pessoal'!$D$7:$D$39,A19,'Custo Pessoal'!$E$7:$E$39,B19) -> 1 | D19: =SUM(IF('Custo Pessoal'!$D$7:$D$39=$A19,IF('Custo Pessoal'!$E$7:$E$39=$B19,'Custo Pessoal'!$F$7:$F$39))) -> 3339 | E19: =SUM(IF('Custo Pessoal'!$D$7:$D$39=$A19,IF('Custo Pessoal'!$E$7:$E$39=$B19,'Custo Pessoal'!G$7:G$39))) -> 0 | F19: =SUM(IF('Custo Pessoal'!$D$7:$D$39=$A19,IF('Custo Pessoal'!$E$7:$E$39=$B19,'Custo Pessoal'!H$7:H$39))) -> 0 | G19: =SUM(IF('Custo Pessoal'!$D$7:$D$39=$A19,IF('Custo Pessoal'!$E$7:$E$39=$B19,'Custo Pessoal'!I$7:I$39))) -> 0 | H19: =SUM(IF('Custo Pessoal'!$D$7:$D$39=$A19,IF('Custo Pessoal'!$E$7:$E$39=$B19,'Custo Pessoal'!J$7:J$39))) -> 0 | I19: =SUM(IF('Custo Pessoal'!$D$7:$D$39=$A19,IF('Custo Pessoal'!$E$7:$E$39=$B19,'Custo Pessoal'!K$7:K$39))) -> 0 | J19: =SUM(IF('Custo Pessoal'!$D$7:$D$39=$A19,IF('Custo Pessoal'!$E$7:$E$39=$B19,'Custo Pessoal'!L$7:L$39))) -> 0 | K19: 3339 | L19: =SUM(IF('Custo Pessoal'!$D$7:$D$39=$A19,IF('Custo Pessoal'!$E$7:$E$39=$B19,'Custo Pessoal'!N$7:N$39))) -> 91.08 | M19: =SUM(IF('Custo Pessoal'!$D$7:$D$39=$A19,IF('Custo Pessoal'!$E$7:$E$39=$B19,'Custo Pessoal'!O$7:O$39))) -> 16.2 | N19: =SUM(IF('Custo Pessoal'!$D$7:$D$39=$A19,IF('Custo Pessoal'!$E$7:$E$39=$B19,'Custo Pessoal'!P$7:P$39))) -> 47.43 | O19: 154.71
A20: MANUTENÇÃO | B20: MOTORISTA | C20: =COUNTIFS('Custo Pessoal'!$D$7:$D$39,A20,'Custo Pessoal'!$E$7:$E$39,B20) -> 1 | D20: =SUM(IF('Custo Pessoal'!$D$7:$D$39=$A20,IF('Custo Pessoal'!$E$7:$E$39=$B20,'Custo Pessoal'!$F$7:$F$39))) -> 2385 | E20: =SUM(IF('Custo Pessoal'!$D$7:$D$39=$A20,IF('Custo Pessoal'!$E$7:$E$39=$B20,'Custo Pessoal'!G$7:G$39))) -> 0 | F20: =SUM(IF('Custo Pessoal'!$D$7:$D$39=$A20,IF('Custo Pessoal'!$E$7:$E$39=$B20,'Custo Pessoal'!H$7:H$39))) -> 0 | G20: =SUM(IF('Custo Pessoal'!$D$7:$D$39=$A20,IF('Custo Pessoal'!$E$7:$E$39=$B20,'Custo Pessoal'!I$7:I$39))) -> 0 | H20: =SUM(IF('Custo Pessoal'!$D$7:$D$39=$A20,IF('Custo Pessoal'!$E$7:$E$39=$B20,'Custo Pessoal'!J$7:J$39))) -> 0 | I20: =SUM(IF('Custo Pessoal'!$D$7:$D$39=$A20,IF('Custo Pessoal'!$E$7:$E$39=$B20,'Custo Pessoal'!K$7:K$39))) -> 0 | J20: =SUM(IF('Custo Pessoal'!$D$7:$D$39=$A20,IF('Custo Pessoal'!$E$7:$E$39=$B20,'Custo Pessoal'!L$7:L$39))) -> 0 | K20: 2385 | L20: =SUM(IF('Custo Pessoal'!$D$7:$D$39=$A20,IF('Custo Pessoal'!$E$7:$E$39=$B20,'Custo Pessoal'!N$7:N$39))) -> 91.08 | M20: =SUM(IF('Custo Pessoal'!$D$7:$D$39=$A20,IF('Custo Pessoal'!$E$7:$E$39=$B20,'Custo Pessoal'!O$7:O$39))) -> 16.2 | N20: =SUM(IF('Custo Pessoal'!$D$7:$D$39=$A20,IF('Custo Pessoal'!$E$7:$E$39=$B20,'Custo Pessoal'!P$7:P$39))) -> 47.43 | O20: 154.71
A21: MANUTENÇÃO | B21: OFICIAL DE SERVIÇOS | C21: =COUNTIFS('Custo Pessoal'!$D$7:$D$39,A21,'Custo Pessoal'!$E$7:$E$39,B21) -> 0 | D21: =SUM(IF('Custo Pessoal'!$D$7:$D$39=$A21,IF('Custo Pessoal'!$E$7:$E$39=$B21,'Custo Pessoal'!$F$7:$F$39))) -> 0 | E21: =SUM(IF('Custo Pessoal'!$D$7:$D$39=$A21,IF('Custo Pessoal'!$E$7:$E$39=$B21,'Custo Pessoal'!G$7:G$39))) -> 0 | F21: =SUM(IF('Custo Pessoal'!$D$7:$D$39=$A21,IF('Custo Pessoal'!$E$7:$E$39=$B21,'Custo Pessoal'!H$7:H$39))) -> 0 | G21: =SUM(IF('Custo Pessoal'!$D$7:$D$39=$A21,IF('Custo Pessoal'!$E$7:$E$39=$B21,'Custo Pessoal'!I$7:I$39))) -> 0 | H21: =SUM(IF('Custo Pessoal'!$D$7:$D$39=$A21,IF('Custo Pessoal'!$E$7:$E$39=$B21,'Custo Pessoal'!J$7:J$39))) -> 0 | I21: =SUM(IF('Custo Pessoal'!$D$7:$D$39=$A21,IF('Custo Pessoal'!$E$7:$E$39=$B21,'Custo Pessoal'!K$7:K$39))) -> 0 | J21: =SUM(IF('Custo Pessoal'!$D$7:$D$39=$A21,IF('Custo Pessoal'!$E$7:$E$39=$B21,'Custo Pessoal'!L$7:L$39))) -> 0 | K21: 0 | L21: =SUM(IF('Custo Pessoal'!$D$7:$D$39=$A21,IF('Custo Pessoal'!$E$7:$E$39=$B21,'Custo Pessoal'!N$7:N$39))) -> 0 | M21: =SUM(IF('Custo Pessoal'!$D$7:$D$39=$A21,IF('Custo Pessoal'!$E$7:$E$39=$B21,'Custo Pessoal'!O$7:O$39))) -> 0 | N21: =SUM(IF('Custo Pessoal'!$D$7:$D$39=$A21,IF('Custo Pessoal'!$E$7:$E$39=$B21,'Custo Pessoal'!P$7:P$39))) -> 0 | O21: 0
A22: MANUTENÇÃO | B22: OPERADOR DE MAQUINAS | C22: =COUNTIFS('Custo Pessoal'!$D$7:$D$39,A22,'Custo Pessoal'!$E$7:$E$39,B22) -> 0 | D22: =SUM(IF('Custo Pessoal'!$D$7:$D$39=$A22,IF('Custo Pessoal'!$E$7:$E$39=$B22,'Custo Pessoal'!$F$7:$F$39))) -> 0 | E22: =SUM(IF('Custo Pessoal'!$D$7:$D$39=$A22,IF('Custo Pessoal'!$E$7:$E$39=$B22,'Custo Pessoal'!G$7:G$39))) -> 0 | F22: =SUM(IF('Custo Pessoal'!$D$7:$D$39=$A22,IF('Custo Pessoal'!$E$7:$E$39=$B22,'Custo Pessoal'!H$7:H$39))) -> 0 | G22: =SUM(IF('Custo Pessoal'!$D$7:$D$39=$A22,IF('Custo Pessoal'!$E$7:$E$39=$B22,'Custo Pessoal'!I$7:I$39))) -> 0 | H22: =SUM(IF('Custo Pessoal'!$D$7:$D$39=$A22,IF('Custo Pessoal'!$E$7:$E$39=$B22,'Custo Pessoal'!J$7:J$39))) -> 0 | I22: =SUM(IF('Custo Pessoal'!$D$7:$D$39=$A22,IF('Custo Pessoal'!$E$7:$E$39=$B22,'Custo Pessoal'!K$7:K$39))) -> 0 | J22: =SUM(IF('Custo Pessoal'!$D$7:$D$39=$A22,IF('Custo Pessoal'!$E$7:$E$39=$B22,'Custo Pessoal'!L$7:L$39))) -> 0 | K22: 0 | L22: =SUM(IF('Custo Pessoal'!$D$7:$D$39=$A22,IF('Custo Pessoal'!$E$7:$E$39=$B22,'Custo Pessoal'!N$7:N$39))) -> 0 | M22: =SUM(IF('Custo Pessoal'!$D$7:$D$39=$A22,IF('Custo Pessoal'!$E$7:$E$39=$B22,'Custo Pessoal'!O$7:O$39))) -> 0 | N22: =SUM(IF('Custo Pessoal'!$D$7:$D$39=$A22,IF('Custo Pessoal'!$E$7:$E$39=$B22,'Custo Pessoal'!P$7:P$39))) -> 0 | O22: 0
A23: MANUTENÇÃO | B23: SOLDADOR | C23: =COUNTIFS('Custo Pessoal'!$D$7:$D$39,A23,'Custo Pessoal'!$E$7:$E$39,B23) -> 1 | D23: =SUM(IF('Custo Pessoal'!$D$7:$D$39=$A23,IF('Custo Pessoal'!$E$7:$E$39=$B23,'Custo Pessoal'!$F$7:$F$39))) -> 2385 | E23: =SUM(IF('Custo Pessoal'!$D$7:$D$39=$A23,IF('Custo Pessoal'!$E$7:$E$39=$B23,'Custo Pessoal'!G$7:G$39))) -> 0 | F23: =SUM(IF('Custo Pessoal'!$D$7:$D$39=$A23,IF('Custo Pessoal'!$E$7:$E$39=$B23,'Custo Pessoal'!H$7:H$39))) -> 0 | G23: =SUM(IF('Custo Pessoal'!$D$7:$D$39=$A23,IF('Custo Pessoal'!$E$7:$E$39=$B23,'Custo Pessoal'!I$7:I$39))) -> 0 | H23: =SUM(IF('Custo Pessoal'!$D$7:$D$39=$A23,IF('Custo Pessoal'!$E$7:$E$39=$B23,'Custo Pessoal'!J$7:J$39))) -> 0 | I23: =SUM(IF('Custo Pessoal'!$D$7:$D$39=$A23,IF('Custo Pessoal'!$E$7:$E$39=$B23,'Custo Pessoal'!K$7:K$39))) -> 0 | J23: =SUM(IF('Custo Pessoal'!$D$7:$D$39=$A23,IF('Custo Pessoal'!$E$7:$E$39=$B23,'Custo Pessoal'!L$7:L$39))) -> 0 | K23: 2385 | L23: =SUM(IF('Custo Pessoal'!$D$7:$D$39=$A23,IF('Custo Pessoal'!$E$7:$E$39=$B23,'Custo Pessoal'!N$7:N$39))) -> 91.08 | M23: =SUM(IF('Custo Pessoal'!$D$7:$D$39=$A23,IF('Custo Pessoal'!$E$7:$E$39=$B23,'Custo Pessoal'!O$7:O$39))) -> 16.2 | N23: =SUM(IF('Custo Pessoal'!$D$7:$D$39=$A23,IF('Custo Pessoal'!$E$7:$E$39=$B23,'Custo Pessoal'!P$7:P$39))) -> 47.43 | O23: 154.71
A24: MANUTENÇÃO | B24: VIGILANTE | C24: =COUNTIFS('Custo Pessoal'!$D$7:$D$39,A24,'Custo Pessoal'!$E$7:$E$39,B24) -> 0 | D24: =SUM(IF('Custo Pessoal'!$D$7:$D$39=$A24,IF('Custo Pessoal'!$E$7:$E$39=$B24,'Custo Pessoal'!$F$7:$F$39))) -> 0 | E24: =SUM(IF('Custo Pessoal'!$D$7:$D$39=$A24,IF('Custo Pessoal'!$E$7:$E$39=$B24,'Custo Pessoal'!G$7:G$39))) -> 0 | F24: =SUM(IF('Custo Pessoal'!$D$7:$D$39=$A24,IF('Custo Pessoal'!$E$7:$E$39=$B24,'Custo Pessoal'!H$7:H$39))) -> 0 | G24: =SUM(IF('Custo Pessoal'!$D$7:$D$39=$A24,IF('Custo Pessoal'!$E$7:$E$39=$B24,'Custo Pessoal'!I$7:I$39))) -> 0 | H24: =SUM(IF('Custo Pessoal'!$D$7:$D$39=$A24,IF('Custo Pessoal'!$E$7:$E$39=$B24,'Custo Pessoal'!J$7:J$39))) -> 0 | I24: =SUM(IF('Custo Pessoal'!$D$7:$D$39=$A24,IF('Custo Pessoal'!$E$7:$E$39=$B24,'Custo Pessoal'!K$7:K$39))) -> 0 | J24: =SUM(IF('Custo Pessoal'!$D$7:$D$39=$A24,IF('Custo Pessoal'!$E$7:$E$39=$B24,'Custo Pessoal'!L$7:L$39))) -> 0 | K24: 0 | L24: =SUM(IF('Custo Pessoal'!$D$7:$D$39=$A24,IF('Custo Pessoal'!$E$7:$E$39=$B24,'Custo Pessoal'!N$7:N$39))) -> 0 | M24: =SUM(IF('Custo Pessoal'!$D$7:$D$39=$A24,IF('Custo Pessoal'!$E$7:$E$39=$B24,'Custo Pessoal'!O$7:O$39))) -> 0 | N24: =SUM(IF('Custo Pessoal'!$D$7:$D$39=$A24,IF('Custo Pessoal'!$E$7:$E$39=$B24,'Custo Pessoal'!P$7:P$39))) -> 0 | O24: 0
A25: MANUTENÇÃO Total | C25: =SUM(C18:C24) -> 3 | D25: =SUM(D18:D24) -> 8109 | E25: =SUM(E18:E24) -> 0 | F25: 0 | G25: 0 | H25: 0 | I25: 0 | J25: 0 | K25: 8109 | L25: =SUM(L18:L24) -> 273.24 | M25: =SUM(M18:M24) -> 48.6 | N25: =SUM(N18:N24) -> 142.29 | O25: =SUM(O18:O24) -> 464.13
A26: MELANCIAS | B26: MESTRE.FLUV.DE CONVES | C26: =COUNTIFS('Custo Pessoal'!$D$7:$D$39,A26,'Custo Pessoal'!$E$7:$E$39,B26) -> 1 | D26: =SUM(IF('Custo Pessoal'!$D$7:$D$39=$A26,IF('Custo Pessoal'!$E$7:$E$39=$B26,'Custo Pessoal'!$F$7:$F$39))) -> 1431 | F26: =SUM(IF('Custo Pessoal'!$D$7:$D$39=$A26,IF('Custo Pessoal'!$E$7:$E$39=$B26,'Custo Pessoal'!H$7:H$39))) -> 429.3 | I26: =SUM(IF('Custo Pessoal'!$D$7:$D$39=$A26,IF('Custo Pessoal'!$E$7:$E$39=$B26,'Custo Pessoal'!K$7:K$39))) -> 585.4090909 | K26: 2445.709091
A27: MELANCIAS | B27: MAR.FLUV.DE CONVES | C27: =COUNTIFS('Custo Pessoal'!$D$7:$D$39,A27,'Custo Pessoal'!$E$7:$E$39,B27) -> 3 | D27: =SUM(IF('Custo Pessoal'!$D$7:$D$39=$A27,IF('Custo Pessoal'!$E$7:$E$39=$B27,'Custo Pessoal'!$F$7:$F$39))) -> 3434.4 | E27: =SUM(IF('Custo Pessoal'!$D$7:$D$39=$A27,IF('Custo Pessoal'!$E$7:$E$39=$B27,'Custo Pessoal'!G$7:G$39))) -> 0 | F27: =SUM(IF('Custo Pessoal'!$D$7:$D$39=$A27,IF('Custo Pessoal'!$E$7:$E$39=$B27,'Custo Pessoal'!H$7:H$39))) -> 1030.32 | G27: =SUM(IF('Custo Pessoal'!$D$7:$D$39=$A27,IF('Custo Pessoal'!$E$7:$E$39=$B27,'Custo Pessoal'!I$7:I$39))) -> 0 | H27: =SUM(IF('Custo Pessoal'!$D$7:$D$39=$A27,IF('Custo Pessoal'!$E$7:$E$39=$B27,'Custo Pessoal'!J$7:J$39))) -> 0 | I27: =SUM(IF('Custo Pessoal'!$D$7:$D$39=$A27,IF('Custo Pessoal'!$E$7:$E$39=$B27,'Custo Pessoal'!K$7:K$39))) -> 1404.981818 | J27: =SUM(IF('Custo Pessoal'!$D$7:$D$39=$A27,IF('Custo Pessoal'!$E$7:$E$39=$B27,'Custo Pessoal'!L$7:L$39))) -> 0 | K27: 5869.701818 | L27: =SUM(IF('Custo Pessoal'!$D$7:$D$39=$A27,IF('Custo Pessoal'!$E$7:$E$39=$B27,'Custo Pessoal'!N$7:N$39))) -> 273.24 | M27: =SUM(IF('Custo Pessoal'!$D$7:$D$39=$A27,IF('Custo Pessoal'!$E$7:$E$39=$B27,'Custo Pessoal'!O$7:O$39))) -> 48.6 | N27: =SUM(IF('Custo Pessoal'!$D$7:$D$39=$A27,IF('Custo Pessoal'!$E$7:$E$39=$B27,'Custo Pessoal'!P$7:P$39))) -> 142.29 | O27: =SUM(L27:N27) -> 464.13
A28: MELANCIAS Total | C28: =SUM(C26:C27) -> 4 | D28: =D27 -> 3434.4 | E28: 0 | F28: 1030.32 | G28: 0 | H28: 0 | I28: 1404.981818 | J28: 0 | K28: =SUM(K26:K27) -> 8315.410909 | L28: 273.24 | M28: 48.6 | N28: 142.29 | O28: 464.13
A29: NOVO | B29: MESTRE.FLUV.DE CONVES | C29: =COUNTIFS('Custo Pessoal'!$D$7:$D$39,A29,'Custo Pessoal'!$E$7:$E$39,B29) -> 2 | D29: =SUM(IF('Custo Pessoal'!$D$7:$D$39=$A29,IF('Custo Pessoal'!$E$7:$E$39=$B29,'Custo Pessoal'!$F$7:$F$39))) -> 2862 | F29: =SUM(IF('Custo Pessoal'!$D$7:$D$39=$A29,IF('Custo Pessoal'!$E$7:$E$39=$B29,'Custo Pessoal'!H$7:H$39))) -> 858.6 | I29: =SUM(IF('Custo Pessoal'!$D$7:$D$39=$A29,IF('Custo Pessoal'!$E$7:$E$39=$B29,'Custo Pessoal'!K$7:K$39))) -> 1170.818182 | K29: 4891.418182
A30: NOVO | B30: MAR.FLUV.DE CONVES | C30: =COUNTIFS('Custo Pessoal'!$D$7:$D$39,A30,'Custo Pessoal'!$E$7:$E$39,B30) -> 6 | D30: =SUM(IF('Custo Pessoal'!$D$7:$D$39=$A30,IF('Custo Pessoal'!$E$7:$E$39=$B30,'Custo Pessoal'!$F$7:$F$39))) -> 6868.8 | E30: =SUM(IF('Custo Pessoal'!$D$7:$D$39=$A30,IF('Custo Pessoal'!$E$7:$E$39=$B30,'Custo Pessoal'!G$7:G$39))) -> 0 | F30: =SUM(IF('Custo Pessoal'!$D$7:$D$39=$A30,IF('Custo Pessoal'!$E$7:$E$39=$B30,'Custo Pessoal'!H$7:H$39))) -> 2060.64 | G30: =SUM(IF('Custo Pessoal'!$D$7:$D$39=$A30,IF('Custo Pessoal'!$E$7:$E$39=$B30,'Custo Pessoal'!I$7:I$39))) -> 0 | H30: =SUM(IF('Custo Pessoal'!$D$7:$D$39=$A30,IF('Custo Pessoal'!$E$7:$E$39=$B30,'Custo Pessoal'!J$7:J$39))) -> 0 | I30: =SUM(IF('Custo Pessoal'!$D$7:$D$39=$A30,IF('Custo Pessoal'!$E$7:$E$39=$B30,'Custo Pessoal'!K$7:K$39))) -> 2809.963636 | J30: =SUM(IF('Custo Pessoal'!$D$7:$D$39=$A30,IF('Custo Pessoal'!$E$7:$E$39=$B30,'Custo Pessoal'!L$7:L$39))) -> 0 | K30: 11739.40364 | L30: =SUM(IF('Custo Pessoal'!$D$7:$D$39=$A30,IF('Custo Pessoal'!$E$7:$E$39=$B30,'Custo Pessoal'!N$7:N$39))) -> 546.48 | M30: =SUM(IF('Custo Pessoal'!$D$7:$D$39=$A30,IF('Custo Pessoal'!$E$7:$E$39=$B30,'Custo Pessoal'!O$7:O$39))) -> 97.2 | N30: =SUM(IF('Custo Pessoal'!$D$7:$D$39=$A30,IF('Custo Pessoal'!$E$7:$E$39=$B30,'Custo Pessoal'!P$7:P$39))) -> 284.58 | O30: =SUM(L30:N30) -> 928.26
A31: NOVO Total | C31: =SUM(C29:C30) -> 8 | D31: =D30 -> 6868.8 | E31: 0 | F31: 2060.64 | G31: 0 | H31: 0 | I31: 2809.963636 | J31: 0 | K31: =SUM(K29:K30) -> 16630.82182 | L31: 546.48 | M31: 97.2 | N31: 284.58 | O31: 928.26
A32: SÃO VINCENTE | B32: MESTRE.FLUV.DE CONVES | C32: =COUNTIFS('Custo Pessoal'!$D$7:$D$39,A32,'Custo Pessoal'!$E$7:$E$39,B32) -> 1 | D32: =SUM(IF('Custo Pessoal'!$D$7:$D$39=$A32,IF('Custo Pessoal'!$E$7:$E$39=$B32,'Custo Pessoal'!$F$7:$F$39))) -> 1431 | F32: =SUM(IF('Custo Pessoal'!$D$7:$D$39=$A32,IF('Custo Pessoal'!$E$7:$E$39=$B32,'Custo Pessoal'!H$7:H$39))) -> 429.3 | I32: =SUM(IF('Custo Pessoal'!$D$7:$D$39=$A32,IF('Custo Pessoal'!$E$7:$E$39=$B32,'Custo Pessoal'!K$7:K$39))) -> 585.4090909 | K32: 2445.709091
A33: SÃO VINCENTE | B33: MAR.FLUV.DE CONVES | C33: =COUNTIFS('Custo Pessoal'!$D$7:$D$39,A33,'Custo Pessoal'!$E$7:$E$39,B33) -> 3 | D33: =SUM(IF('Custo Pessoal'!$D$7:$D$39=$A33,IF('Custo Pessoal'!$E$7:$E$39=$B33,'Custo Pessoal'!$F$7:$F$39))) -> 3434.4 | E33: =SUM(IF('Custo Pessoal'!$D$7:$D$39=$A33,IF('Custo Pessoal'!$E$7:$E$39=$B33,'Custo Pessoal'!G$7:G$39))) -> 0 | F33: =SUM(IF('Custo Pessoal'!$D$7:$D$39=$A33,IF('Custo Pessoal'!$E$7:$E$39=$B33,'Custo Pessoal'!H$7:H$39))) -> 1030.32 | G33: =SUM(IF('Custo Pessoal'!$D$7:$D$39=$A33,IF('Custo Pessoal'!$E$7:$E$39=$B33,'Custo Pessoal'!I$7:I$39))) -> 0 | H33: =SUM(IF('Custo Pessoal'!$D$7:$D$39=$A33,IF('Custo Pessoal'!$E$7:$E$39=$B33,'Custo Pessoal'!J$7:J$39))) -> 0 | I33: =SUM(IF('Custo Pessoal'!$D$7:$D$39=$A33,IF('Custo Pessoal'!$E$7:$E$39=$B33,'Custo Pessoal'!K$7:K$39))) -> 1404.981818 | J33: =SUM(IF('Custo Pessoal'!$D$7:$D$39=$A33,IF('Custo Pessoal'!$E$7:$E$39=$B33,'Custo Pessoal'!L$7:L$39))) -> 0 | K33: 5869.701818 | L33: =SUM(IF('Custo Pessoal'!$D$7:$D$39=$A33,IF('Custo Pessoal'!$E$7:$E$39=$B33,'Custo Pessoal'!N$7:N$39))) -> 273.24 | M33: =SUM(IF('Custo Pessoal'!$D$7:$D$39=$A33,IF('Custo Pessoal'!$E$7:$E$39=$B33,'Custo Pessoal'!O$7:O$39))) -> 48.6 | N33: =SUM(IF('Custo Pessoal'!$D$7:$D$39=$A33,IF('Custo Pessoal'!$E$7:$E$39=$B33,'Custo Pessoal'!P$7:P$39))) -> 142.29 | O33: =SUM(L33:N33) -> 464.13
A34: SÃO VINCENTE Total | C34: =SUM(C32:C33) -> 4 | D34: =D33 -> 3434.4 | E34: 0 | F34: 1030.32 | G34: 0 | H34: 0 | I34: 1404.981818 | J34: 0 | K34: =SUM(K32:K33) -> 8315.410909 | L34: 273.24 | M34: 48.6 | N34: 142.29 | O34: 464.13
K35: 0
A36: Total geral | C36: =C34+C31+C28+C25+C16+C13+C10+C7 -> 33 | D36: =D34+D31+D28+D25+D16+D13+D10+D7 -> 35965.8 | E36: =E34+E31+E28+E25+E16+E13+E10+E7 -> 0 | F36: 7212.24 | G36: 0 | H36: 0 | I36: 9834.872727 | J36: 0 | K36: =K34+K31+K28+K25+K16+K13+K10+K7 -> 70132.87636 | L36: 2368.08 | M36: 421.2 | N36: 1138.32 | O36: 3927.6
A37: % do Salário Base | D37: =D36/$D$36 -> 1 | E37: 0 | F37: 0.200530504 | G37: 0 | H37: 0 | I37: 0.2734506872 | J37: 0

Sheet custo pessoal mês
A1: 1.3. PLANILHA DE CUSTO DE PESSOAL MENSAL
A2: =saláriosxencargos!A2 -> Morada Nova de Minas
G3: correção / reajuste salarial - mês = | H3: 0
A4: Descrição | C4: 1 | D4: 2 | E4: 3 | F4: 4 | G4: 5 | H4: 6 | I4: 7 | J4: 8 | K4: 9 | L4: 10 | M4: 11 | N4: 12 | O4: Total anual
A5: 1 | B5: Custo de pessoal por área
A6: 1.1 | B6: Área
A7: 1.1.1 | B7: Administração
A8: 1.1.1.1 | B8: Salário base | C8: =saláriosxencargos!$K$7 -> 3816 | D8: =saláriosxencargos!$K$7 -> 3816 | E8: =saláriosxencargos!$K$7 -> 3816 | F8: =saláriosxencargos!$K$7 -> 3816 | G8: =saláriosxencargos!$K$7*(1+$H$3) -> 3816 | H8: =saláriosxencargos!$K$7*(1+$H$3) -> 3816 | I8: =saláriosxencargos!$K$7*(1+$H$3) -> 3816 | J8: =saláriosxencargos!$K$7*(1+$H$3) -> 3816 | K8: =saláriosxencargos!$K$7*(1+$H$3) -> 3816 | L8: =saláriosxencargos!$K$7*(1+$H$3) -> 3816 | M8: =saláriosxencargos!$K$7*(1+$H$3) -> 3816 | N8: =saláriosxencargos!$K$7*(1+$H$3) -> 3816 | O8: =SUM(C8:N8) -> 45792
A9: 1.1.1.2 | B9: 13º salário | C9: =C8*'Encargos Folha'!$D$55 -> 1450.08 | D9: =D8*'Encargos Folha'!$D$55 -> 1450.08 | E9: =E8*'Encargos Folha'!$D$55 -> 1450.08 | F9: =F8*'Encargos Folha'!$D$55 -> 1450.08 | G9: =G8*'Encargos Folha'!$D$55 -> 1450.08 | H9: =H8*'Encargos Folha'!$D$55 -> 1450.08 | I9: =I8*'Encargos Folha'!$D$55 -> 1450.08 | J9: =J8*'Encargos Folha'!$D$55 -> 1450.08 | K9: =K8*'Encargos Folha'!$D$55 -> 1450.08 | L9: =L8*'Encargos Folha'!$D$55 -> 1450.08 | M9: =M8*'Encargos Folha'!$D$55 -> 1450.08 | N9: =N8*'Encargos Folha'!$D$55 -> 1450.08 | O9: 17400.96
A10: 1.1.1.3 | B10: Férias | C10: =C8*'Encargos Folha'!$D$56 -> 698.328 | D10: =D8*'Encargos Folha'!$D$56 -> 698.328 | E10: =E8*'Encargos Folha'!$D$56 -> 698.328 | F10: =F8*'Encargos Folha'!$D$56 -> 698.328 | G10: =G8*'Encargos Folha'!$D$56 -> 698.328 | H10: =H8*'Encargos Folha'!$D$56 -> 698.328 | I10: =I8*'Encargos Folha'!$D$56 -> 698.328 | J10: =J8*'Encargos Folha'!$D$56 -> 698.328 | K10: =K8*'Encargos Folha'!$D$56 -> 698.328 | L10: =L8*'Encargos Folha'!$D$56 -> 698.328 | M10: =M8*'Encargos Folha'!$D$56 -> 698.328 | N10: =N8*'Encargos Folha'!$D$56 -> 698.328 | O10: 8379.936
A11: 1.1.1.4 | B11: Sociais básicos | C11: =(C8)*'Encargos Folha'!$D$57 -> 443.0376 | D11: =(D8)*'Encargos Folha'!$D$57 -> 443.0376 | E11: =(E8)*'Encargos Folha'!$D$57 -> 443.0376 | F11: =(F8)*'Encargos Folha'!$D$57 -> 443.0376 | G11: =(G8)*'Encargos Folha'!$D$57 -> 443.0376 | H11: =(H8)*'Encargos Folha'!$D$57 -> 443.0376 | I11: =(I8)*'Encargos Folha'!$D$57 -> 443.0376 | J11: =(J8)*'Encargos Folha'!$D$57 -> 443.0376 | K11: =(K8)*'Encargos Folha'!$D$57 -> 443.0376 | L11: =(L8)*'Encargos Folha'!$D$57 -> 443.0376 | M11: =(M8)*'Encargos Folha'!$D$57 -> 443.0376 | N11: =(N8)*'Encargos Folha'!$D$57 -> 443.0376 | O11: 5316.4512
A12: 1.1.1.5 | B12: Rescisão | C12: =(C8)*'Encargos Folha'!$D$58 -> 282.7656 | D12: =(D8)*'Encargos Folha'!$D$58 -> 282.7656 | E12: =(E8)*'Encargos Folha'!$D$58 -> 282.7656 | F12: =(F8)*'Encargos Folha'!$D$58 -> 282.7656 | G12: =(G8)*'Encargos Folha'!$D$58 -> 282.7656 | H12: =(H8)*'Encargos Folha'!$D$58 -> 282.7656 | I12: =(I8)*'Encargos Folha'!$D$58 -> 282.7656 | J12: =(J8)*'Encargos Folha'!$D$58 -> 282.7656 | K12: =(K8)*'Encargos Folha'!$D$58 -> 282.7656 | L12: =(L8)*'Encargos Folha'!$D$58 -> 282.7656 | M12: =(M8)*'Encargos Folha'!$D$58 -> 282.7656 | N12: =(N8)*'Encargos Folha'!$D$58 -> 282.7656 | O12: 3393.1872
A13: 1.1.1.8 | B13: Benefícios | C13: =saláriosxencargos!$O$7 -> 214.56 | D13: =saláriosxencargos!$O$7 -> 214.56 | E13: =saláriosxencargos!$O$7 -> 214.56 | F13: =saláriosxencargos!$O$7 -> 214.56 | G13: =saláriosxencargos!$O$7 -> 214.56 | H13: =saláriosxencargos!$O$7 -> 214.56 | I13: =saláriosxencargos!$O$7 -> 214.56 | J13: =saláriosxencargos!$O$7 -> 214.56 | K13: =saláriosxencargos!$O$7 -> 214.56 | L13: =saláriosxencargos!$O$7 -> 214.56 | M13: =saláriosxencargos!$O$7 -> 214.56 | N13: =saláriosxencargos!$O$7 -> 214.56 | O13: 2574.72
A14: Subtotal | C14: =SUM(C8:C13) -> 6904.7712 | D14: 6904.7712 | E14: 6904.7712 | F14: 6904.7712 | G14: 6904.7712 | H14: 6904.7712 | I14: 6904.7712 | J14: 6904.7712 | K14: 6904.7712 | L14: 6904.7712 | M14: 6904.7712 | N14: 6904.7712 | O14: 82857.2544 | P14: =O14/$N$4 -> 6904.7712
A16: 1.1.2 | B16: Manutenção
A17: 1.1.2.1 | B17: Salário base | C17: =saláriosxencargos!$K$25 -> 8109 | D17: =saláriosxencargos!$K$25 -> 8109 | E17: =saláriosxencargos!$K$25 -> 8109 | F17: =saláriosxencargos!$K$25 -> 8109 | G17: =saláriosxencargos!$K$25*(1+$H$3) -> 8109 | H17: =saláriosxencargos!$K$25*(1+$H$3) -> 8109 | I17: =saláriosxencargos!$K$25*(1+$H$3) -> 8109 | J17: =saláriosxencargos!$K$25*(1+$H$3) -> 8109 | K17: =saláriosxencargos!$K$25*(1+$H$3) -> 8109 | L17: =saláriosxencargos!$K$25*(1+$H$3) -> 8109 | M17: =saláriosxencargos!$K$25*(1+$H$3) -> 8109 | N17: =saláriosxencargos!$K$25*(1+$H$3) -> 8109 | O17: =SUM(C17:N17) -> 97308
A18: 1.1.2.2 | B18: 13º salário | C18: =C17*'Encargos Folha'!$D$55 -> 3081.42 | D18: =D17*'Encargos Folha'!$D$55 -> 3081.42 | E18: =E17*'Encargos Folha'!$D$55 -> 3081.42 | F18: =F17*'Encargos Folha'!$D$55 -> 3081.42 | G18: =G17*'Encargos Folha'!$D$55 -> 3081.42 | H18: =H17*'Encargos Folha'!$D$55 -> 3081.42 | I18: =I17*'Encargos Folha'!$D$55 -> 3081.42 | J18: =J17*'Encargos Folha'!$D$55 -> 3081.42 | K18: =K17*'Encargos Folha'!$D$55 -> 3081.42 | L18: =L17*'Encargos Folha'!$D$55 -> 3081.42 | M18: =M17*'Encargos Folha'!$D$55 -> 3081.42 | N18: =N17*'Encargos Folha'!$D$55 -> 3081.42 | O18: 36977.04
A19: 1.1.2.3 | B19: Férias | C19: =C17*'Encargos Folha'!$D$56 -> 1483.947 | D19: =D17*'Encargos Folha'!$D$56 -> 1483.947 | E19: =E17*'Encargos Folha'!$D$56 -> 1483.947 | F19: =F17*'Encargos Folha'!$D$56 -> 1483.947 | G19: =G17*'Encargos Folha'!$D$56 -> 1483.947 | H19: =H17*'Encargos Folha'!$D$56 -> 1483.947 | I19: =I17*'Encargos Folha'!$D$56 -> 1483.947 | J19: =J17*'Encargos Folha'!$D$56 -> 1483.947 | K19: =K17*'Encargos Folha'!$D$56 -> 1483.947 | L19: =L17*'Encargos Folha'!$D$56 -> 1483.947 | M19: =M17*'Encargos Folha'!$D$56 -> 1483.947 | N19: =N17*'Encargos Folha'!$D$56 -> 1483.947 | O19: 17807.364
A20: 1.1.2.4 | B20: Sociais básicos | C20: =(C17)*'Encargos Folha'!$D$57 -> 941.4549 | D20: =(D17)*'Encargos Folha'!$D$57 -> 941.4549 | E20: =(E17)*'Encargos Folha'!$D$57 -> 941.4549 | F20: =(F17)*'Encargos Folha'!$D$57 -> 941.4549 | G20: =(G17)*'Encargos Folha'!$D$57 -> 941.4549 | H20: =(H17)*'Encargos Folha'!$D$57 -> 941.4549 | I20: =(I17)*'Encargos Folha'!$D$57 -> 941.4549 | J20: =(J17)*'Encargos Folha'!$D$57 -> 941.4549 | K20: =(K17)*'Encargos Folha'!$D$57 -> 941.4549 | L20: =(L17)*'Encargos Folha'!$D$57 -> 941.4549 | M20: =(M17)*'Encargos Folha'!$D$57 -> 941.4549 | N20: =(N17)*'Encargos Folha'!$D$57 -> 941.4549 | O20: 11297.4588
A21: 1.1.2.5 | B21: Rescisão | C21: =(C17)*'Encargos Folha'!$D$58 -> 600.8769 | D21: =(D17)*'Encargos Folha'!$D$58 -> 600.8769 | E21: =(E17)*'Encargos Folha'!$D$58 -> 600.8769 | F21: =(F17)*'Encargos Folha'!$D$58 -> 600.8769 | G21: =(G17)*'Encargos Folha'!$D$58 -> 600.8769 | H21: =(H17)*'Encargos Folha'!$D$58 -> 600.8769 | I21: =(I17)*'Encargos Folha'!$D$58 -> 600.8769 | J21: =(J17)*'Encargos Folha'!$D$58 -> 600.8769 | K21: =(K17)*'Encargos Folha'!$D$58 -> 600.8769 | L21: =(L17)*'Encargos Folha'!$D$58 -> 600.8769 | M21: =(M17)*'Encargos Folha'!$D$58 -> 600.8769 | N21: =(N17)*'Encargos Folha'!$D$58 -> 600.8769 | O21: 7210.5228
A22: 1.1.2.8 | B22: Benefícios | C22: =saláriosxencargos!$O$25 -> 464.13 | D22: =saláriosxencargos!$O$25 -> 464.13 | E22: =saláriosxencargos!$O$25 -> 464.13 | F22: =saláriosxencargos!$O$25 -> 464.13 | G22: =saláriosxencargos!$O$25 -> 464.13 | H22: =saláriosxencargos!$O$25 -> 464.13 | I22: =saláriosxencargos!$O$25 -> 464.13 | J22: =saláriosxencargos!$O$25 -> 464.13 | K22: =saláriosxencargos!$O$25 -> 464.13 | L22: =saláriosxencargos!$O$25 -> 464.13 | M22: =saláriosxencargos!$O$25 -> 464.13 | N22: =saláriosxencargos!$O$25 -> 464.13 | O22: 5569.56
A23: Subtotal | C23: =SUM(C17:C22) -> 14680.8288 | D23: 14680.8288 | E23: 14680.8288 | F23: 14680.8288 | G23: 14680.8288 | H23: 14680.8288 | I23: 14680.8288 | J23: 14680.8288 | K23: 14680.8288 | L23: 14680.8288 | M23: 14680.8288 | N23: 14680.8288 | O23: 176169.9456 | P23: =O23/$N$4 -> 14680.8288
A25: 1.1.3 | B25: Porto Extrema
A26: 1.1.3.1 | B26: Salário base | C26: =saláriosxencargos!$K$10 -> 8315.410909 | D26: =saláriosxencargos!$K$10 -> 8315.410909 | E26: =saláriosxencargos!$K$10 -> 8315.410909 | F26: =saláriosxencargos!$K$10 -> 8315.410909 | G26: =saláriosxencargos!$K$10*(1+$H$3) -> 8315.410909 | H26: =saláriosxencargos!$K$10*(1+$H$3) -> 8315.410909 | I26: =saláriosxencargos!$K$10*(1+$H$3) -> 8315.410909 | J26: =saláriosxencargos!$K$10*(1+$H$3) -> 8315.410909 | K26: =saláriosxencargos!$K$10*(1+$H$3) -> 8315.410909 | L26: =saláriosxencargos!$K$10*(1+$H$3) -> 8315.410909 | M26: =saláriosxencargos!$K$10*(1+$H$3) -> 8315.410909 | N26: =saláriosxencargos!$K$10*(1+$H$3) -> 8315.410909 | O26: =SUM(C26:N26) -> 99784.93091
A27: 1.1.3.2 | B27: 13º salário | C27: =C26*'Encargos Folha'!$D$55 -> 3159.856145 | D27: =D26*'Encargos Folha'!$D$55 -> 3159.856145 | E27: =E26*'Encargos Folha'!$D$55 -> 3159.856145 | F27: =F26*'Encargos Folha'!$D$55 -> 3159.856145 | G27: =G26*'Encargos Folha'!$D$55 -> 3159.856145 | H27: =H26*'Encargos Folha'!$D$55 -> 3159.856145 | I27: =I26*'Encargos Folha'!$D$55 -> 3159.856145 | J27: =J26*'Encargos Folha'!$D$55 -> 3159.856145 | K27: =K26*'Encargos Folha'!$D$55 -> 3159.856145 | L27: =L26*'Encargos Folha'!$D$55 -> 3159.856145 | M27: =M26*'Encargos Folha'!$D$55 -> 3159.856145 | N27: =N26*'Encargos Folha'!$D$55 -> 3159.856145 | O27: =SUM(C27:N27) -> 37918.27375
A28: 1.1.3.3 | B28: Férias | C28: =C26*'Encargos Folha'!$D$56 -> 1521.720196 | D28: =D26*'Encargos Folha'!$D$56 -> 1521.720196 | E28: =E26*'Encargos Folha'!$D$56 -> 1521.720196 | F28: =F26*'Encargos Folha'!$D$56 -> 1521.720196 | G28: =G26*'Encargos Folha'!$D$56 -> 1521.720196 | H28: =H26*'Encargos Folha'!$D$56 -> 1521.720196 | I28: =I26*'Encargos Folha'!$D$56 -> 1521.720196 | J28: =J26*'Encargos Folha'!$D$56 -> 1521.720196 | K28: =K26*'Encargos Folha'!$D$56 -> 1521.720196 | L28: =L26*'Encargos Folha'!$D$56 -> 1521.720196 | M28: =M26*'Encargos Folha'!$D$56 -> 1521.720196 | N28: =N26*'Encargos Folha'!$D$56 -> 1521.720196 | O28: 18260.64236
A29: 1.1.3.4 | B29: Sociais básicos | C29: =(C26)*'Encargos Folha'!$D$57 -> 965.4192065 | D29: =(D26)*'Encargos Folha'!$D$57 -> 965.4192065 | E29: =(E26)*'Encargos Folha'!$D$57 -> 965.4192065 | F29: =(F26)*'Encargos Folha'!$D$57 -> 965.4192065 | G29: =(G26)*'Encargos Folha'!$D$57 -> 965.4192065 | H29: =(H26)*'Encargos Folha'!$D$57 -> 965.4192065 | I29: =(I26)*'Encargos Folha'!$D$57 -> 965.4192065 | J29: =(J26)*'Encargos Folha'!$D$57 -> 965.4192065 | K29: =(K26)*'Encargos Folha'!$D$57 -> 965.4192065 | L29: =(L26)*'Encargos Folha'!$D$57 -> 965.4192065 | M29: =(M26)*'Encargos Folha'!$D$57 -> 965.4192065 | N29: =(N26)*'Encargos Folha'!$D$57 -> 965.4192065 | O29: 11585.03048
A30: 1.1.3.5 | B30: Rescisão | C30: =(C26)*'Encargos Folha'!$D$58 -> 616.1719484 | D30: =(D26)*'Encargos Folha'!$D$58 -> 616.1719484 | E30: =(E26)*'Encargos Folha'!$D$58 -> 616.1719484 | F30: =(F26)*'Encargos Folha'!$D$58 -> 616.1719484 | G30: =(G26)*'Encargos Folha'!$D$58 -> 616.1719484 | H30: =(H26)*'Encargos Folha'!$D$58 -> 616.1719484 | I30: =(I26)*'Encargos Folha'!$D$58 -> 616.1719484 | J30: =(J26)*'Encargos Folha'!$D$58 -> 616.1719484 | K30: =(K26)*'Encargos Folha'!$D$58 -> 616.1719484 | L30: =(L26)*'Encargos Folha'!$D$58 -> 616.1719484 | M30: =(M26)*'Encargos Folha'!$D$58 -> 616.1719484 | N30: =(N26)*'Encargos Folha'!$D$58 -> 616.1719484 | O30: 7394.06338
A31: 1.1.3.8 | B31: Benefícios | C31: =saláriosxencargos!$O$10 -> 464.13 | D31: =saláriosxencargos!$O$10 -> 464.13 | E31: =saláriosxencargos!$O$10 -> 464.13 | F31: =saláriosxencargos!$O$10 -> 464.13 | G31: =saláriosxencargos!$O$10 -> 464.13 | H31: =saláriosxencargos!$O$10 -> 464.13 | I31: =saláriosxencargos!$O$10 -> 464.13 | J31: =saláriosxencargos!$O$10 -> 464.13 | K31: =saláriosxencargos!$O$10 -> 464.13 | L31: =saláriosxencargos!$O$10 -> 464.13 | M31: =saláriosxencargos!$O$10 -> 464.13 | N31: =saláriosxencargos!$O$10 -> 464.13 | O31: 5569.56
A32: Subtotal | C32: =SUM(C26:C31) -> 15042.70841 | D32: 15042.70841 | E32: 15042.70841 | F32: 15042.70841 | G32: 15042.70841 | H32: 15042.70841 | I32: 15042.70841 | J32: 15042.70841 | K32: 15042.70841 | L32: 15042.70841 | M32: 15042.70841 | N32: 15042.70841 | O32: 180512.5009 | P32: =O32/$N$4 -> 15042.70841
A34: 1.1.4 | B34: Porto Indaiá de Baixo
A35: 1.1.4.1 | B35: Salário base | C35: =saláriosxencargos!$K$13 -> 8315.410909 | D35: =saláriosxencargos!$K$13 -> 8315.410909 | E35: =saláriosxencargos!$K$13 -> 8315.410909 | F35: =saláriosxencargos!$K$13 -> 8315.410909 | G35: =saláriosxencargos!$K$13*(1+$H$3) -> 8315.410909 | H35: =saláriosxencargos!$K$13*(1+$H$3) -> 8315.410909 | I35: =saláriosxencargos!$K$13*(1+$H$3) -> 8315.410909 | J35: =saláriosxencargos!$K$13*(1+$H$3) -> 8315.410909 | K35: =saláriosxencargos!$K$13*(1+$H$3) -> 8315.410909 | L35: =saláriosxencargos!$K$13*(1+$H$3) -> 8315.410909 | M35: =saláriosxencargos!$K$13*(1+$H$3) -> 8315.410909 | N35: =saláriosxencargos!$K$13*(1+$H$3) -> 8315.410909 | O35: =SUM(C35:N35) -> 99784.93091
A36: 1.1.4.2 | B36: 13º salário | C36: =C35*'Encargos Folha'!$D$55 -> 3159.856145 | D36: =D35*'Encargos Folha'!$D$55 -> 3159.856145 | E36: =E35*'Encargos Folha'!$D$55 -> 3159.856145 | F36: =F35*'Encargos Folha'!$D$55 -> 3159.856145 | G36: =G35*'Encargos Folha'!$D$55 -> 3159.856145 | H36: =H35*'Encargos Folha'!$D$55 -> 3159.856145 | I36: =I35*'Encargos Folha'!$D$55 -> 3159.856145 | J36: =J35*'Encargos Folha'!$D$55 -> 3159.856145 | K36: =K35*'Encargos Folha'!$D$55 -> 3159.856145 | L36: =L35*'Encargos Folha'!$D$55 -> 3159.856145 | M36: =M35*'Encargos Folha'!$D$55 -> 3159.856145 | N36: =N35*'Encargos Folha'!$D$55 -> 3159.856145 | O36: =SUM(C36:N36) -> 37918.27375
A37: 1.1.4.3 | B37: Férias | C37: =C35*'Encargos Folha'!$D$56 -> 1521.720196 | D37: =D35*'Encargos Folha'!$D$56 -> 1521.720196 | E37: =E35*'Encargos Folha'!$D$56 -> 1521.720196 | F37: =F35*'Encargos Folha'!$D$56 -> 1521.720196 | G37: =G35*'Encargos Folha'!$D$56 -> 1521.720196 | H37: =H35*'Encargos Folha'!$D$56 -> 1521.720196 | I37: =I35*'Encargos Folha'!$D$56 -> 1521.720196 | J37: =J35*'Encargos Folha'!$D$56 -> 1521.720196 | K37: =K35*'Encargos Folha'!$D$56 -> 1521.720196 | L37: =L35*'Encargos Folha'!$D$56 -> 1521.720196 | M37: =M35*'Encargos Folha'!$D$56 -> 1521.720196 | N37: =N35*'Encargos Folha'!$D$56 -> 1521.720196 | O37: 18260.64236
A38: 1.1.4.4 | B38: Sociais básicos | C38: =(C35)*'Encargos Folha'!$D$57 -> 965.4192065 | D38: =(D35)*'Encargos Folha'!$D$57 -> 965.4192065 | E38: =(E35)*'Encargos Folha'!$D$57 -> 965.4192065 | F38: =(F35)*'Encargos Folha'!$D$57 -> 965.4192065 | G38: =(G35)*'Encargos Folha'!$D$57 -> 965.4192065 | H38: =(H35)*'Encargos Folha'!$D$57 -> 965.4192065 | I38: =(I35)*'Encargos Folha'!$D$57 -> 965.4192065 | J38: =(J35)*'Encargos Folha'!$D$57 -> 965.4192065 | K38: =(K35)*'Encargos Folha'!$D$57 -> 965.4192065 | L38: =(L35)*'Encargos Folha'!$D$57 -> 965.4192065 | M38: =(M35)*'Encargos Folha'!$D$57 -> 965.4192065 | N38: =(N35)*'Encargos Folha'!$D$57 -> 965.4192065 | O38: 11585.03048
A39: 1.1.4.5 | B39: Rescisão | C39: =(C35)*'Encargos Folha'!$D$58 -> 616.1719484 | D39: =(D35)*'Encargos Folha'!$D$58 -> 616.1719484 | E39: =(E35)*'Encargos Folha'!$D$58 -> 616.1719484 | F39: =(F35)*'Encargos Folha'!$D$58 -> 616.1719484 | G39: =(G35)*'Encargos Folha'!$D$58 -> 616.1719484 | H39: =(H35)*'Encargos Folha'!$D$58 -> 616.1719484 | I39: =(I35)*'Encargos Folha'!$D$58 -> 616.1719484 | J39: =(J35)*'Encargos Folha'!$D$58 -> 616.1719484 | K39: =(K35)*'Encargos Folha'!$D$58 -> 616.1719484 | L39: =(L35)*'Encargos Folha'!$D$58 -> 616.1719484 | M39: =(M35)*'Encargos Folha'!$D$58 -> 616.1719484 | N39: =(N35)*'Encargos Folha'!$D$58 -> 616.1719484 | O39: 7394.06338
A40: 1.1.4.8 | B40: Benefícios | C40: =saláriosxencargos!$O$13 -> 464.13 | D40: =saláriosxencargos!$O$13 -> 464.13 | E40: =saláriosxencargos!$O$13 -> 464.13 | F40: =saláriosxencargos!$O$13 -> 464.13 | G40: =saláriosxencargos!$O$13 -> 464.13 | H40: =saláriosxencargos!$O$13 -> 464.13 | I40: =saláriosxencargos!$O$13 -> 464.13 | J40: =saláriosxencargos!$O$13 -> 464.13 | K40: =saláriosxencargos!$O$13 -> 464.13 | L40: =saláriosxencargos!$O$13 -> 464.13 | M40: =saláriosxencargos!$O$13 -> 464.13 | N40: =saláriosxencargos!$O$13 -> 464.13 | O40: 5569.56
A41: Subtotal | C41: =SUM(C35:C40) -> 15042.70841 | D41: 15042.70841 | E41: 15042.70841 | F41: 15042.70841 | G41: 15042.70841 | H41: 15042.70841 | I41: 15042.70841 | J41: 15042.70841 | K41: 15042.70841 | L41: 15042.70841 | M41: 15042.70841 | N41: 15042.70841 | O41: 180512.5009 | P41: =O41/$N$4 -> 15042.70841
A43: 1.1.5 | B43: Porto Indaiá de Cima
A44: 1.1.5.1 | B44: Salário base | C44: =saláriosxencargos!$K$16 -> 8315.410909 | D44: =saláriosxencargos!$K$16 -> 8315.410909 | E44: =saláriosxencargos!$K$16 -> 8315.410909 | F44: =saláriosxencargos!$K$16 -> 8315.410909 | G44: =saláriosxencargos!$K$16*(1+$H$3) -> 8315.410909 | H44: =saláriosxencargos!$K$16*(1+$H$3) -> 8315.410909 | I44: =saláriosxencargos!$K$16*(1+$H$3) -> 8315.410909 | J44: =saláriosxencargos!$K$16*(1+$H$3) -> 8315.410909 | K44: =saláriosxencargos!$K$16*(1+$H$3) -> 8315.410909 | L44: =saláriosxencargos!$K$16*(1+$H$3) -> 8315.410909 | M44: =saláriosxencargos!$K$16*(1+$H$3) -> 8315.410909 | N44: =saláriosxencargos!$K$16*(1+$H$3) -> 8315.410909 | O44: =SUM(C44:N44) -> 99784.93091
A45: 1.1.5.2 | B45: 13º salário | C45: =C44*'Encargos Folha'!$D$55 -> 3159.856145 | D45: =D44*'Encargos Folha'!$D$55 -> 3159.856145 | E45: =E44*'Encargos Folha'!$D$55 -> 3159.856145 | F45: =F44*'Encargos Folha'!$D$55 -> 3159.856145 | G45: =G44*'Encargos Folha'!$D$55 -> 3159.856145 | H45: =H44*'Encargos Folha'!$D$55 -> 3159.856145 | I45: =I44*'Encargos Folha'!$D$55 -> 3159.856145 | J45: =J44*'Encargos Folha'!$D$55 -> 3159.856145 | K45: =K44*'Encargos Folha'!$D$55 -> 3159.856145 | L45: =L44*'Encargos Folha'!$D$55 -> 3159.856145 | M45: =M44*'Encargos Folha'!$D$55 -> 3159.856145 | N45: =N44*'Encargos Folha'!$D$55 -> 3159.856145 | O45: =SUM(C45:N45) -> 37918.27375
A46: 1.1.5.3 | B46: Férias | C46: =C44*'Encargos Folha'!$D$56 -> 1521.720196 | D46: =D44*'Encargos Folha'!$D$56 -> 1521.720196 | E46: =E44*'Encargos Folha'!$D$56 -> 1521.720196 | F46: =F44*'Encargos Folha'!$D$56 -> 1521.720196 | G46: =G44*'Encargos Folha'!$D$56 -> 1521.720196 | H46: =H44*'Encargos Folha'!$D$56 -> 1521.720196 | I46: =I44*'Encargos Folha'!$D$56 -> 1521.720196 | J46: =J44*'Encargos Folha'!$D$56 -> 1521.720196 | K46: =K44*'Encargos Folha'!$D$56 -> 1521.720196 | L46: =L44*'Encargos Folha'!$D$56 -> 1521.720196 | M46: =M44*'Encargos Folha'!$D$56 -> 1521.720196 | N46: =N44*'Encargos Folha'!$D$56 -> 1521.720196 | O46: 18260.64236
A47: 1.1.5.4 | B47: Sociais básicos | C47: =(C44)*'Encargos Folha'!$D$57 -> 965.4192065 | D47: =(D44)*'Encargos Folha'!$D$57 -> 965.4192065 | E47: =(E44)*'Encargos Folha'!$D$57 -> 965.4192065 | F47: =(F44)*'Encargos Folha'!$D$57 -> 965.4192065 | G47: =(G44)*'Encargos Folha'!$D$57 -> 965.4192065 | H47: =(H44)*'Encargos Folha'!$D$57 -> 965.4192065 | I47: =(I44)*'Encargos Folha'!$D$57 -> 965.4192065 | J47: =(J44)*'Encargos Folha'!$D$57 -> 965.4192065 | K47: =(K44)*'Encargos Folha'!$D$57 -> 965.4192065 | L47: =(L44)*'Encargos Folha'!$D$57 -> 965.4192065 | M47: =(M44)*'Encargos Folha'!$D$57 -> 965.4192065 | N47: =(N44)*'Encargos Folha'!$D$57 -> 965.4192065 | O47: 11585.03048
A48: 1.1.5.5 | B48: Rescisão | C48: =(C44)*'Encargos Folha'!$D$58 -> 616.1719484 | D48: =(D44)*'Encargos Folha'!$D$58 -> 616.1719484 | E48: =(E44)*'Encargos Folha'!$D$58 -> 616.1719484 | F48: =(F44)*'Encargos Folha'!$D$58 -> 616.1719484 | G48: =(G44)*'Encargos Folha'!$D$58 -> 616.1719484 | H48: =(H44)*'Encargos Folha'!$D$58 -> 616.1719484 | I48: =(I44)*'Encargos Folha'!$D$58 -> 616.1719484 | J48: =(J44)*'Encargos Folha'!$D$58 -> 616.1719484 | K48: =(K44)*'Encargos Folha'!$D$58 -> 616.1719484 | L48: =(L44)*'Encargos Folha'!$D$58 -> 616.1719484 | M48: =(M44)*'Encargos Folha'!$D$58 -> 616.1719484 | N48: =(N44)*'Encargos Folha'!$D$58 -> 616.1719484 | O48: 7394.06338
A49: 1.1.5.8 | B49: Benefícios | C49: =saláriosxencargos!$O$16 -> 464.13 | D49: =saláriosxencargos!$O$16 -> 464.13 | E49: =saláriosxencargos!$O$16 -> 464.13 | F49: =saláriosxencargos!$O$16 -> 464.13 | G49: =saláriosxencargos!$O$16 -> 464.13 | H49: =saláriosxencargos!$O$16 -> 464.13 | I49: =saláriosxencargos!$O$16 -> 464.13 | J49: =saláriosxencargos!$O$16 -> 464.13 | K49: =saláriosxencargos!$O$16 -> 464.13 | L49: =saláriosxencargos!$O$16 -> 464.13 | M49: =saláriosxencargos!$O$16 -> 464.13 | N49: =saláriosxencargos!$O$16 -> 464.13 | O49: 5569.56
A50: Subtotal | C50: =SUM(C44:C49) -> 15042.70841 | D50: 15042.70841 | E50: 15042.70841 | F50: 15042.70841 | G50: 15042.70841 | H50: 15042.70841 | I50: 15042.70841 | J50: 15042.70841 | K50: 15042.70841 | L50: 15042.70841 | M50: 15042.70841 | N50: 15042.70841 | O50: 180512.5009 | P50: =O50/$N$4 -> 15042.70841
A52: 1.1.6 | B52: Porto Melancias
A53: 1.1.6.1 | B53: Salário base | C53: =saláriosxencargos!$K$28 -> 8315.410909 | D53: =saláriosxencargos!$K$28 -> 8315.410909 | E53: =saláriosxencargos!$K$28 -> 8315.410909 | F53: =saláriosxencargos!$K$28 -> 8315.410909 | G53: =saláriosxencargos!$K$28*(1+$H$3) -> 8315.410909 | H53: =saláriosxencargos!$K$28*(1+$H$3) -> 8315.410909 | I53: =saláriosxencargos!$K$28*(1+$H$3) -> 8315.410909 | J53: =saláriosxencargos!$K$28*(1+$H$3) -> 8315.410909 | K53: =saláriosxencargos!$K$28*(1+$H$3) -> 8315.410909 | L53: =saláriosxencargos!$K$28*(1+$H$3) -> 8315.410909 | M53: =saláriosxencargos!$K$28*(1+$H$3) -> 8315.410909 | N53: =saláriosxencargos!$K$28*(1+$H$3) -> 8315.410909 | O53: =SUM(C53:N53) -> 99784.93091
A54: 1.1.6.2 | B54: 13º salário | C54: =C53*'Encargos Folha'!$D$55 -> 3159.856145 | D54: =D53*'Encargos Folha'!$D$55 -> 3159.856145 | E54: =E53*'Encargos Folha'!$D$55 -> 3159.856145 | F54: =F53*'Encargos Folha'!$D$55 -> 3159.856145 | G54: =G53*'Encargos Folha'!$D$55 -> 3159.856145 | H54: =H53*'Encargos Folha'!$D$55 -> 3159.856145 | I54: =I53*'Encargos Folha'!$D$55 -> 3159.856145 | J54: =J53*'Encargos Folha'!$D$55 -> 3159.856145 | K54: =K53*'Encargos Folha'!$D$55 -> 3159.856145 | L54: =L53*'Encargos Folha'!$D$55 -> 3159.856145 | M54: =M53*'Encargos Folha'!$D$55 -> 3159.856145 | N54: =N53*'Encargos Folha'!$D$55 -> 3159.856145 | O54: =SUM(C54:N54) -> 37918.27375
A55: 1.1.6.3 | B55: Férias | C55: =C53*'Encargos Folha'!$D$56 -> 1521.720196 | D55: =D53*'Encargos Folha'!$D$56 -> 1521.720196 | E55: =E53*'Encargos Folha'!$D$56 -> 1521.720196 | F55: =F53*'Encargos Folha'!$D$56 -> 1521.720196 | G55: =G53*'Encargos Folha'!$D$56 -> 1521.720196 | H55: =H53*'Encargos Folha'!$D$56 -> 1521.720196 | I55: =I53*'Encargos Folha'!$D$56 -> 1521.720196 | J55: =J53*'Encargos Folha'!$D$56 -> 1521.720196 | K55: =K53*'Encargos Folha'!$D$56 -> 1521.720196 | L55: =L53*'Encargos Folha'!$D$56 -> 1521.720196 | M55: =M53*'Encargos Folha'!$D$56 -> 1521.720196 | N55: =N53*'Encargos Folha'!$D$56 -> 1521.720196 | O55: 18260.64236
A56: 1.1.6.4 | B56: Sociais básicos | C56: =(C53)*'Encargos Folha'!$D$57 -> 965.4192065 | D56: =(D53)*'Encargos Folha'!$D$57 -> 965.4192065 | E56: =(E53)*'Encargos Folha'!$D$57 -> 965.4192065 | F56: =(F53)*'Encargos Folha'!$D$57 -> 965.4192065 | G56: =(G53)*'Encargos Folha'!$D$57 -> 965.4192065 | H56: =(H53)*'Encargos Folha'!$D$57 -> 965.4192065 | I56: =(I53)*'Encargos Folha'!$D$57 -> 965.4192065 | J56: =(J53)*'Encargos Folha'!$D$57 -> 965.4192065 | K56: =(K53)*'Encargos Folha'!$D$57 -> 965.4192065 | L56: =(L53)*'Encargos Folha'!$D$57 -> 965.4192065 | M56: =(M53)*'Encargos Folha'!$D$57 -> 965.4192065 | N56: =(N53)*'Encargos Folha'!$D$57 -> 965.4192065 | O56: 11585.03048
A57: 1.1.6.5 | B57: Rescisão | C57: =(C53)*'Encargos Folha'!$D$58 -> 616.1719484 | D57: =(D53)*'Encargos Folha'!$D$58 -> 616.1719484 | E57: =(E53)*'Encargos Folha'!$D$58 -> 616.1719484 | F57: =(F53)*'Encargos Folha'!$D$58 -> 616.1719484 | G57: =(G53)*'Encargos Folha'!$D$58 -> 616.1719484 | H57: =(H53)*'Encargos Folha'!$D$58 -> 616.1719484 | I57: =(I53)*'Encargos Folha'!$D$58 -> 616.1719484 | J57: =(J53)*'Encargos Folha'!$D$58 -> 616.1719484 | K57: =(K53)*'Encargos Folha'!$D$58 -> 616.1719484 | L57: =(L53)*'Encargos Folha'!$D$58 -> 616.1719484 | M57: =(M53)*'Encargos Folha'!$D$58 -> 616.1719484 | N57: =(N53)*'Encargos Folha'!$D$58 -> 616.1719484 | O57: 7394.06338
A58: 1.1.6.8 | B58: Benefícios | C58: =saláriosxencargos!$O$28 -> 464.13 | D58: =saláriosxencargos!$O$28 -> 464.13 | E58: =saláriosxencargos!$O$28 -> 464.13 | F58: =saláriosxencargos!$O$28 -> 464.13 | G58: =saláriosxencargos!$O$28 -> 464.13 | H58: =saláriosxencargos!$O$28 -> 464.13 | I58: =saláriosxencargos!$O$28 -> 464.13 | J58: =saláriosxencargos!$O$28 -> 464.13 | K58: =saláriosxencargos!$O$28 -> 464.13 | L58: =saláriosxencargos!$O$28 -> 464.13 | M58: =saláriosxencargos!$O$28 -> 464.13 | N58: =saláriosxencargos!$O$28 -> 464.13 | O58: 5569.56
A59: Subtotal | C59: =SUM(C53:C58) -> 15042.70841 | D59: 15042.70841 | E59: 15042.70841 | F59: 15042.70841 | G59: 15042.70841 | H59: 15042.70841 | I59: 15042.70841 | J59: 15042.70841 | K59: 15042.70841 | L59: 15042.70841 | M59: 15042.70841 | N59: 15042.70841 | O59: 180512.5009 | P59: =O59/$N$4 -> 15042.70841
A61: 1.1.7 | B61: Porto Novo
A62: 1.1.7.1 | B62: Salário base | C62: =saláriosxencargos!$K$31 -> 16630.82182 | D62: =saláriosxencargos!$K$31 -> 16630.82182 | E62: =saláriosxencargos!$K$31 -> 16630.82182 | F62: =saláriosxencargos!$K$31 -> 16630.82182 | G62: =saláriosxencargos!$K$31*(1+$H$3) -> 16630.82182 | H62: =saláriosxencargos!$K$31*(1+$H$3) -> 16630.82182 | I62: =saláriosxencargos!$K$31*(1+$H$3) -> 16630.82182 | J62: =saláriosxencargos!$K$31*(1+$H$3) -> 16630.82182 | K62: =saláriosxencargos!$K$31*(1+$H$3) -> 16630.82182 | L62: =saláriosxencargos!$K$31*(1+$H$3) -> 16630.82182 | M62: =saláriosxencargos!$K$31*(1+$H$3) -> 16630.82182 | N62: =saláriosxencargos!$K$31*(1+$H$3) -> 16630.82182 | O62: =SUM(C62:N62) -> 199569.8618
A63: 1.1.7.2 | B63: 13º salário | C63: =C62*'Encargos Folha'!$D$55 -> 6319.712291 | D63: =D62*'Encargos Folha'!$D$55 -> 6319.712291 | E63: =E62*'Encargos Folha'!$D$55 -> 6319.712291 | F63: =F62*'Encargos Folha'!$D$55 -> 6319.712291 | G63: =G62*'Encargos Folha'!$D$55 -> 6319.712291 | H63: =H62*'Encargos Folha'!$D$55 -> 6319.712291 | I63: =I62*'Encargos Folha'!$D$55 -> 6319.712291 | J63: =J62*'Encargos Folha'!$D$55 -> 6319.712291 | K63: =K62*'Encargos Folha'!$D$55 -> 6319.712291 | L63: =L62*'Encargos Folha'!$D$55 -> 6319.712291 | M63: =M62*'Encargos Folha'!$D$55 -> 6319.712291 | N63: =N62*'Encargos Folha'!$D$55 -> 6319.712291 | O63: =SUM(C63:N63) -> 75836.54749
A64: 1.1.7.3 | B64: Férias | C64: =C62*'Encargos Folha'!$D$56 -> 3043.440393 | D64: =D62*'Encargos Folha'!$D$56 -> 3043.440393 | E64: =E62*'Encargos Folha'!$D$56 -> 3043.440393 | F64: =F62*'Encargos Folha'!$D$56 -> 3043.440393 | G64: =G62*'Encargos Folha'!$D$56 -> 3043.440393 | H64: =H62*'Encargos Folha'!$D$56 -> 3043.440393 | I64: =I62*'Encargos Folha'!$D$56 -> 3043.440393 | J64: =J62*'Encargos Folha'!$D$56 -> 3043.440393 | K64: =K62*'Encargos Folha'!$D$56 -> 3043.440393 | L64: =L62*'Encargos Folha'!$D$56 -> 3043.440393 | M64: =M62*'Encargos Folha'!$D$56 -> 3043.440393 | N64: =N62*'Encargos Folha'!$D$56 -> 3043.440393 | O64: 36521.28471
A65: 1.1.7.4 | B65: Sociais básicos | C65: =(C62)*'Encargos Folha'!$D$57 -> 1930.838413 | D65: =(D62)*'Encargos Folha'!$D$57 -> 1930.838413 | E65: =(E62)*'Encargos Folha'!$D$57 -> 1930.838413 | F65: =(F62)*'Encargos Folha'!$D$57 -> 1930.838413 | G65: =(G62)*'Encargos Folha'!$D$57 -> 1930.838413 | H65: =(H62)*'Encargos Folha'!$D$57 -> 1930.838413 | I65: =(I62)*'Encargos Folha'!$D$57 -> 1930.838413 | J65: =(J62)*'Encargos Folha'!$D$57 -> 1930.838413 | K65: =(K62)*'Encargos Folha'!$D$57 -> 1930.838413 | L65: =(L62)*'Encargos Folha'!$D$57 -> 1930.838413 | M65: =(M62)*'Encargos Folha'!$D$57 -> 1930.838413 | N65: =(N62)*'Encargos Folha'!$D$57 -> 1930.838413 | O65: 23170.06096
A66: 1.1.7.5 | B66: Rescisão | C66: =(C62)*'Encargos Folha'!$D$58 -> 1232.343897 | D66: =(D62)*'Encargos Folha'!$D$58 -> 1232.343897 | E66: =(E62)*'Encargos Folha'!$D$58 -> 1232.343897 | F66: =(F62)*'Encargos Folha'!$D$58 -> 1232.343897 | G66: =(G62)*'Encargos Folha'!$D$58 -> 1232.343897 | H66: =(H62)*'Encargos Folha'!$D$58 -> 1232.343897 | I66: =(I62)*'Encargos Folha'!$D$58 -> 1232.343897 | J66: =(J62)*'Encargos Folha'!$D$58 -> 1232.343897 | K66: =(K62)*'Encargos Folha'!$D$58 -> 1232.343897 | L66: =(L62)*'Encargos Folha'!$D$58 -> 1232.343897 | M66: =(M62)*'Encargos Folha'!$D$58 -> 1232.343897 | N66: =(N62)*'Encargos Folha'!$D$58 -> 1232.343897 | O66: 14788.12676
A67: 1.1.7.8 | B67: Benefícios | C67: =saláriosxencargos!$O$31 -> 928.26 | D67: =saláriosxencargos!$O$31 -> 928.26 | E67: =saláriosxencargos!$O$31 -> 928.26 | F67: =saláriosxencargos!$O$31 -> 928.26 | G67: =saláriosxencargos!$O$31 -> 928.26 | H67: =saláriosxencargos!$O$31 -> 928.26 | I67: =saláriosxencargos!$O$31 -> 928.26 | J67: =saláriosxencargos!$O$31 -> 928.26 | K67: =saláriosxencargos!$O$31 -> 928.26 | L67: =saláriosxencargos!$O$31 -> 928.26 | M67: =saláriosxencargos!$O$31 -> 928.26 | N67: =saláriosxencargos!$O$31 -> 928.26 | O67: 11139.12
A68: Subtotal | C68: =SUM(C62:C67) -> 30085.41681 | D68: 30085.41681 | E68: 30085.41681 | F68: 30085.41681 | G68: 30085.41681 | H68: 30085.41681 | I68: 30085.41681 | J68: 30085.41681 | K68: 30085.41681 | L68: 30085.41681 | M68: 30085.41681 | N68: 30085.41681 | O68: 361025.0017 | P68: =O68/$N$4 -> 30085.41681
A70: 1.1.8 | B70: Porto São Vincente
A71: 1.1.8.1 | B71: Salário base | C71: =saláriosxencargos!$K$34 -> 8315.410909 | D71: =saláriosxencargos!$K$34 -> 8315.410909 | E71: =saláriosxencargos!$K$34 -> 8315.410909 | F71: =saláriosxencargos!$K$34 -> 8315.410909 | G71: =saláriosxencargos!$K$34*(1+$H$3) -> 8315.410909 | H71: =saláriosxencargos!$K$34*(1+$H$3) -> 8315.410909 | I71: =saláriosxencargos!$K$34*(1+$H$3) -> 8315.410909 | J71: =saláriosxencargos!$K$34*(1+$H$3) -> 8315.410909 | K71: =saláriosxencargos!$K$34*(1+$H$3) -> 8315.410909 | L71: =saláriosxencargos!$K$34*(1+$H$3) -> 8315.410909 | M71: =saláriosxencargos!$K$34*(1+$H$3) -> 8315.410909 | N71: =saláriosxencargos!$K$34*(1+$H$3) -> 8315.410909 | O71: =SUM(C71:N71) -> 99784.93091
A72: 1.1.8.2 | B72: 13º salário | C72: =C71*'Encargos Folha'!$D$55 -> 3159.856145 | D72: =D71*'Encargos Folha'!$D$55 -> 3159.856145 | E72: =E71*'Encargos Folha'!$D$55 -> 3159.856145 | F72: =F71*'Encargos Folha'!$D$55 -> 3159.856145 | G72: =G71*'Encargos Folha'!$D$55 -> 3159.856145 | H72: =H71*'Encargos Folha'!$D$55 -> 3159.856145 | I72: =I71*'Encargos Folha'!$D$55 -> 3159.856145 | J72: =J71*'Encargos Folha'!$D$55 -> 3159.856145 | K72: =K71*'Encargos Folha'!$D$55 -> 3159.856145 | L72: =L71*'Encargos Folha'!$D$55 -> 3159.856145 | M72: =M71*'Encargos Folha'!$D$55 -> 3159.856145 | N72: =N71*'Encargos Folha'!$D$55 -> 3159.856145 | O72: =SUM(C72:N72) -> 37918.27375
A73: 1.1.8.3 | B73: Férias | C73: =C71*'Encargos Folha'!$D$56 -> 1521.720196 | D73: =D71*'Encargos Folha'!$D$56 -> 1521.720196 | E73: =E71*'Encargos Folha'!$D$56 -> 1521.720196 | F73: =F71*'Encargos Folha'!$D$56 -> 1521.720196 | G73: =G71*'Encargos Folha'!$D$56 -> 1521.720196 | H73: =H71*'Encargos Folha'!$D$56 -> 1521.720196 | I73: =I71*'Encargos Folha'!$D$56 -> 1521.720196 | J73: =J71*'Encargos Folha'!$D$56 -> 1521.720196 | K73: =K71*'Encargos Folha'!$D$56 -> 1521.720196 | L73: =L71*'Encargos Folha'!$D$56 -> 1521.720196 | M73: =M71*'Encargos Folha'!$D$56 -> 1521.720196 | N73: =N71*'Encargos Folha'!$D$56 -> 1521.720196 | O73: 18260.64236
A74: 1.1.8.4 | B74: Sociais básicos | C74: =(C71)*'Encargos Folha'!$D$57 -> 965.4192065 | D74: =(D71)*'Encargos Folha'!$D$57 -> 965.4192065 | E74: =(E71)*'Encargos Folha'!$D$57 -> 965.4192065 | F74: =(F71)*'Encargos Folha'!$D$57 -> 965.4192065 | G74: =(G71)*'Encargos Folha'!$D$57 -> 965.4192065 | H74: =(H71)*'Encargos Folha'!$D$57 -> 965.4192065 | I74: =(I71)*'Encargos Folha'!$D$57 -> 965.4192065 | J74: =(J71)*'Encargos Folha'!$D$57 -> 965.4192065 | K74: =(K71)*'Encargos Folha'!$D$57 -> 965.4192065 | L74: =(L71)*'Encargos Folha'!$D$57 -> 965.4192065 | M74: =(M71)*'Encargos Folha'!$D$57 -> 965.4192065 | N74: =(N71)*'Encargos Folha'!$D$57 -> 965.4192065 | O74: 11585.03048
A75: 1.1.8.5 | B75: Rescisão | C75: =(C71)*'Encargos Folha'!$D$58 -> 616.1719484 | D75: =(D71)*'Encargos Folha'!$D$58 -> 616.1719484 | E75: =(E71)*'Encargos Folha'!$D$58 -> 616.1719484 | F75: =(F71)*'Encargos Folha'!$D$58 -> 616.1719484 | G75: =(G71)*'Encargos Folha'!$D$58 -> 616.1719484 | H75: =(H71)*'Encargos Folha'!$D$58 -> 616.1719484 | I75: =(I71)*'Encargos Folha'!$D$58 -> 616.1719484 | J75: =(J71)*'Encargos Folha'!$D$58 -> 616.1719484 | K75: =(K71)*'Encargos Folha'!$D$58 -> 616.1719484 | L75: =(L71)*'Encargos Folha'!$D$58 -> 616.1719484 | M75: =(M71)*'Encargos Folha'!$D$58 -> 616.1719484 | N75: =(N71)*'Encargos Folha'!$D$58 -> 616.1719484 | O75: 7394.06338
A76: 1.1.8.8 | B76: Benefícios | C76: =saláriosxencargos!$O$34 -> 464.13 | D76: =saláriosxencargos!$O$34 -> 464.13 | E76: =saláriosxencargos!$O$34 -> 464.13 | F76: =saláriosxencargos!$O$34 -> 464.13 | G76: =saláriosxencargos!$O$34 -> 464.13 | H76: =saláriosxencargos!$O$34 -> 464.13 | I76: =saláriosxencargos!$O$34 -> 464.13 | J76: =saláriosxencargos!$O$34 -> 464.13 | K76: =saláriosxencargos!$O$34 -> 464.13 | L76: =saláriosxencargos!$O$34 -> 464.13 | M76: =saláriosxencargos!$O$34 -> 464.13 | N76: =saláriosxencargos!$O$34 -> 464.13 | O76: 5569.56
A77: Subtotal | C77: =SUM(C71:C76) -> 15042.70841 | D77: 15042.70841 | E77: 15042.70841 | F77: 15042.70841 | G77: 15042.70841 | H77: 15042.70841 | I77: 15042.70841 | J77: 15042.70841 | K77: 15042.70841 | L77: 15042.70841 | M77: 15042.70841 | N77: 15042.70841 | O77: 180512.5009
A80: 2 | B80: Custo Pessoal - salários e encargos
A81: 2.1 | B81: Salário base | C81: =C71+C62+C53+C44+C35+C26+C17+C8 -> 70132.87636 | D81: 70132.87636 | E81: 70132.87636 | F81: 70132.87636 | G81: 70132.87636 | H81: 70132.87636 | I81: 70132.87636 | J81: 70132.87636 | K81: 70132.87636 | L81: 70132.87636 | M81: 70132.87636 | N81: 70132.87636 | O81: =SUM(C81:N81) -> 841594.5164 | P81: =O81/$N$4 -> 70132.87636
A83: 2.2 | B83: Férias e 13º
A84: 2.2.1 | B84: 13º salário | C84: =C72+C63+C54+C45+C36+C27+C18+C9 -> 26650.49302 | D84: 26650.49302 | E84: 26650.49302 | F84: 26650.49302 | G84: 26650.49302 | H84: 26650.49302 | I84: 26650.49302 | J84: 26650.49302 | K84: 26650.49302 | L84: 26650.49302 | M84: 26650.49302 | N84: 26650.49302 | O84: =SUM(C84:N84) -> 319805.9162
A85: 2.2.2 | B85: Férias | C85: =C73+C64+C55+C46+C37+C28+C19+C10 -> 12834.31637 | D85: 12834.31637 | E85: 12834.31637 | F85: 12834.31637 | G85: 12834.31637 | H85: 12834.31637 | I85: 12834.31637 | J85: 12834.31637 | K85: 12834.31637 | L85: 12834.31637 | M85: 12834.31637 | N85: 12834.31637 | O85: =SUM(C85:N85) -> 154011.7965
A87: Subtotal Férias e 13º | C87: =SUM(C84:C86) -> 39484.80939 | D87: =SUM(D84:D86) -> 39484.80939 | E87: 39484.80939 | F87: 39484.80939 | G87: 39484.80939 | H87: 39484.80939 | I87: 39484.80939 | J87: 39484.80939 | K87: 39484.80939 | L87: 39484.80939 | M87: 39484.80939 | N87: 39484.80939 | O87: =SUM(C87:N87) -> 473817.7127
A89: 2.3 | B89: Encargos
A90: 2.3.1 | B90: Sociais básicos | C90: =C11+C20+C29+C38+C47+C56+C65+C74 -> 8142.426946 | D90: 8142.426946 | E90: 8142.426946 | F90: 8142.426946 | G90: 8142.426946 | H90: 8142.426946 | I90: 8142.426946 | J90: 8142.426946 | K90: 8142.426946 | L90: 8142.426946 | M90: 8142.426946 | N90: 8142.426946 | O90: =SUM(C90:N90) -> 97709.12335
A91: 2.3.2 | B91: Previsão de rescisão | C91: =C12+C21+C30+C39+C48+C57+C66+C75 -> 5196.846139 | D91: 5196.846139 | E91: 5196.846139 | F91: 5196.846139 | G91: 5196.846139 | H91: 5196.846139 | I91: 5196.846139 | J91: 5196.846139 | K91: 5196.846139 | L91: 5196.846139 | M91: 5196.846139 | N91: 5196.846139 | O91: =SUM(C91:N91) -> 62362.15366
A93: Subtotal encargos | C93: =SUM(C90:C92) -> 13339.27308 | D93: =SUM(D90:D92) -> 13339.27308 | E93: 13339.27308 | F93: 13339.27308 | G93: 13339.27308 | H93: 13339.27308 | I93: 13339.27308 | J93: 13339.27308 | K93: 13339.27308 | L93: 13339.27308 | M93: 13339.27308 | N93: 13339.27308 | O93: =SUM(C93:N93) -> 160071.277
A94: Total geral | C94: =C93+C87+C81 -> 122956.9588 | D94: =D93+D87+D81 -> 122956.9588 | E94: 122956.9588 | F94: 122956.9588 | G94: 122956.9588 | H94: 122956.9588 | I94: 122956.9588 | J94: 122956.9588 | K94: 122956.9588 | L94: 122956.9588 | M94: 122956.9588 | N94: 122956.9588 | O94: 1475483.506 | P94: =O94/$N$4 -> 122956.9588

Sheet Serviços Terceirizados
A1: 5. CUSTO COM SERVIÇOS TERCEIRIZADOS
A2: ='custo pessoal mês'!A2 -> Morada Nova de Minas
A3: 5.1. Serviços Terceirizados
A4: Ítem | B4: Descrição | C4: Unid | D4: Quant | E4: P. Unit R$ | F4: P. Total R$ | G4: Observações
B5: Veículos
A6: 1 | B6: VEÍCULO KOMB - TRANSPORTE PESSOAL | C6: MÊS | D6: 12 | E6: 2281.69 | F6: =D6*E6 -> 27380.28 | G6: Aluguel Mensal sem combustivel e motorista
A7: 2 | F7: 0
A8: 3 | F8: 0
A9: 4 | F9: 0
A10: 5 | F10: 0
A11: 6 | F11: 0
A12: 7 | F12: 0
B14: Máquinas e caminhões
A15: 8 | B15: Veiculo caminhão leve até 4.000 kg | C15: HORA/ANO | D15: 480 | E15: 104.22 | F15: =D15*E15 -> 50025.6 | G15: Aluguel hora C/ combustivel e motorista
A16: 9 | B16: Pá carregadeira até 140 HP (SEINFRA) | C16: HORA/ANO | D16: 180 | E16: 148.13 | F16: 26663.4 | G16: Manutenção atracadouro
A17: 10 | B17: Motoniveladora até 140HP (SEINFRA) | C17: HORA/ANO | D17: 180 | E17: 148.98 | F17: 26816.4 | G17: Manutenção atracadouro
A18: 11 | F18: 0
A19: 12 | F19: 0
A20: 13 | F20: 0
A21: 14 | F21: 0
A22: 15 | F22: 0
A23: 16 | F23: 0
A24: 17 | F24: 0
A25: 18 | F25: 0
A26: 19 | F26: 0
A27: CUSTO TOTAL MÁQ/VEÍCULOS | F27: =SUM(F6:F25) -> 130885.68
A30: 5.2. Serviços Terceirizados de Manutenção de Balsas
A31: Ítem | B31: Descrição | C31: Unid | D31: Quant | E31: P. Unit R$ | F31: P. Total R$ | G31: Observações
A32: 1 | B32: ='Manutenção Balsas '!A6 -> BALSA E REBOCADOR CHICO COELHO | C32: verba | D32: 1 | E32: 4000 | F32: =D32*E32 -> 4000 | H32: ='Manutenção Balsas '!B6 -> INDAIÁ DE CIMA
A33: 2 | B33: ='Manutenção Balsas '!A7 -> BALSA E REBOCADOR MARIA RAQUEL- Dª.MIQUITA | C33: verba | D33: 1 | E33: 4000 | F33: =D33*E33 -> 4000 | H33: ='Manutenção Balsas '!B7 -> NOVO
A34: 3 | B34: ='Manutenção Balsas '!A8 -> BALSA EXTREMA | C34: verba | D34: 1 | E34: 2500 | F34: 2500 | H34: ='Manutenção Balsas '!B8 -> INDAIÁ DE CIMA
A35: 4 | B35: ='Manutenção Balsas '!A9 -> BALSA INDAIÁ | C35: verba | D35: 1 | E35: 2500 | F35: 2500 | H35: ='Manutenção Balsas '!B9 -> EXTREMA
A36: 6 | B36: ='Manutenção Balsas '!A10 -> BALSA SANTA MARIA | C36: verba | D36: 1 | E36: 2500 | F36: 2500 | H36: ='Manutenção Balsas '!B10 -> SÃO VINCENTE
A37: 7 | B37: ='Manutenção Balsas '!A11 -> BALSA MORADA NOVA II | C37: verba | D37: 1 | E37: 2500 | F37: 2500 | H37: ='Manutenção Balsas '!B11 -> INDAIÁ DE BAIXO
A38: 8 | B38: ='Manutenção Balsas '!A12 -> BALSA SAGARANA | C38: verba | D38: 1 | E38: 3500 | F38: 3500 | H38: ='Manutenção Balsas '!B12 -> MELANCIAS
A39: 9 | B39: ='Manutenção Balsas '!A13 -> BALSA GUARUJÁ | C39: verba | D39: 1 | E39: 4000 | F39: 4000 | H39: ='Manutenção Balsas '!B13 -> NOVO
A40: 10 | B40: ='Manutenção Balsas '!A14 -> 0 | C40: verba | F40: 0 | H40: ='Manutenção Balsas '!B14 -> 0
A41: 11 | B41: ='Manutenção Balsas '!A15 -> 0 | F41: 0 | H41: ='Manutenção Balsas '!B15 -> 0
A42: 12 | B42: ='Manutenção Balsas '!A16 -> 0 | F42: 0 | H42: ='Manutenção Balsas '!B16 -> 0
A43: 13 | B43: ='Manutenção Balsas '!A17 -> 0 | F43: =D43*E43 -> 0 | H43: ='Manutenção Balsas '!B17 -> 0
A44: 14 | B44: ='Manutenção Balsas '!A18 -> 0 | F44: =D44*E44 -> 0 | H44: ='Manutenção Balsas '!B18 -> 0
A45: 15 | B45: ='Manutenção Balsas '!A19 -> 0 | F45: =D45*E45 -> 0 | H45: ='Manutenção Balsas '!B19 -> 0
A46: 16 | B46: ='Manutenção Balsas '!A20 -> 0 | F46: =D46*E46 -> 0 | H46: ='Manutenção Balsas '!B20 -> 0
A47: 17 | H47: Todos
A48: CUSTO TOTAL COM MANUTENÇÃO MÁQ/VEÍCULOS | F48: =SUM(F32:F47) -> 25500
B50: 2. Apropriação dos custos aos Portos
B51: Descrição | F51: Custo Serviços
B52: NOVO | F52: =SUMIF($H$32:$H$47,$B52,$F$32:$F$47) -> 8000
B53: INDAIÁ DE BAIXO | F53: 2500
B54: INDAIÁ DE CIMA | F54: 6500
B55: EXTREMA | F55: 2500
B56: SÃO VINCENTE | F56: 2500
B57: MELANCIAS | F57: 3500
B58: Todos | F58: 0
B59: TOTAL | F59: =SUM(F52:F58) -> 25500
A62: 5.3 Terceirização de Serviços de Manutenção Predial
A63: Destino | B63: Descrição | C63: Unid | D63: Quant | E63: P. Unit R$ | F63: P. Total R$ | G63: Observações
A64: ADMINISTRAÇÃO | F64: =D64*E64 -> 0
A65: INDAIÁ DE BAIXO | F65: =D65*E65 -> 0
F66: =D66*E66 -> 0
F67: =D67*E67 -> 0
F68: =D68*E68 -> 0
F69: 0
F70: 0
F71: 0
F72: 0
F73: 0
A74: VALOR TOTAL (R$) | F74: =SUM(F64:F73) -> 0
A75: QUANTIDADE DE ANOS CORRESPONDENTE AO SERVIÇO------------------------------------------------------------------------------------------------------------> | F75: 1
A76: VALOR TOTAL (ANO) -------------------------------------------------------------------------------------------------------------------------------------------------------------> | F76: =IF(F74=0,0,F74/F75) -> 0
B78: 2. Apropriação dos custos aos Portos
B79: Descrição | F79: Custo Serviços
B80: NOVO | F80: =SUMIF($A$64:$A$73,$B80,$F$64:$F$73) -> 0
B81: INDAIÁ DE BAIXO | F81: =SUMIF($A$64:$A$73,$B81,$F$64:$F$73) -> 0
B82: INDAIÁ DE CIMA | F82: 0
B83: EXTREMA | F83: 0
B84: SÃO VINCENTE | F84: 0
B85: MELANCIAS | F85: 0
B86: MANUTENÇÃO | F86: 0
B87: ADMINISTRAÇÃO | F87: 0
B88: TOTAL | F88: =SUM(F80:F87) -> 0
A91: 5.4. Serviços Terceirizados de Infra-estrutura dos portos
A92: Ítem | B92: Descrição do Porto | C92: Unid | D92: Quant | E92: P. Unit R$ | F92: P. Total R$ | G92: Observações
A93: 1 | B93: NOVO | F93: =D93*E93 -> 0
A94: 2 | B94: INDAIÁ DE BAIXO | F94: =D94*E94 -> 0
A95: 3 | B95: INDAIÁ DE CIMA | C95: verba | D95: 1 | E95: 3000 | F95: 3000 | G95: poço artesiano
A96: 4 | B96: EXTREMA | F96: 0
A97: 5 | B97: SÃO VINCENTE | F97: 0
A98: 6 | B98: MELANCIAS | C98: verba | D98: 1 | E98: 3000 | F98: 3000 | G98: poço artesiano
A99: 7 | F99: 0
A100: 8
A101: 9
A102: 10 | F102: =D102*E102 -> 0
A103: CUSTO TOTAL COM MANUTENÇÃO MÁQ/VEÍCULOS | F103: =SUM(F93:F102) -> 6000

Sheet Custos Gerais
A1: 5. CUSTOS GERAIS
A2: ='Serviços Terceirizados'!A2 -> Morada Nova de Minas
A4: Descrição | B4: Valor (R$) | C4: Observações
A5: Custos Gerais Diretos em Relação ao Município
A6: Energia | B6: 14244
A7: Água | B7: 43600
A8: Material Gráfico | B8: =4050+4050+187.2+3114.1 -> 11401.3
A9: Material de Consumo Geral | B9: 1400
A10: Material escritório (almoxarifado) | B10: 6000
A11: Outros | B11: 3000 | C11: curso marinheiro/hospedagem/manutenção extintores almoxarifado
A19: Sub-total Custos Gerais Diretos | B19: =SUM(B6:B18) -> 79645.3
A21: Custos Gerais Indiretos em Relação ao Município
A22: Energia/água Escritório Prefeitura
A23: Internet
A24: Material de Consumo Geral
A25: Outros
A32: Sub-total Custos Gerais Indiretos | B32: =SUM(B22:B31) -> 0
A34: Total Custos Gerais | B34: =B32+B19 -> 79645.3

Sheet Outros Materiais
A1: 4. CUSTO COM OUTROS MATERIAIS DE MANUTENÇÃO
A2: ='Custos Gerais'!A2 -> Morada Nova de Minas
A4: 4.1. Materiais utilizados diretamente Infra-estrutura dos portos
A5: Ítem | B5: Descrição do Porto | C5: Unid | D5: Quant | E5: P. Unit R$ | F5: P. Total R$ | G5: Observações
A6: 1 | B6: NOVO | F6: =D6*E6 -> 0
A7: 2 | B7: INDAIÁ DE BAIXO | F7: =D7*E7 -> 0
A8: 3 | B8: INDAIÁ DE CIMA | C8: verba | D8: 1 | E8: 3000 | F8: 3000 | G8: poço artesiano
A9: 4 | B9: EXTREMA | F9: 0
A10: 5 | B10: SÃO VINCENTE | F10: 0
A11: 6 | B11: MELANCIAS | F11: 0
A12: 7 | B12: MANUTENÇÃO | F12: 0
A13: 8 | B13: ADMINISTRAÇÃO | F13: 0
A14: 9 | F14: 0
A15: 10 | F15: 0
A16: CUSTO TOTAL COM MANUTENÇÃO MÁQ/VEÍCULOS | F16: =SUM(F6:F15) -> 3000
A19: 4.2. Materiais utilizados indiretamente embarcações dos portos
A20: Ítem | B20: Descrição do Porto | C20: Unid | D20: Quant | E20: P. Unit R$ | F20: P. Total R$ | G20: Observações
A21: 1 | B21: MATERIAIS DIVERSOS UTILIZADOS NAS EMBARCAÇÕES | C21: verba | D21: 4 | E21: 10850 | F21: =D21*E21 -> 43400
A22: 2 | B22: MATERIAL DE CONSUMO DESTINADO AO USO DA OFICINA | C22: verba | D22: 4 | E22: 6290.3 | F22: =D22*E22 -> 25161.2
A23: 3 | B23: MATERIAL DE CONSUMO DESTINADO AO USO DO LAVADOR | C23: verba | D23: 4 | E23: =4193.39+33.78 -> 4227.17 | F23: 16908.68
A24: 4 | B24: MATERIAL MANUTENÇÃO MÁQUINA DE SOLDA | C24: verba | D24: 4 | E24: 16312.56 | F24: 65250.24
A25: 5 | F25: 0
A26: 6 | F26: 0
A27: 7 | F27: 0
A28: 8
A29: 9
A30: 10 | F30: =D30*E30 -> 0
A31: CUSTO TOTAL COM MANUTENÇÃO MÁQ/VEÍCULOS | F31: =SUM(F21:F30) -> 150720.12

Sheet Manutenção Veículos
A1: 3. CUSTO COM MÁQUINAS E VEÍCULOS
A2: =Menu!B5 -> Morada Nova de Minas
A4: Descrição | B4: Quantidade | C4: Valor Unitário R$ | D4: Combustível | E4: Consumo km/lt ou lt/hs | F4: Und Cons. | G4: Km/hs Ano | H4: Combustível Consumido (L) | I4: Horas por ano | J4: Custo Combustível Ano (R$) | K4: Vida útil Anos | L4: % Residual | M4: Valor Residual | N4: Depreciação Anual | O4: % Custo C/ Manutenção | P4: Valor anual Manutenção | Q4: IPVA/TAX/SEG | R4: SEGURO | S4: Custo Total
A5: Veículos
A6: KOMBI | B6: 1 | D6: Gasolina | E6: =IF(G6=0,0,G6/H6) -> 8 | F6: km/lt | G6: 20000 | H6: =G6/8 -> 2500 | J6: =H6*4.7 -> 11750 | M6: =C6*L6 -> 0 | N6: =IF(C6=0,0,(C6-M6)/K6) -> 0 | O6: =IF(C6=0,0,P6/C6) -> 0 | Q6: =0.03*C6 -> 0 | S6: =J6+N6+P6+Q6+R6 -> 11750
B7: 1 | D7: Gasolina | F7: km/lt
E8: =IF(G8=0,0,G8/H8) -> 0 | M8: =C8*L8 -> 0 | N8: =IF(C8=0,0,(C8-M8)/K8) -> 0 | O8: 0 | Q8: =0.03*C8 -> 0 | S8: =J8+N8+P8+Q8+R8 -> 0
E9: 0 | M9: 0 | N9: 0 | O9: 0 | Q9: 0 | S9: 0
A11: Máquinas e caminhões
S17: =J17+N17+P17+Q17+R17 -> 0
S18: =J18+N18+P18+Q18+R18 -> 0
A19: CUSTO TOTAL COM MANUTENÇÃO MÁQ/VEÍCULOS | G19: =SUM(G6:G18) -> 20000 | H19: =SUM(H6:H18) -> 2500 | I19: =SUM(I6:I18) -> 0 | N19: =SUM(N6:N16) -> 0 | P19: =SUM(P6:P16) -> 0 | Q19: =SUM(Q6:Q16) -> 0 | R19: =SUM(R6:R16) -> 0 | S19: =SUM(S6:S16) -> 11750
A20: Participação nos custos totais de manutenção | J20: =J19/$S$19 -> 0 | N20: =N19/$S$19 -> 0 | P20: =P19/$S$19 -> 0 | Q20: =Q19/$S$19 -> 0 | S20: =S19/$S$19 -> 1
A22: 2. Apropriação dos custos aos departamentos
A23: Descrição | B23: Quantidade | C23: Taxa de Ocupação | D23: Custo Total anual
A24: 1.2 Patrulha Mecanizada
A25: Descrição veículo/máquina a disposição | B25: qtde | C25: % aplicação | D25: custo patrulha | E25: estrada | G25: canais | J25: obras
E26: % | F26: $ | G26: % | I26: $ | J26: % | K26: $
A27: Veículo Leve | B27: 1 | C27: 1 | D27: =B27*C27*#REF! ->  | E27: 0 | F27: =$D27*E27 ->  | G27: 0.8 | I27: =$D27*G27 ->  | J27: 0.2 | K27: =$D27*J27 -> 
A28: Caminhão Comboio | B28: 1 | C28: 1 | D28: =B28*C28*S12 -> 0 | E28: 0 | F28: =$D28*E28 -> 0 | G28: 0.7 | I28: 0 | J28: 0.3 | K28: 0 | L28: km
A29: Trator Agrícola c/ Roçadeira | B29: 2 | C29: 1 | D29: =B29*C29*#REF! ->  | E29: 0 | G29: 0.7 | J29: 0.3 | L29: hora
A30: Caminhão Carroceria | B30: 1 | C30: 1 | D30: =B30*C30*#REF! ->  | E30: 0 | G30: 0.7 | J30: 0.3 | L30: km
A31: Escavadeira Hidráulica | B31: 1 | C31: 1 | D31: =B31*C31*#REF! ->  | E31: 0 | G31: 0.7 | J31: 0.3 | L31: hora
A32: Retroescavadeira | B32: 1 | C32: 1 | D32: =B32*C32*S14 -> 0 | E32: 0 | F32: 0 | G32: 0.7 | I32: 0 | J32: 0.3 | K32: 0 | L32: hora
A33: Caminhão Basculante | B33: 4 | C33: 1 | D33: =B33*C33*S16 -> 0 | E33: 0 | F33: 0 | G33: 0.7 | I33: 0 | J33: 0.3 | K33: 0 | L33: km
A34: Caminhão draga | B34: 1 | C34: 1 | D34: =B34*C34*#REF! ->  | E34: 0 | G34: 0.7 | J34: 0.3 | L34: km
A35: Caminhão guincho | B35: 1 | C35: 1 | D35: =B35*C35*#REF! ->  | E35: 0 | G35: 0.7 | J35: 0.3 | L35: km
A36: Caminhão Pipa 10000 L | B36: 1 | C36: 1 | D36: =B36*C36*#REF! ->  | E36: 0 | G36: 0.7 | J36: 0.3 | L36: km
A37: Motoniveladora | B37: 2 | C37: 1 | D37: =B37*C37*#REF! ->  | E37: 0 | G37: 0.7 | J37: 0.3 | L37: hora
A38: Pá Carregadeira | B38: 1 | C38: 1 | D38: =B38*C38*#REF! ->  | E38: 0 | G38: 0.7 | J38: 0.3 | L38: hora
A39: Rolo Compactador LR95 - DYNAPAC - Ano 1995 | B39: 1 | C39: 1 | D39: =B39*C39 -> 1 | E39: 0 | F39: 0 | G39: 0.7 | I39: 0.7 | J39: 0.3 | K39: 0.3
A40: Trator de Esteira 7D | B40: 1 | C40: 1 | D40: =B40*C40*#REF! ->  | E40: 0 | G40: 0.7 | J40: 0.3 | L40: hora
A42: 1.2.6 Total em Patrulha | B42: =SUM(B27:B41) -> 19 | D42: =SUM(D27:D40) ->  | E42: 0 | G42: 9.9 | J42: 4.1
A45: 1.4 Manutenção Eletro-Mecânica
A46: 1.4.1 MANUTENÇÃO MECÂNICA
A47: Veículo Leve | B47: 1 | C47: 1 | D47: =B47*C47*#REF! -> 
A48: Veículo Médio | B48: 1 | C48: 1 | D48: =B48*C48*#REF! -> 
A49: Caminhão Guincho | B49: 0 | C49: 0 | D49: =B49*#REF!*C49 -> 
A50: Motocicleta porte Médio | B50: 0 | C50: 0 | D50: =B50*C50*#REF! -> 
A51: Subtotal | B51: =SUM(B47:B50) -> 2 | D51: =SUM(D47:D50) ->  | E51: =D51/B51 -> 
A53: 1.4.2 MANUTENÇÃO ELÉTRICA
A54: Veículo Médio | B54: 1 | C54: 1 | D54: =B54*C54*#REF! -> 
A55: Veículo Leve | B55: 1 | C55: 1 | D55: =B55*C55*#REF! -> 
A56: Motocicleta porte Médio | B56: 1 | C56: 1 | D56: =B56*C56*#REF! -> 
A57: Subtotal | B57: =SUM(B54:B56) -> 3 | D57: =SUM(D54:D56) ->  | E57: =D57/B57 -> 
A59: 1.4.3 Total em Manutenção Eletro-Mecânica | D59: =D57+D51 -> 
A61: 1.5 Operação do Sistema
A62: 1.5.1 SISTEMA PRINCIPAL
D63: =B63*C63*S14 -> 0
D64: =B64*C64*S16 -> 0
A65: Subtotal | D65: =SUM(D63:D64) -> 0
A67: 1.5.2 SISTEMA SECUNDÁRIO
A68: Motocicleta porte Médio | B68: 16 | C68: 1 | D68: =B68*C68*#REF! -> 
A69: Subtotal | B69: =D69/B68 ->  | D69: =SUM(D68) -> 
A71: 1.5.3 ÁREA F
A72: Motocicleta porte Médio | B72: 4 | C72: 1 | D72: =B72*C72*#REF! -> 
A73: Subtotal | B73: =D73/B72 ->  | D73: =SUM(D72) -> 
A76: 1.5.5 Total Operação do Sistema | D76: =D73+D69+D65 -> 
A78: 1.6 Administração
A79: 1.6.1 ADMINISTRAÇÃO
A80: Veículo Leve | B80: 3 | C80: 1 | D80: =B80*C80*#REF! -> 
A81: Subtotal | B81: =D81/B80 ->  | D81: =SUM(D80) -> 
A83: 1.6.2 OUTROS
D84: =B84*C84*#REF! -> 
D85: =SUM(D84) -> 
A87: 1.6.3 Total em Administração | D87: =D85+D81 -> 
A89: 1.7 TOTAL GERAL VEÍCULOS E MÁQUINAS | D89: =D87+D76+D59+D42 -> 

Sheet Manutenção Balsas
A1: 2. CUSTO DE MANUTENÇÃO DAS BALSAS | I1: 2. CUSTO DE MANUTENÇÃO DAS BALSAS
A2: =Menu!B5 -> Morada Nova de Minas | I2: =A2 -> Morada Nova de Minas
A4: 2.1 Custo Manutenção Balsas | I4: 2.1 Custo Manutenção Balsas
A5: Descrição | B5: Porto | C5: Quantidade | D5: Valor Unitário R$ | E5: Combustível | F5: Consumo lt/hs | G5: Horas/ano | H5: Combustível Consumido (L) | I5: Custo Combustível Ano (R$) | J5: Vida útil Anos | K5: % Residual | L5: Valor Residual | M5: Depreciação Anual | N5: % Custo C/ Manutenção | O5: Valor anual Manutenção | P5: SEGURO/LICENCIAMENTO | Q5: Custo Total
A6: BALSA E REBOCADOR CHICO COELHO | B6: INDAIÁ DE CIMA | C6: 1 | E6: Diesel | F6: =IF(G6=0,0,H6/G6) -> 25.64393346 | G6: 511 | H6: 13104.05 | I6: =H6*3.39 -> 44422.7295 | L6: =D6*K6 -> 0 | M6: =IF(D6=0,0,(D6-L6)/J6) -> 0 | N6: =IF(D6=0,0,O6/D6) -> 0 | O6: 29199.786 | P6: 6000 | Q6: =I6+M6+O6+P6 -> 79622.5155
A7: BALSA E REBOCADOR MARIA RAQUEL- Dª.MIQUITA | B7: NOVO | C7: 1 | E7: Diesel | F7: =IF(G7=0,0,H7/G7) -> 25.47524181 | G7: 641 | H7: 16329.63 | I7: =H7*3.39 -> 55357.4457 | L7: 0 | M7: 0 | N7: 0 | O7: 35591.472 | P7: 6000 | Q7: =I7+M7+O7+P7 -> 96948.9177
A8: BALSA EXTREMA | B8: INDAIÁ DE CIMA | C8: 1 | E8: Diesel | F8: 8.093039648 | G8: 1362 | H8: 11022.72 | I8: 37367.0208 | L8: 0 | M8: 0 | N8: 0 | O8: 20478.892 | P8: 6000 | Q8: 63845.9128
A9: BALSA INDAIÁ | B9: EXTREMA | C9: 1 | E9: Diesel | F9: 7.01754386 | G9: 513 | H9: 3600 | I9: 12204 | L9: 0 | M9: 0 | N9: 0 | O9: 26673.444 | P9: 6000 | Q9: 44877.444
A10: BALSA SANTA MARIA | B10: SÃO VINCENTE | C10: 1 | E10: Diesel | F10: 5.690760499 | G10: 881 | H10: 5013.56 | I10: 16995.9684 | L10: 0 | M10: 0 | N10: 0 | O10: 87590.02 | P10: 6000 | Q10: 110585.9884
A11: BALSA MORADA NOVA II | B11: INDAIÁ DE BAIXO | C11: 1 | E11: Diesel | F11: 8.803283358 | G11: 1334 | H11: 11743.58 | I11: 39810.7362 | L11: 0 | M11: 0 | N11: 0 | O11: 34941.788 | P11: 6000 | Q11: 80752.5242
A12: BALSA SAGARANA | B12: MELANCIAS | C12: 1 | E12: Diesel | F12: =IF(G12=0,0,H12/G12) -> 9.956550598 | G12: 919 | H12: 9150.07 | I12: 31018.7373 | L12: 0 | M12: 0 | N12: 0 | O12: 36302.224 | P12: 6000 | Q12: 73320.9613
A13: BALSA GUARUJÁ | B13: NOVO | C13: 1 | E13: Diesel | F13: =IF(G13=0,0,H13/G13) -> 16.17529837 | G13: 3184 | H13: 51502.15 | I13: 174592.2885 | L13: 0 | M13: 0 | N13: 0 | O13: 114446.584 | P13: 6000 | Q13: 295038.8725
L14: 0 | M14: 0 | N14: 0 | Q14: 0
L15: 0 | M15: 0 | N15: 0 | P15: 0 | Q15: 0
L16: 0 | M16: 0 | N16: 0 | P16: 0 | Q16: 0
L17: 0 | M17: 0 | N17: 0 | P17: 0 | Q17: 0
L18: 0 | M18: 0 | N18: 0 | Q18: 0
L19: 0 | M19: 0 | N19: 0 | Q19: 0
L20: 0 | M20: 0 | N20: 0 | Q20: 0
L21: 0 | M21: 0 | N21: 0 | Q21: 0
A22: CUSTO TOTAL COM MANUTENÇÃO MÁQ/VEÍCULOS | G22: =SUM(G6:G21) -> 9345 | H22: =SUM(H6:H21) -> 121465.76 | I22: =SUM(I6:I21) -> 411768.9264 | M22: =SUM(M6:M21) -> 0 | O22: =SUM(O6:O21) -> 385224.21 | P22: =SUM(P6:P21) -> 48000 | Q22: =SUM(Q6:Q21) -> 844993.1364
A23: Participação nos custos totais de manutenção | I23: =I22/$Q$22 -> 0.4873044628 | M23: =M22/$Q$22 -> 0 | O23: =O22/$Q$22 -> 0.4558903421 | Q23: =Q22/$Q$22 -> 1
A26: 2.2. Apropriação dos custos aos Portos
A27: Descrição | B27: Combustível | C27: Depreciação | D27: Manutenção | E27: Seguro/Liceniamento | F27: Total | G27: %
A28: NOVO | B28: =SUMIF($B$6:$B$21,$A28,$I$6:$I$21) -> 229949.7342 | C28: =SUMIF($B$6:$B$21,$A28,$M$6:$M$21) -> 0 | D28: =SUMIF($B$6:$B$21,$A28,$O$6:$O$21) -> 150038.056 | E28: =SUMIF($B$6:$B$21,$A28,$P$6:$P$21) -> 12000 | F28: =SUM(B28:E28) -> 391987.7902 | G28: =F28/$F$35 -> 0.463894644
A29: INDAIÁ DE BAIXO | B29: 39810.7362 | C29: 0 | D29: 34941.788 | E29: 6000 | F29: =SUM(B29:E29) -> 80752.5242 | G29: =F29/$F$35 -> 0.09556589364
A30: INDAIÁ DE CIMA | B30: 81789.7503 | C30: 0 | D30: 49678.678 | E30: 12000 | F30: 143468.4283 | G30: 0.1697865014
A31: EXTREMA | B31: 12204 | C31: 0 | D31: 26673.444 | E31: 6000 | F31: 44877.444 | G31: 0.05310983257
A32: SÃO VINCENTE | B32: 16995.9684 | C32: 0 | D32: 87590.02 | E32: 6000 | F32: 110585.9884 | G32: 0.1308720552
A33: MELANCIAS | B33: 31018.7373 | C33: 0 | D33: 36302.224 | E33: 6000 | F33: 73320.9613 | G33: 0.08677107321
B34: 0 | C34: 0 | D34: 0 | E34: 0 | F34: 0 | G34: 0
A35: TOTAL | B35: =SUM(B28:B34) -> 411768.9264 | C35: =SUM(C28:C34) -> 0 | D35: =SUM(D28:D34) -> 385224.21 | E35: =SUM(E28:E34) -> 48000 | F35: =SUM(F28:F34) -> 844993.1364 | G35: 1

Sheet capacidade
A1: 9. ESTUDO DA CAPACIDADE INSTALADA DAS BALSAS/PORTOS
A2: =Menu!B5 -> Morada Nova de Minas
A3: ='Custo Pessoal'!$B$4 -> JUN. 2018
A4: 9.1 Caracterização das Balsas
A5: Descrição | B5: Porto | C5: Capacidade (TON) | D5: comprimento (M) | E5: largura (M) | F5: área (m²)
A6: ='Manutenção Balsas '!A6 -> BALSA E REBOCADOR CHICO COELHO | B6: ='Manutenção Balsas '!B6 -> INDAIÁ DE CIMA | C6: 80 | D6: 36 | E6: 8 | F6: =D6*E6 -> 288
A7: ='Manutenção Balsas '!A7 -> BALSA E REBOCADOR MARIA RAQUEL- Dª.MIQUITA | B7: ='Manutenção Balsas '!B7 -> NOVO | C7: 80 | D7: 36 | E7: 8 | F7: =D7*E7 -> 288
A8: ='Manutenção Balsas '!A8 -> BALSA EXTREMA | B8: ='Manutenção Balsas '!B8 -> INDAIÁ DE CIMA | C8: 50 | D8: 17.52 | E8: 6 | F8: =D8*E8 -> 105.12
A9: ='Manutenção Balsas '!A9 -> BALSA INDAIÁ | B9: ='Manutenção Balsas '!B9 -> EXTREMA | C9: 34 | D9: 17.6 | E9: 6.22 | F9: =D9*E9 -> 109.472
A10: ='Manutenção Balsas '!A10 -> BALSA SANTA MARIA | B10: ='Manutenção Balsas '!B10 -> SÃO VINCENTE | C10: 48 | D10: 17.52 | E10: 6 | F10: =D10*E10 -> 105.12
A11: ='Manutenção Balsas '!A11 -> BALSA MORADA NOVA II | B11: ='Manutenção Balsas '!B11 -> INDAIÁ DE BAIXO | C11: 81.4 | D11: 26.4 | E11: 7.3 | F11: 192.72
A12: ='Manutenção Balsas '!A12 -> BALSA SAGARANA | B12: ='Manutenção Balsas '!B12 -> MELANCIAS | C12: 50.6 | D12: 22 | E12: 7 | F12: 154
A13: ='Manutenção Balsas '!A13 -> BALSA GUARUJÁ | B13: ='Manutenção Balsas '!B13 -> NOVO | C13: 120.5 | D13: 34 | E13: 9 | F13: 306
A14: ='Manutenção Balsas '!A14 -> 0 | B14: ='Manutenção Balsas '!B14 -> 0 | F14: 0
A15: ='Manutenção Balsas '!A15 -> 0 | B15: ='Manutenção Balsas '!B15 -> 0 | F15: 0
A16: ='Manutenção Balsas '!A16 -> 0 | B16: ='Manutenção Balsas '!B16 -> 0 | F16: 0
A17: ='Manutenção Balsas '!A17 -> 0 | B17: ='Manutenção Balsas '!B17 -> 0 | F17: 0
A18: ='Manutenção Balsas '!A18 -> 0 | B18: ='Manutenção Balsas '!B18 -> 0 | F18: 0
A19: ='Manutenção Balsas '!A19 -> 0 | B19: ='Manutenção Balsas '!B19 -> 0 | F19: 0
A20: ='Manutenção Balsas '!A20 -> 0 | B20: ='Manutenção Balsas '!B20 -> 0 | F20: 0
A21: ='Manutenção Balsas '!A21 -> 0 | B21: ='Manutenção Balsas '!B21 -> 0 | F21: 0
A22: CUSTO TOTAL COM MANUTENÇÃO MÁQ/VEÍCULOS | F22: =SUM(F6:F21) -> 1548.432
A25: 9.2. Capacidade dos Portos
A26: Descrição | B26: Capacidade/Embarcações | C26: Qtde Horários/dia | D26: Capacidade Transporte/Mês (ton) | E26: Capacidade Transporte (m²) | F26: Capacidade qtde veículos p/ viagem | G26: Capacidade qtde veículos p/ ano | H26: Veículos Transportados | I26: Uso Capacidade
A27: NOVO | B27: =SUMIF($B$6:$B$21,$A27,$C$6:$C$21) -> 200.5 | C27: 20 | D27: =B27*C27*30*12 -> 1443600 | E27: =SUMIF($B$6:$B$21,$A27,$F$6:$F$21) -> 594 | F27: =estatísticatransporte!F32 -> 71.46532329 | G27: =C27*F27*30*12 -> 514550.3277 | H27: =Produção!N6 -> 39775 | I27: =H27/G27 -> 0.07730050465
A28: INDAIÁ DE BAIXO | B28: 81.4 | C28: 16 | D28: =B28*C28*30*12 -> 468864 | E28: 192.72 | F28: =estatísticatransporte!F64 -> 49.49282369 | G28: =C28*F28*30*12 -> 285078.6644 | H28: =Produção!N10 -> 16170 | I28: 0.05672118618
A29: INDAIÁ DE CIMA | B29: 130 | C29: 14 | D29: =B29*C29*30*12 -> 655200 | E29: 393.12 | F29: =estatísticatransporte!F96 -> 69.89822423 | G29: 352287.0501 | H29: =Produção!N14 -> 11886 | I29: 0.03373953143
A30: EXTREMA | B30: 34 | C30: 10 | D30: =B30*C30*22*12 -> 89760 | E30: 109.472 | F30: =estatísticatransporte!F127 -> 9.842108785 | G30: 35431.59163 | H30: =Produção!N19 -> 7235 | I30: 0.2041963024
A31: SÃO VINCENTE | B31: 48 | C31: 16 | D31: =B31*C31*30*12 -> 276480 | E31: 105.12 | F31: =estatísticatransporte!F158 -> 13.90850723 | G31: 80113.00167 | H31: =Produção!N23 -> 9239 | I31: 0.1153246016
A32: MELANCIAS | B32: 50.6 | C32: 12 | D32: =B32*C32*30*12 -> 218592 | E32: 154 | F32: =estatísticatransporte!F189 -> 29.07354746 | G32: 125597.725 | H32: =Produção!N27 -> 4587 | I32: 0.03652136214
B33: 0 | D33: =B33*C33*30*12 -> 0 | E33: 0 | G33: 0
A34: TOTAL | B34: =SUM(B27:B33) -> 544.5 | D34: =SUM(D27:D33) -> 3152496 | E34: =SUM(E27:E33) -> 1548.432 | G34: =SUM(G27:G33) -> 1393058.361 | H34: =SUM(H27:H33) -> 88892 | I34: =H34/G34 -> 0.06381067909

Sheet Apropriação
A1: 7. PLANILHA DE APROPRIAÇÃO DE CUSTOS SERVIÇO DE TRANSPORTE POR MEIO DE BALSAS
A2: =Menu!B5 -> Morada Nova de Minas
A4: I- Custo por Tipo e Centro de Custo
A5: Descrição | B5: CLASSIFICAÇÃO | C5: ='Manutenção Balsas '!A28 -> NOVO | D5: ='Manutenção Balsas '!A29 -> INDAIÁ DE BAIXO | E5: ='Manutenção Balsas '!A30 -> INDAIÁ DE CIMA | F5: ='Manutenção Balsas '!A31 -> EXTREMA | G5: ='Manutenção Balsas '!A32 -> SÃO VINCENTE | H5: ='Manutenção Balsas '!A33 -> MELANCIAS | I5: MANUTENÇÃO | J5: ADMINISTRAÇÃO | K5: TOTAL GERAL | L5: %
A7: 1. Custo Pessoal | C7: =SUM(C8:C12) -> 349885.8817 | D7: 174942.9409 | E7: 174942.9409 | F7: 174942.9409 | G7: 174942.9409 | H7: 174942.9409 | I7: 170600.3856 | J7: 80282.5344 | K7: =SUM(C7:J7) -> 1475483.506 | L7: =K7/$K$32 -> 0.5408708008
A8: Salários | B8: Fixo | C8: ='custo pessoal mês'!O62 -> 199569.8618 | D8: ='custo pessoal mês'!O35 -> 99784.93091 | E8: ='custo pessoal mês'!O44 -> 99784.93091 | F8: ='custo pessoal mês'!O26 -> 99784.93091 | G8: ='custo pessoal mês'!O71 -> 99784.93091 | H8: ='custo pessoal mês'!O53 -> 99784.93091 | I8: ='custo pessoal mês'!O17 -> 97308 | J8: ='custo pessoal mês'!O8 -> 45792 | K8: 841594.5164 | L8: 0.3085049058
A9: 13º salário | B9: Fixo | C9: ='custo pessoal mês'!O63 -> 75836.54749 | D9: ='custo pessoal mês'!O36 -> 37918.27375 | E9: ='custo pessoal mês'!O45 -> 37918.27375 | F9: ='custo pessoal mês'!O27 -> 37918.27375 | G9: ='custo pessoal mês'!O72 -> 37918.27375 | H9: ='custo pessoal mês'!O54 -> 37918.27375 | I9: ='custo pessoal mês'!O18 -> 36977.04 | J9: ='custo pessoal mês'!O9 -> 17400.96 | K9: 319805.9162 | L9: 0.1172318642
A10: Férias | B10: Fixo | C10: ='custo pessoal mês'!O64 -> 36521.28471 | D10: ='custo pessoal mês'!O37 -> 18260.64236 | E10: ='custo pessoal mês'!O46 -> 18260.64236 | F10: ='custo pessoal mês'!O28 -> 18260.64236 | G10: ='custo pessoal mês'!O73 -> 18260.64236 | H10: ='custo pessoal mês'!O55 -> 18260.64236 | I10: ='custo pessoal mês'!O19 -> 17807.364 | J10: ='custo pessoal mês'!O10 -> 8379.936 | K10: 154011.7965 | L10: 0.05645639775
A11: Sociais básicos | B11: Fixo | C11: ='custo pessoal mês'!O65 -> 23170.06096 | D11: ='custo pessoal mês'!O38 -> 11585.03048 | E11: ='custo pessoal mês'!O47 -> 11585.03048 | F11: ='custo pessoal mês'!O29 -> 11585.03048 | G11: ='custo pessoal mês'!O74 -> 11585.03048 | H11: ='custo pessoal mês'!O56 -> 11585.03048 | I11: ='custo pessoal mês'!O20 -> 11297.4588 | J11: ='custo pessoal mês'!O11 -> 5316.4512 | K11: 97709.12335 | L11: 0.03581741956
A12: Rescisão | B12: Fixo | C12: ='custo pessoal mês'!O66 -> 14788.12676 | D12: ='custo pessoal mês'!O39 -> 7394.06338 | E12: ='custo pessoal mês'!O48 -> 7394.06338 | F12: ='custo pessoal mês'!O30 -> 7394.06338 | G12: ='custo pessoal mês'!O75 -> 7394.06338 | H12: ='custo pessoal mês'!O57 -> 7394.06338 | I12: ='custo pessoal mês'!O21 -> 7210.5228 | J12: ='custo pessoal mês'!O12 -> 3393.1872 | K12: 62362.15366 | L12: 0.02286021352
A14: 2. Manutenção de Balsas | B14: Variável | C14: ='Manutenção Balsas '!F28 -> 391987.7902 | D14: ='Manutenção Balsas '!F29 -> 80752.5242 | E14: ='Manutenção Balsas '!F30 -> 143468.4283 | F14: ='Manutenção Balsas '!F31 -> 44877.444 | G14: ='Manutenção Balsas '!F32 -> 110585.9884 | H14: ='Manutenção Balsas '!F33 -> 73320.9613 | K14: =SUM(C14:J14) -> 844993.1364 | L14: =K14/$K$32 -> 0.3097507444
A16: 3. Manutenção de Veículos/Máq | I16: ='Manutenção Veículos'!S19 -> 11750 | K16: =SUM(C16:J16) -> 11750 | L16: =K16/$K$32 -> 0.004307219893
A17: Fixos: seguro/taxas/licenc/dep | B17: Fixo | I17: ='Manutenção Veículos'!Q19+'Manutenção Veículos'!N19 -> 0 | K17: =SUM(C17:J17) -> 0 | L17: =K17/$K$32 -> 0
A18: variáveis: manutenção/comb | B18: Variável | I18: ='Manutenção Veículos'!J19+'Manutenção Veículos'!P19 -> 0 | K18: =SUM(C18:J18) -> 0 | L18: =K18/$K$32 -> 0
A20: 4. Outros Materiais de Manutenção | C20: =SUM(C21:C22) -> 0 | D20: =SUM(D21:D22) -> 0 | E20: 3000 | F20: 0 | G20: 0 | H20: 0 | I20: 150720.12 | J20: 0 | K20: =SUM(C20:J20) -> 153720.12 | L20: =K20/$K$32 -> 0.05634947735
A21: Material Direto Manutenção | B21: Fixo | C21: ='Outros Materiais'!F6 -> 0 | D21: ='Outros Materiais'!F7 -> 0 | E21: ='Outros Materiais'!F8 -> 3000 | F21: ='Outros Materiais'!F9 -> 0 | G21: ='Outros Materiais'!F10 -> 0 | H21: ='Outros Materiais'!F11 -> 0 | I21: ='Outros Materiais'!F12 -> 0 | J21: ='Outros Materiais'!F13 -> 0 | K21: =SUM(C21:J21) -> 3000 | L21: =K21/$K$32 -> 0.001099715717
A22: Material Indireto Manutenção | B22: Fixo | I22: ='Outros Materiais'!F31 -> 150720.12 | K22: =SUM(C22:J22) -> 150720.12 | L22: =K22/$K$32 -> 0.05524976163
A24: 5. Serviços Terceirizados | C24: =SUM(C25:C28) -> 8000 | D24: =SUM(D25:D28) -> 2500 | E24: 9500 | F24: 2500 | G24: 2500 | H24: 6500 | I24: 130885.68 | J24: 0 | K24: =SUM(C24:J24) -> 162385.68 | L24: =K24/$K$32 -> 0.05952602819
A25: Máquinas e Veículos | B25: Variável | I25: ='Serviços Terceirizados'!F27 -> 130885.68 | K25: =SUM(C25:J25) -> 130885.68 | L25: =K25/$K$32 -> 0.04797901316
A26: Balsas | B26: Variável | C26: ='Serviços Terceirizados'!F52 -> 8000 | D26: ='Serviços Terceirizados'!F53 -> 2500 | E26: ='Serviços Terceirizados'!F54 -> 6500 | F26: ='Serviços Terceirizados'!F55 -> 2500 | G26: ='Serviços Terceirizados'!F56 -> 2500 | H26: ='Serviços Terceirizados'!F57 -> 3500 | I26: ='Serviços Terceirizados'!F58 -> 0 | K26: =SUM(C26:J26) -> 25500 | L26: =K26/$K$32 -> 0.009347583597
A27: Manutenção Predial | B27: Fixo | C27: ='Serviços Terceirizados'!F80 -> 0 | D27: ='Serviços Terceirizados'!F81 -> 0 | E27: ='Serviços Terceirizados'!F82 -> 0 | F27: ='Serviços Terceirizados'!F83 -> 0 | G27: ='Serviços Terceirizados'!F84 -> 0 | H27: ='Serviços Terceirizados'!F85 -> 0 | I27: ='Serviços Terceirizados'!F86 -> 0 | J27: ='Serviços Terceirizados'!F87 -> 0 | K27: =SUM(C27:J27) -> 0 | L27: =K27/$K$32 -> 0
A28: Manutenção Infraestrutura | B28: Fixo | C28: ='Serviços Terceirizados'!F93 -> 0 | D28: ='Serviços Terceirizados'!F94 -> 0 | E28: ='Serviços Terceirizados'!F95 -> 3000 | F28: ='Serviços Terceirizados'!F96 -> 0 | G28: ='Serviços Terceirizados'!F97 -> 0 | H28: ='Serviços Terceirizados'!F98 -> 3000 | K28: =SUM(C28:J28) -> 6000 | L28: =K28/$K$32 -> 0.002199431435
A30: 6. Custos Gerais | B30: Fixo | J30: ='Custos Gerais'!B34 -> 79645.3 | K30: =SUM(C30:J30) -> 79645.3 | L30: =K30/$K$32 -> 0.02919572941
A32: 7. TOTAL GERAL | C32: =C30+C24+C20+C16+C14+C7 -> 749873.6719 | D32: 258195.4651 | E32: 330911.3692 | F32: 222320.3849 | G32: 288028.9293 | H32: 254763.9022 | I32: 463956.1856 | J32: 159927.8344 | K32: 2727977.742 | L32: =K32/$K$32 -> 1
A34: II- Custos por Natureza e Apropriação da Adm e Manutenção p/ Portos
A35: Descrição | C35: =C5 -> NOVO | D35: =D5 -> INDAIÁ DE BAIXO | E35: INDAIÁ DE CIMA | F35: EXTREMA | G35: SÃO VINCENTE | H35: MELANCIAS | I35: MANUTENÇÃO | J35: ADMINISTRAÇÃO | K35: TOTAL GERAL | L35: %
A36: 8. Rateio Custo Departamentos Apoio
A37: 8.1. Administração | B37: Fixo | C37: =C49+C52 -> 47893.84011 | D37: =D49+D52 -> 21733.82594 | E37: 25602.71631 | F37: 19825.07222 | G37: 23321.1321 | H37: 21551.24772 | I37: 0 | J37: 0 | K37: =SUM(C37:J37) -> 159927.8344
A38: 8.2. Manutenção | B38: Fixo | C38: =C56+C60+C64 -> 105708.417 | D38: 50156.77709 | E38: 54673.2607 | F38: 37237.73503 | G38: 40135.30193 | H38: 33409.01389 | K38: =SUM(C38:J38) -> 321320.5056
A39: 8.2. Manutenção | B39: Variável | C39: =C68+C72+C76 -> 43058.93274 | D39: 20430.70318 | E39: 22270.43335 | F39: 15168.30139 | G39: 16348.58714 | H39: 13608.72221 | I39: =I56+I60+I64 -> 0 | J39: =J56+J60+J64 -> 0 | K39: =SUM(C39:J39) -> 130885.68
A40: 8.3 Total Custo Apropriado | C40: =SUM(C37:C39) -> 196661.1898 | D40: =SUM(D37:D39) -> 92321.30621 | E40: 102546.4104 | F40: 72231.10863 | G40: 79805.02117 | H40: 68568.98381 | I40: 0 | J40: 0 | K40: =SUM(C40:J40) -> 612134.02
A41: % Participação Rateio Indiretos | C41: =C40/$K$40 -> 0.3212714592 | D41: =D40/$K$40 -> 0.1508187802 | E41: 0.1675228088 | F41: 0.1179988471 | G41: 0.1303718117 | H41: 0.1120162931 | I41: 0 | J41: 0 | K41: 1
A43: e. Custo Total | C43: =C40+C32 -> 946534.8618 | D43: 350516.7713 | E43: 433457.7795 | F43: 294551.4935 | G43: 367833.9504 | H43: 323332.886 | K43: =SUM(C43:J43) -> 2716227.742
A44: % Participação C. Fixo + Rateio | C44: =C43/$K$43 -> 0.3484740425 | D44: =D43/$K$43 -> 0.1290454279 | E44: 0.1595807939 | F44: 0.1084413832 | G44: 0.1354208797 | H44: 0.1190374728 | I44: 0 | J44: 0 | K44: 1
A46: <>0
A47: III. Critérios de Rateio
A48: Administração
A49: % rateado igual para todos | C49: =($J$32*$L$49)/(COUNTIF($C$5:$H$5,$A$46)) -> 7996.39172 | D49: 7996.39172 | E49: 7996.39172 | F49: 7996.39172 | G49: 7996.39172 | H49: 7996.39172 | K49: =SUM(C49:J49) -> 47978.35032 | L49: 0.3
A50: Custos Diretos | C50: =C32 -> 749873.6719 | D50: 258195.4651 | E50: 330911.3692 | F50: 222320.3849 | G50: 288028.9293 | H50: 254763.9022 | K50: =SUM(C50:J50) -> 2104093.722
A51: % custos diretos | C51: =C50/$K$50 -> 0.3563879612 | D51: 0.1227110096 | E51: 0.1572702611 | F51: 0.1056608755 | G51: 0.1368897812 | H51: 0.1210801113 | K51: =K50/$K$50 -> 1
A52: Rateio restante administração | C52: =($J$32-$K$49)*C51 -> 39897.44839 | D52: 13737.43422 | E52: 17606.32459 | F52: 11828.6805 | G52: 15324.74038 | H52: 13554.856 | K52: =SUM(C52:J52) -> 111949.4841
A55: Manutenção - custos fixos
A56: % rateado igual para todos | C56: =(($I$7+$I$17+$I$20+$I$27+$I$28+$I$30)*$L$56)/(COUNTIF($C$5:$H$5,$A$46)) -> 16066.02528 | D56: 16066.02528 | E56: 16066.02528 | F56: 16066.02528 | G56: 16066.02528 | H56: 16066.02528 | K56: =SUM(C56:J56) -> 96396.15168 | L56: 0.3
A58: Produção (nº passagens) | C58: =Produção!N6 -> 39775 | D58: =Produção!N10 -> 16170 | E58: =Produção!N14 -> 11886 | F58: =Produção!N19 -> 7235 | G58: =Produção!N23 -> 9239 | H58: =Produção!N27 -> 4587 | K58: =SUM(C58:J58) -> 88892 | L58: 0.4
A59: % número passagens emitidas | C59: =C58/$K$58 -> 0.4474530891 | D59: 0.1819061333 | E59: 0.1337128201 | F59: 0.08139090132 | G59: 0.1039351123 | H59: 0.05160194393 | K59: =SUM(C59:J59) -> 1
A60: Rateio pelo número passagens | C60: =(($I$7+$I$17+$I$20+$I$27+$I$28+$I$30)*$L$58)*C59 -> 57510.34113 | D60: 23380.06829 | E60: 17185.86838 | F60: 10461.02623 | G60: 13358.59313 | H60: 6632.305086 | K60: =SUM(C60:J60) -> 128528.2022
A62: Qtde de Balsas | C62: 3 | D62: 1 | E62: 2 | F62: 1 | G62: 1 | H62: 1 | K62: =SUM(C62:J62) -> 9 | L62: 0.3
A63: % balsas | C63: =C62/$K$62 -> 0.3333333333 | D63: 0.1111111111 | E63: 0.2222222222 | F63: 0.1111111111 | G63: 0.1111111111 | H63: 0.1111111111 | K63: =SUM(C63:J63) -> 1
A64: Rateio pelo número balsas | C64: =(($I$7+$I$17+$I$20+$I$27+$I$28+$I$30)*$L$62)*C63 -> 32132.05056 | D64: 10710.68352 | E64: 21421.36704 | F64: 10710.68352 | G64: 10710.68352 | H64: 10710.68352 | K64: =SUM(C64:J64) -> 96396.15168
A67: Manutenção - custos variáveis
A68: % rateado igual para todos | C68: =(($I$18+$I$25+$I$26+$I$14)*$L$68)/(COUNTIF($C$5:$H$5,$A$46)) -> 6544.284 | D68: 6544.284 | E68: 6544.284 | F68: 6544.284 | G68: 6544.284 | H68: 6544.284 | K68: =SUM(C68:J68) -> 39265.704 | L68: =L56 -> 0.3
A70: Produção (nº passagens) | C70: =C58 -> 39775 | D70: 16170 | E70: 11886 | F70: 7235 | G70: 9239 | H70: 4587 | K70: =SUM(C70:J70) -> 88892 | L70: =L58 -> 0.4
A71: % número passagens emitidas | C71: =C70/$K$58 -> 0.4474530891 | D71: 0.1819061333 | E71: 0.1337128201 | F71: 0.08139090132 | G71: 0.1039351123 | H71: 0.05160194393 | K71: =SUM(C71:J71) -> 1
A72: Rateio pelo número passagens | C72: =((($I$18+$I$25+$I$26+$I$14))*$L$70)*C71 -> 23426.08074 | D72: 9523.56318 | E72: 7000.437351 | F72: 4261.161386 | G72: 5441.447138 | H72: 2701.582208 | K72: =SUM(C72:J72) -> 52354.272
A74: Qtde de Balsas | C74: 3 | D74: 1 | E74: 2 | F74: 1 | G74: 1 | H74: 1 | K74: =SUM(C74:J74) -> 9 | L74: =L62 -> 0.3
A75: % balsas | C75: =C74/$K$62 -> 0.3333333333 | D75: 0.1111111111 | E75: 0.2222222222 | F75: 0.1111111111 | G75: 0.1111111111 | H75: 0.1111111111 | K75: =SUM(C75:J75) -> 1
A76: Rateio pelo número balsas | C76: =((($I$18+$I$25+$I$26+$I$14))*$L$74)*C75 -> 13088.568 | D76: 4362.856 | E76: 8725.712 | F76: 4362.856 | G76: 4362.856 | H76: 4362.856 | K76: =SUM(C76:J76) -> 39265.704

Sheet tarifa serviços
A1: 10. PLANILHA DE CÁLCULO DE TARIFAS DO SERVIÇO
A2: =Menu!B5 -> Morada Nova de Minas
A3: ='Custo Pessoal'!$B$4 -> JUN. 2018
A4: DESCRIÇÃO | B4: ='Manutenção Balsas '!A28 -> NOVO | C4: ='Manutenção Balsas '!A29 -> INDAIÁ DE BAIXO | D4: ='Manutenção Balsas '!A30 -> INDAIÁ DE CIMA | E4: ='Manutenção Balsas '!A31 -> EXTREMA | F4: ='Manutenção Balsas '!A32 -> SÃO VINCENTE | G4: ='Manutenção Balsas '!A33 -> MELANCIAS | H4: TOTAL GERAL | I4: % | R4: BDI = | S4: 1.2757
A6: 1.0 Custos Fixos (com BDI) | B6: =ROUND($S$4*B7,2) -> 642299.82 | C6: =ROUND($S$4*C7,2) -> 314885.55 | D6: 333236.97 | E6: 295969.73 | F6: 304126.08 | G6: 297114.62 | H6: 2187632.78 | I6: =H6/$H$23 -> 0.8053937252
A7: 1. Custos Fixos (sem BDI) | B7: =SUM(B8:B14) -> 503488.1388 | C7: =SUM(C8:C14) -> 246833.5439 | D7: 261218.9179 | E7: 232005.7481 | F7: 238399.3749 | G7: 232903.2025 | H7: 1714848.926 | I7: 0.6313347365
A8: 1.1 Custo Pessoal | B8: =Apropriação!C7 -> 349885.8817 | C8: =Apropriação!D7 -> 174942.9409 | D8: =Apropriação!E7 -> 174942.9409 | E8: =Apropriação!F7 -> 174942.9409 | F8: =Apropriação!G7 -> 174942.9409 | G8: =Apropriação!H7 -> 174942.9409 | H8: =SUM(B8:G8) -> 1224600.586 | I8: 0.4508460638
A9: 1.2. Manutenção máquinas/veículos (parte fixa) | B9: =Apropriação!C17 -> 0 | C9: =Apropriação!D17 -> 0 | D9: =Apropriação!E17 -> 0 | E9: =Apropriação!F17 -> 0 | F9: =Apropriação!G17 -> 0 | G9: =Apropriação!H17 -> 0 | H9: =SUM(B9:G9) -> 0 | I9: 0
A10: 1.3. Outros Materiais de Manutenção (parte fixa) | B10: =Apropriação!C20 -> 0 | C10: =Apropriação!D20 -> 0 | D10: =Apropriação!E20 -> 3000 | E10: =Apropriação!F20 -> 0 | F10: =Apropriação!G20 -> 0 | G10: =Apropriação!H20 -> 0 | H10: 3000 | I10: 0.001104472925
A11: 1.4. Serviços Terceirizados (parte fixa) | B11: =Apropriação!C27+Apropriação!C28 -> 0 | C11: =Apropriação!D27+Apropriação!D28 -> 0 | D11: =Apropriação!E27+Apropriação!E28 -> 3000 | E11: =Apropriação!F27+Apropriação!F28 -> 0 | F11: =Apropriação!G27+Apropriação!G28 -> 0 | G11: =Apropriação!H27+Apropriação!H28 -> 3000 | H11: 6000 | I11: 0.00220894585
A12: 1.5. Custos Gerais | B12: =Apropriação!C30 -> 0 | C12: =Apropriação!D30 -> 0 | D12: =Apropriação!E30 -> 0 | E12: =Apropriação!F30 -> 0 | F12: =Apropriação!G30 -> 0 | G12: =Apropriação!H30 -> 0 | H12: 0 | I12: 0
A13: 1.6. Rateio Administração | B13: =Apropriação!C37 -> 47893.84011 | C13: =Apropriação!D37 -> 21733.82594 | D13: =Apropriação!E37 -> 25602.71631 | E13: =Apropriação!F37 -> 19825.07222 | F13: =Apropriação!G37 -> 23321.1321 | G13: =Apropriação!H37 -> 21551.24772 | H13: 159927.8344 | I13: 0.05887865436
A14: 1.7. Rateio Manutenção (parte fixa) | B14: =Apropriação!C38 -> 105708.417 | C14: =Apropriação!D38 -> 50156.77709 | D14: =Apropriação!E38 -> 54673.2607 | E14: =Apropriação!F38 -> 37237.73503 | F14: =Apropriação!G38 -> 40135.30193 | G14: =Apropriação!H38 -> 33409.01389 | H14: 321320.5056 | I14: 0.1182965996
A16: 2.0 Custos Variáveis (com BDI) | B16: =ROUND($S$4*B17,2) -> 565194.7 | C16: =ROUND($S$4*C17,2) -> 132268.69 | D16: 219725.12 | E16: 79789.61 | F16: 165119.69 | G16: 115361.15 | H16: 1277458.96 | I16: =H16/$H$23 -> 0.4703062781
A17: 2. Custos Variáveis (sem BDI) | B17: =SUM(B18:B22) -> 443046.7229 | C17: =SUM(C18:C22) -> 103683.2274 | D17: 172238.8617 | E17: 62545.74539 | F17: 129434.5755 | G17: 90429.68351 | H17: 1001378.816 | I17: 0.3686652635
A18: 2.1. Manutenção de Balsas | B18: =Apropriação!C14 -> 391987.7902 | C18: =Apropriação!D14 -> 80752.5242 | D18: =Apropriação!E14 -> 143468.4283 | E18: =Apropriação!F14 -> 44877.444 | F18: =Apropriação!G14 -> 110585.9884 | G18: =Apropriação!H14 -> 73320.9613 | H18: =SUM(B18:G18) -> 844993.1364 | I18: 0.3110906804
A19: 2.2. Manutenção de Veículos/Máq (parte variável) | B19: =Apropriação!C18 -> 0 | C19: =Apropriação!D18 -> 0 | D19: =Apropriação!E18 -> 0 | E19: =Apropriação!F18 -> 0 | F19: =Apropriação!G18 -> 0 | G19: =Apropriação!H18 -> 0 | H19: =SUM(B19:G19) -> 0 | I19: 0
A20: 2.3. Serviços Terceirizados (parte variável) | B20: =Apropriação!C25+Apropriação!C26 -> 8000 | C20: =Apropriação!D25+Apropriação!D26 -> 2500 | D20: =Apropriação!E25+Apropriação!E26 -> 6500 | E20: =Apropriação!F25+Apropriação!F26 -> 2500 | F20: =Apropriação!G25+Apropriação!G26 -> 2500 | G20: =Apropriação!H25+Apropriação!H26 -> 3500 | H20: =SUM(B20:G20) -> 25500 | I20: 0.009388019863
A21: 2.4. Rateio Manutenção (parte variável) | B21: =Apropriação!C39 -> 43058.93274 | C21: =Apropriação!D39 -> 20430.70318 | D21: =Apropriação!E39 -> 22270.43335 | E21: =Apropriação!F39 -> 15168.30139 | F21: =Apropriação!G39 -> 16348.58714 | G21: =Apropriação!H39 -> 13608.72221 | H21: =SUM(B21:G21) -> 130885.68 | I21: 0.04818656328
A23: 3. TOTAL GERAL | B23: =B17+B7 -> 946534.8618 | C23: =C17+C7 -> 350516.7713 | D23: 433457.7795 | E23: 294551.4935 | F23: 367833.9504 | G23: 323332.886 | H23: 2716227.742 | I23: =H23/$H$23 -> 1
A25: 4. Total de veículos transportados | B25: =Produção!N6 -> 39775 | C25: =Produção!N10 -> 16170 | D25: =Produção!N14 -> 11886 | E25: =Produção!N19 -> 7235 | F25: =Produção!N23 -> 9239 | G25: =Produção!N27 -> 4587
A26: Uso da capacidade | B26: =B25/B29 -> 0.07730050465 | C26: =C25/C29 -> 0.05672118618 | D26: 0.03373953143 | E26: 0.2041963024 | F26: 0.1153246016 | G26: 0.03652136214
A27: 5. Tarifa da parcela variável - R$/Viagem (2 / 4) | B27: =B16/B25 -> 14.20979761 | C27: 8.17988188 | D27: 18.48604409 | E27: 11.02828058 | F27: 17.87203052 | G27: 25.14958579
A29: 6. Capacidade de Transporte (qtde veículos) | B29: =capacidade!G27 -> 514550.3277 | C29: =capacidade!G28 -> 285078.6644 | D29: =capacidade!G29 -> 352287.0501 | E29: =capacidade!G30 -> 35431.59163 | F29: =capacidade!G31 -> 80113.00167 | G29: =capacidade!G32 -> 125597.725
A30: % p/ Rateio da Capacidade para Rateio custo Fixo | B30: 0.3 | C30: 0.3 | D30: 0.3 | E30: 0.3 | F30: 0.3 | G30: 0.3
A31: 7. Capacidade Ajustada para Rateio do custo fixo | B31: =B29*B30 -> 154365.0983 | C31: 85523.59933 | D31: 105686.115 | E31: 10629.47749 | F31: 24033.9005 | G31: 37679.31751
A32: 8. Tarifa da Parcela Fixa - R$/Viagem (1 / 7) | B32: =B6/B31 -> 4.16091349 | C32: 3.68185568 | D32: 3.153081839 | E32: 27.84424073 | F32: 12.6540459 | G32: 7.885350362
A34: 9. Tarifa Básica - R$/Viagem (5 + 8) | B34: =B32+B27 -> 18.3707111 | C34: 11.86173756 | D34: 21.63912592 | E34: 38.87252131 | F34: 30.52607642 | G34: 33.03493615
A36: 10. Detalhamento da tarifa por veículo
A37: Tipo de Veícuo | B37: Tarifa R$/Viagem | C37: Tarifa R$/Viagem | D37: Tarifa R$/Viagem | E37: Tarifa R$/Viagem | F37: Tarifa R$/Viagem | G37: Tarifa R$/Viagem | H37: Peso p/ distribuição
A38: 10.1. moto | B38: =B$39*$H38 -> 6.123570367 | C38: 3.95391252 | D38: 7.213041975 | E38: 12.9575071 | F38: 10.17535881 | G38: 11.01164538 | H38: =1/3 -> 0.3333333333
A39: 10.2 Veículo pequeno (tarifa básica) | B39: =B34*(1+$C$36/100) -> 18.3707111 | C39: =C34*(1+$C$36/100) -> 11.86173756 | D39: 21.63912592 | E39: 38.87252131 | F39: 30.52607642 | G39: 33.03493615 | H39: 1 | V39: =G39*1.2757 -> 42.14266804
A40: 10.3. veículo médio | B40: =B$39*$H40 -> 27.55606665 | C40: 17.79260634 | D40: 32.45868889 | E40: 58.30878196 | F40: 45.78911463 | G40: 49.55240422 | H40: 1.5 | V40: =G40*1.2757 -> 63.21400207
A41: 10.4. caminhão 3/4 , van e microônbus | B41: 36.7414222 | C41: 23.72347512 | D41: 43.27825185 | E41: 77.74504262 | F41: 61.05215284 | G41: 66.0698723 | H41: 2 | V41: 84.28533609
A42: 10.5. caminhão/ônibus | B42: 55.11213331 | C42: 35.58521268 | D42: 64.91737777 | E42: 116.6175639 | F42: 91.57822926 | G42: 99.10480844 | H42: 3 | V42: 126.4280041
A43: 10.6. carreta | B43: 73.48284441 | C43: 47.44695024 | D43: 86.5565037 | E43: 155.4900852 | F43: 122.1043057 | G43: 132.1397446 | H43: 4 | V43: 168.5706722
A44: 10.7. bitrem | B44: 91.85355551 | C44: 59.3086878 | D44: 108.1956296 | E44: 194.3626065 | F44: 152.6303821 | G44: 165.1746807 | H44: 5 | V44: 210.7133402
B88: guarujá
A89: passeio | B89: 1921 | C89: 55 | D89: 46 | E89: =SUM(B89:D89) -> 2022 | F89: 1500 | G89: =E89*F89 -> 3033000 | H89: =G89/1000 -> 3033 | J89: =B89/$B$103 -> 0.6476736345
A90: caminhonete e van | B90: 359 | C90: 10 | D90: 14 | E90: =SUM(B90:D90) -> 383 | F90: 2500 | G90: =E90*F90 -> 957500 | H90: 957.5 | J90: 0.1210384356 | N90: 34 | O90: 8 | P90: =N90*O90 -> 272 | Q90: área
A91: caminhão 3/4 microônibus | B91: 166 | D91: 4 | E91: 170 | F91: 10000 | G91: 1700000 | H91: 1700 | J91: 0.05596763318 | P91: 120.5 | Q91: cap carta
A92: caminhão toco | B92: 83 | D92: 3 | E92: 86 | F92: 10000 | G92: 860000 | H92: 860 | J92: 0.02798381659 | P92: =P91/P90 -> 0.4430147059 | Q92: =P92*B32 -> 1.843345866
A93: caminhão truck | B93: 121 | C93: 1 | D93: 4 | E93: 126 | F93: 20000 | G93: 2520000 | H93: 2520 | J93: 0.04079568442
A94: carreta | B94: 84 | D94: 5 | E94: 89 | F94: 30000 | G94: 2670000 | H94: 2670 | J94: 0.028320971 | P94: 5
A95: bitrem | B95: 4 | C95: 1 | E95: 5 | F95: 50000 | G95: 250000 | H95: 250 | J95: 0.001348617667
A96: caminhão leiteiro | B96: 0 | E96: 0 | F96: 25000 | G96: 0 | H96: 0 | J96: 0
A97: reboque pequeno e tri | B97: 26 | C97: 1 | E97: 27 | F97: 20000 | G97: 540000 | H97: 540 | J97: 0.008766014835
A98: reboque de barco | B98: 10 | E98: 10 | F98: 15000 | G98: 150000 | H98: 150 | J98: 0.003371544167
A99: ônibus trab. Rural | B99: 21 | E99: 21 | F99: 40000 | G99: 840000 | H99: 840 | J99: 0.007080242751
A100: ônibus de carreira | B100: 0 | E100: 0 | F100: 40000 | G100: 0 | H100: 0 | J100: 0
A101: moto | B101: 171 | C101: 12 | D101: 2 | E101: 185 | F101: 200 | G101: 37000 | H101: =G101/1000 -> 37 | J101: 0.05765340526
A102: extra | D102: 4 | E102: 4 | G102: 0
B103: =SUM(B89:B101) -> 2966 | C103: =SUM(C89:C101) -> 80 | D103: =SUM(D89:D101) -> 78 | E103: 3124 | G103: =SUM(G89:G102) -> 13557500 | H103: =SUM(H89:H101) -> 13557.5 | J103: =B103/$B$103 -> 1
E104: =E103*12 -> 37488
G105: =G103*12 -> 162690000 | H105: =H103*12 -> 162690
A107: extrema | B107: 2015-07-01 | C107: 2015-06-01 | D107: 2015-05-01
A108: passeio | B108: 163 | C108: 224 | D108: 230 | E108: =SUM(B108:D108) -> 617 | F108: =E108/3 -> 205.6666667 | G108: =F108/$F$123 -> 0.3458520179 | H108: 2 | I108: 4 | J108: =I108*H108 -> 8 | M108: passeio
A109: caminhonete e van | B109: 110 | C109: 119 | D109: 90 | E109: 319 | F109: =E109/3 -> 106.3333333 | G109: =F109/$F$123 -> 0.1788116592 | H109: 2.5 | I109: 5 | J109: =I109*H109 -> 12.5 | M109: caminhonete e van
A110: caminhão 3/4 microônibus | B110: 13 | C110: 48 | D110: 31 | E110: 92 | F110: 30.66666667 | G110: 0.05156950673 | H110: 4 | I110: 6 | J110: =I110*H110 -> 24 | M110: caminhão 3/4 microônibus
A111: caminhão toco | B111: 102 | C111: 90 | D111: 95 | E111: 287 | F111: 95.66666667 | G111: 0.1608744395 | H111: 4 | I111: 8 | J111: 32 | M111: caminhão toco
A112: caminhão truck | B112: 14 | C112: 52 | D112: 23 | E112: 89 | F112: 29.66666667 | G112: 0.04988789238 | H112: 4 | I112: 10 | J112: 40 | M112: caminhão truck
A113: carreta | B113: 8 | C113: 6 | D113: 7 | E113: 21 | F113: 7 | G113: 0.01177130045 | H113: 5 | I113: 12 | J113: 60 | M113: carreta
A114: bitrem | B114: 0 | C114: 0 | D114: 0 | E114: 0 | F114: 0 | G114: 0 | H114: 5 | I114: 20 | J114: 100 | M114: bitrem
A115: caminhão leiteiro | B115: 0 | C115: 0 | D115: 0 | E115: 0 | F115: 0 | G115: 0 | J115: 0 | M115: caminhão leiteiro
A116: reboque pequeno e tri | B116: 92 | C116: 92 | D116: 89 | E116: 273 | F116: 91 | G116: 0.1530269058 | J116: 0 | M116: reboque pequeno e tri
A117: reboque de barco | B117: 0 | C117: 2 | D117: 0 | E117: 2 | F117: 0.6666666667 | G117: 0.001121076233 | J117: 0 | M117: reboque de barco
A118: ônibus trab. Rural | B118: 0 | C118: 0 | D118: 0 | E118: 0 | F118: 0 | G118: 0 | J118: 0 | M118: ônibus trab. Rural
A119: ônibus de carreira | B119: 0 | C119: 0 | D119: 0 | E119: 0 | F119: 0 | G119: 0 | J119: 0 | M119: ônibus de carreira
A120: moto | B120: 14 | C120: 11 | D120: 13 | E120: 38 | F120: 12.66666667 | G120: 0.02130044843 | H120: 1 | I120: 1 | J120: 1 | M120: moto
A121: extra | B121: 0 | C121: 0 | D121: 0 | E121: 0 | F121: 0 | G121: 0 | J121: 0 | M121: extra
A122: outros | B122: 45 | C122: 0 | D122: 1 | E122: 46 | F122: 15.33333333 | G122: 0.02578475336 | J122: 0 | M122: outros
F123: =SUM(F108:F122) -> 594.6666667 | J123: =SUM(J108:J122) -> 277.5
F124: =F123*12 -> 7136
F125: =#REF!/F124 -> 
A126: moto | B126: =G120 -> 0.02130044843 | C126: =B126*$B$134 -> 2.98206278 | D126: =C126/J120 -> 2.98206278
A127: pequeno | B127: =G108 -> 0.3458520179 | C127: 48.41928251 | D127: =C127/J108 -> 6.052410314
A128: médio | B128: =G109+G116+G117+G122 -> 0.3587443946 | C128: 50.22421525 | D128: =C128/J109 -> 4.01793722
A129: caminhão/ônibus | B129: =G110+G111+G112+G118+G119 -> 0.2623318386 | C129: 36.7264574 | D129: =C129/J111 -> 1.147701794
A130: carreta | B130: =G113 -> 0.01177130045 | C130: 1.647982063
A131: bitrem | B131: =G114 -> 0 | C131: 0
C132: =SUM(C126:C131) -> 140 | D132: =SUM(D126:D131) -> 14.20011211
B134: 140 | D134: =capacidade!C30 -> 10
D135: =D132*D134*30 -> 4260.033632
D136: =F123/D135 -> 0.1395920122
D138: =D135*12 -> 51120.40359

Sheet Produção
A1: 8. PLANILHA RESUMO DE VOLUME E FATURAMENTO DOS SERVIÇOS
A2: =Menu!B5 -> Morada Nova de Minas
B3: 2018-06-01 | C3: 2018-07-01 | D3: 2018-08-01 | E3: 2018-09-01 | F3: 2018-10-01 | G3: 2018-11-01 | H3: 2018-12-01 | I3: 2019-01-01 | J3: 2019-02-01 | K3: 2019-03-01 | L3: 2019-04-01 | M3: 2019-05-01
A4: Porto | B4: 1 | C4: 2 | D4: 3 | E4: 4 | F4: 5 | G4: 6 | H4: 7 | I4: 8 | J4: 9 | K4: 10 | L4: 11 | M4: 12 | N4: Total anual
A5: ='Manutenção Balsas '!A28 -> NOVO
A6: Passagens emitidas | B6: 3298 | C6: 3112 | D6: 3290 | E6: 3095 | F6: 3282 | G6: 2715 | H6: 3558 | I6: 3955 | J6: 3255 | K6: 3219 | L6: 3876 | M6: 3120 | N6: =SUM(B6:M6) -> 39775
A7: Faturamento | B7: 59900 | C7: 63848 | D7: 67200 | E7: 62438 | F7: 66077 | G7: 53385 | H7: 70345 | I7: 79579 | J7: 64510 | K7: 63924 | L7: 76459 | M7: 71578 | N7: =SUM(B7:M7) -> 799243
A9: ='Manutenção Balsas '!A29 -> INDAIÁ DE BAIXO
A10: Passagens emitidas | B10: 1347 | C10: 1279 | D10: 1450 | E10: 1381 | F10: 1489 | G10: 1358 | H10: 1423 | I10: 1469 | J10: 1166 | K10: 1214 | L10: 1453 | M10: 1141 | N10: =SUM(B10:M10) -> 16170
A11: Faturamento | B11: 12425 | C11: 13042 | D11: 14947 | E11: 13078 | F11: 13990 | G11: 13318 | H11: 14665 | I11: 14977 | J11: 11517 | K11: 12378 | L11: 14631 | M11: 12536.5 | N11: =SUM(B11:M11) -> 161504.5
A13: ='Manutenção Balsas '!A30 -> INDAIÁ DE CIMA
A14: Passagens emitidas | B14: 995 | C14: 949 | D14: 993 | E14: 973 | F14: 990 | G14: 810 | H14: 915 | I14: 1205 | J14: 984 | K14: 899 | L14: 1218 | M14: 955 | N14: =SUM(B14:M14) -> 11886
A15: Faturamento | B15: 10636 | C15: 10638 | D15: 10392 | E15: 10451 | F15: 10760 | G15: 8732 | H15: 10258 | I15: 13652 | J15: 11210 | K15: 9846 | L15: 13789 | M15: 12035.5 | N15: =SUM(B15:M15) -> 132399.5
A18: ='Manutenção Balsas '!A31 -> EXTREMA
A19: Passagens emitidas | B19: 580 | C19: 506 | D19: 705 | E19: 970 | F19: 937 | G19: 484 | H19: 455 | I19: 514 | J19: 475 | K19: 510 | L19: 520 | M19: 579 | N19: =SUM(B19:M19) -> 7235
A20: Faturamento | B20: 4767 | C20: 4267 | D20: 6067 | E20: 8467 | F20: 8511 | G20: 4098 | H20: 4084 | I20: 4421 | J20: 4305 | K20: 4449 | L20: 4766 | M20: 7375.5 | N20: =SUM(B20:M20) -> 65577.5 | O20: =N20/N19 -> 9.063925363
A22: ='Manutenção Balsas '!A32 -> SÃO VINCENTE
A23: Passagens emitidas | B23: 796 | C23: 630 | D23: 909 | E23: 812 | F23: 435 | G23: 0 | H23: 761 | I23: 989 | J23: 884 | K23: 990 | L23: 1183 | M23: 850 | N23: =SUM(B23:M23) -> 9239
A24: Faturamento | B24: 8102 | C24: 6294 | D24: 9153 | E24: 8169 | F24: 4329 | G24: 0 | H24: 7991 | I24: 10280 | J24: 9047 | K24: 10191 | L24: 12177 | M24: 10153.5 | N24: =SUM(B24:M24) -> 95886.5
A26: ='Manutenção Balsas '!A33 -> MELANCIAS
A27: Passagens emitidas | B27: 425 | C27: 418 | D27: 501 | E27: 464 | F27: 404 | G27: 321 | H27: 312 | I27: 381 | J27: 321 | K27: 303 | L27: 389 | M27: 348 | N27: =SUM(B27:M27) -> 4587
A28: Faturamento | B28: 5414 | C28: 6249 | D28: 8692 | E28: 8007 | F28: 7286 | G28: 5140 | H28: 4946 | I28: 6421 | J28: 5239 | K28: 5054 | L28: 5828 | M28: 7126 | N28: =SUM(B28:M28) -> 75402
A30: TOTAL
A31: Passagens emitidas | B31: =B27+B23+B19+B14+B10+B6 -> 7441 | C31: =C27+C23+C19+C14+C10+C6 -> 6894 | D31: 7848 | E31: 7695 | F31: 7537 | G31: 5688 | H31: 7424 | I31: 8513 | J31: 7085 | K31: 7135 | L31: 8639 | M31: 6993 | N31: =SUM(B31:M31) -> 88892
A32: Faturamento | B32: =B28+B24+B20+B15+B11+B7 -> 101244 | C32: =C28+C24+C20+C15+C11+C7 -> 104338 | D32: 116451 | E32: 110610 | F32: 110953 | G32: 84673 | H32: 112289 | I32: 129330 | J32: 105828 | K32: 105842 | L32: 127650 | M32: 120805 | N32: =SUM(B32:M32) -> 1330013

Sheet estatísticatransporte
A1: 10. ESTATÍSTICAS DE TRANSPORTE
A2: ='tarifa serviços'!A2 -> Morada Nova de Minas
A3: Porto Novo | B3: (MEDIAS MENSAIS)
A5: veículo | B5: Peso | C5: cumprimento | D5: largura | E5: área ocup | F5: guarujá | G5: indaiá | H5: miquita | I5: total | K5: guarujá | L5: indaiá | M5: miquita | N5: total | P5: guarujá | Q5: indaiá | R5: miquita | S5: total
A6: passeio | B6: 1500 | C6: 5 | D6: 2 | E6: =C6*D6 -> 10 | F6: 1921 | G6: 55 | H6: 51 | I6: =SUM(F6:H6) -> 2027 | K6: 1739 | L6: 30 | M6: 46 | N6: =SUM(K6:M6) -> 1815 | P6: 1823 | Q6: 30 | R6: 189 | S6: =SUM(P6:R6) -> 2042 | U6: =(I6+N6+S6)/3 -> 1961.333333 | V6: =U6/$U$21 -> 0.6419375955
A7: caminhonete e van | B7: 2500 | C7: 6 | D7: 2.2 | E7: =C7*D7 -> 13.2 | F7: 359 | G7: 10 | H7: 11 | I7: =SUM(F7:H7) -> 380 | K7: 381 | M7: 14 | N7: 395 | P7: 291 | Q7: 0 | R7: 43 | S7: 334 | U7: =(I7+N7+S7)/3 -> 369.6666667 | V7: =U7/$U$21 -> 0.1209906175
A8: caminhão 3/4 microônibus | B8: 10000 | C8: 6.5 | D8: 2.5 | E8: =C8*D8 -> 16.25 | F8: 166 | H8: 8 | I8: 174 | K8: 155 | M8: 4 | N8: 159 | P8: 149 | R8: 14 | S8: 163 | U8: 165.3333333 | V8: 0.0541130264
A9: caminhão toco | B9: 10000 | C9: 14 | D9: 2.6 | E9: 36.4 | F9: 83 | H9: 8 | I9: 91 | K9: 53 | M9: 3 | N9: 56 | P9: 70 | R9: 15 | S9: 85 | U9: 77.33333333 | V9: 0.0253109317
A10: caminhão truck | B10: 20000 | C10: 14 | D10: 2.6 | E10: 36.4 | F10: 121 | G10: 1 | H10: 7 | I10: 129 | K10: 159 | L10: 1 | M10: 4 | N10: 164 | P10: 177 | Q10: 1 | R10: 8 | S10: 186 | U10: 159.6666667 | V10: 0.05225834606
A11: carreta | B11: 30000 | C11: 18.5 | D11: 2.8 | E11: 51.8 | F11: 84 | H11: 4 | I11: 88 | K11: 67 | M11: 5 | N11: 72 | P11: 76 | R11: 12 | S11: 88 | U11: 82.66666667 | V11: 0.0270565132
A12: bitrem | B12: 50000 | C12: 30 | D12: 2.8 | E12: 84 | F12: 4 | G12: 1 | H12: 0 | I12: 5 | K12: 5 | N12: 5 | P12: 0 | R12: 0 | S12: 0 | U12: 3.333333333 | V12: 0.001090988436
A13: caminhão leiteiro | B13: 25000 | C13: 14 | D13: 2.6 | E13: 36.4 | F13: 0 | H13: 0 | I13: 0 | K13: 0 | N13: 0 | P13: 30 | R13: 0 | S13: 30 | U13: 10 | V13: 0.003272965307
A14: reboque pequeno e tri | B14: 20000 | C14: 5 | D14: 2 | E14: 10 | F14: 26 | G14: 1 | H14: 2 | I14: 29 | K14: 18 | N14: 18 | P14: 17 | R14: 0 | S14: 17 | U14: 21.33333333 | V14: 0.006982325987
A15: reboque de barco | B15: 15000 | C15: 5 | D15: 2 | E15: 10 | F15: 10 | H15: 0 | I15: 10 | K15: 3 | N15: 3 | P15: 11 | R15: 1 | S15: 12 | U15: 8.333333333 | V15: 0.002727471089
A16: ônibus trab. Rural | B16: 40000 | C16: 14 | D16: 2.6 | E16: 36.4 | F16: 21 | H16: 1 | I16: 22 | K16: 3 | N16: 3 | P16: 1 | R16: 0 | S16: 1 | U16: 8.666666667 | V16: 0.002836569932
A17: ônibus de carreira | B17: 40000 | C17: 14 | D17: 2.6 | E17: 36.4 | F17: 0 | H17: 0 | I17: 0 | K17: 0 | N17: 0 | P17: 0 | R17: 3 | S17: 3 | U17: 1 | V17: 0.0003272965307
A18: moto | B18: 200 | C18: 2 | D18: 0.7 | E18: 1.4 | F18: 171 | G18: 12 | H18: 2 | I18: 185 | K18: 134 | L18: 3 | M18: 2 | N18: 139 | P18: 166 | Q18: 3 | R18: 12 | S18: 181 | U18: 168.3333333 | V18: 0.05509491599
A19: extra | C19: 5.5 | D19: 2.5 | E19: 13.75 | H19: 0 | I19: 0 | K19: 5 | L19: 16 | M19: 4 | N19: 25 | P19: 3 | Q19: 16 | R19: 1 | S19: 20 | U19: 15 | V19: 0.00490944796
A20: outros | C20: 5.5 | D20: 2.5 | E20: 13.75 | K20: 2 | N20: 2 | P20: 8 | S20: 8 | U20: 3.333333333 | V20: 0.001090988436
E21: 0 | F21: =SUM(F6:F20) -> 2966 | G21: =SUM(G6:G20) -> 80 | H21: =SUM(H6:H20) -> 94 | I21: =SUM(I6:I20) -> 3140 | K21: =SUM(K6:K20) -> 2724 | L21: =SUM(L6:L20) -> 50 | M21: =SUM(M6:M20) -> 82 | N21: =SUM(N6:N20) -> 2856 | P21: =SUM(P6:P20) -> 2822 | Q21: 50 | R21: 298 | S21: 3170 | U21: 3055.333333 | V21: 1
A23: Resumo porto novo
A24: Tipo | B24: qtde média | C24: participação | D24: área ocup por veículo | E24: área disponível balsas x veículo | F24: capacidade por tipo de veículo | H24: tarifa | I24: qtde veículos | K24: faturamento previsto
A25: moto | B25: =U18 -> 168.3333333 | C25: =B25/$B$32 -> 0.05509491599 | D25: =E18 -> 1.4 | E25: =$E$32*C25 -> 32.7263801 | F25: =E25/D25 -> 23.37598579 | H25: ='tarifa serviços'!B38 -> 6.123570367 | I25: =C25*$I$34 -> 2191.400284 | K25: =H25*I25 -> 13419.19384
A26: pequeno | B26: =U6+U14+U15 -> 1991 | C26: =B26/$B$32 -> 0.6516473925 | D26: =E6 -> 10 | E26: 387.0785512 | F26: =E26/D26 -> 38.70785512 | H26: ='tarifa serviços'!B39 -> 18.3707111 | I26: 25919.27504 | K26: =H26*I26 -> 476155.5137
A27: médio | B27: =U7+U19+U20 -> 388 | C27: 0.1269910539 | D27: =E7 -> 13.2 | E27: 75.43268601 | F27: 5.714597425 | H27: ='tarifa serviços'!B40 -> 27.55606665 | I27: 5051.069169 | K27: 139187.5987
A28: 3/4 van e microônbus | B28: =U8 -> 165.3333333 | C28: 0.0541130264 | D28: =E8 -> 16.25 | E28: 32.14313768 | F28: 1.978039242 | H28: ='tarifa serviços'!B41 -> 36.7414222 | I28: 2152.345625 | K28: 79080.23934
A29: caminhão/ônibus | B29: =U9+U10+U13+U16+U17 -> 256.6666667 | C29: 0.08400610954 | D29: =E9 -> 36.4 | E29: 49.89962906 | F29: 1.37086893 | H29: ='tarifa serviços'!B42 -> 55.11213331 | I29: 3341.343007 | K29: 184148.5412
A30: carreta | B30: =U11 -> 82.66666667 | C30: 0.0270565132 | D30: =E11 -> 51.8 | E30: 16.07156884 | F30: 0.3102619467 | H30: ='tarifa serviços'!B43 -> 73.48284441 | I30: 1076.172813 | K30: 79080.23934
A31: bitrem | B31: =U12 -> 3.333333333 | C31: 0.001090988436 | D31: =E12 -> 84 | E31: 0.6480471307 | F31: 0.007714846794 | H31: ='tarifa serviços'!B44 -> 91.85355551 | I31: 43.39406502 | K31: 3985.89916
A32: Total | B32: =SUM(B25:B31) -> 3055.333333 | C32: 1 | E32: =capacidade!E27 -> 594 | F32: =SUM(F25:F31) -> 71.46532329 | I32: faturamento previsto | K32: =SUM(K25:K31) -> 975057.2253 | L32: =K32/Produção!N7 -> 1.219975934
H34: veículos último ano | I34: =Produção!N6 -> 39775
A36: Porto Indaiá de baixo | P36: =I34+I66+I98+I129+I160+I191 -> 88892
A37: veículo | B37: Peso | C37: cumprimento | D37: largura | E37: área ocup | I37: total
A38: passeio | B38: 1500 | C38: 5 | D38: 2 | E38: =C38*D38 -> 10 | F38: 632 | G38: 556 | H38: 597 | I38: =SUM(F38:H38) -> 1785 | K38: =(I38)/3 -> 595 | L38: =K38/$U$21 -> 0.1947414357
A39: caminhonete e van | B39: 2500 | C39: 6 | D39: 2.5 | E39: =C39*D39 -> 15 | I39: =SUM(F39:H39) -> 0 | K39: =(I39)/3 -> 0 | L39: =K39/$U$21 -> 0
A40: caminhão 3/4 microônibus | B40: 10000 | C40: 6.5 | D40: 2.5 | E40: =C40*D40 -> 16.25 | F40: 25 | G40: 37 | H40: 34 | I40: 96 | K40: 32 | L40: 0.01047348898
A41: caminhão toco | B41: 10000 | C41: 14 | D41: 2.5 | E41: 35 | F41: 26 | G41: 28 | H41: 37 | I41: 91 | K41: 30.33333333 | L41: 0.009927994763
A42: caminhão truck | B42: 20000 | C42: 14 | D42: 2.5 | E42: 35 | F42: 22 | G42: 56 | H42: 48 | I42: 126 | K42: 42 | L42: 0.01374645429
A43: carreta | B43: 30000 | C43: 18.5 | D43: 2.8 | E43: 51.8 | F43: 16 | G43: 2 | H43: 2 | I43: 20 | K43: 6.666666667 | L43: 0.002181976871
A44: bitrem | B44: 50000 | C44: 30 | D44: 2.8 | E44: 84 | F44: 26 | G44: 4 | H44: 0 | I44: 30 | K44: 10 | L44: 0.003272965307
A45: caminhão leiteiro | B45: 25000 | C45: 14 | D45: 2.5 | E45: 35 | F45: 88 | G45: 59 | H45: 61 | I45: 208 | K45: 69.33333333 | L45: 0.02269255946
A46: reboque pequeno e tri | B46: 20000 | C46: 5 | D46: 2 | E46: 10 | F46: 14 | G46: 29 | H46: 12 | I46: 55 | K46: 18.33333333 | L46: 0.006000436395
A47: reboque de barco | B47: 15000 | C47: 5 | D47: 2 | E47: 10 | F47: 0 | G47: 1 | H47: 3 | I47: 4 | K47: 1.333333333 | L47: 0.0004363953742
A48: ônibus trab. Rural | B48: 40000 | C48: 14 | D48: 2.6 | E48: 36.4 | F48: 0 | G48: 0 | H48: 0 | I48: 0 | K48: 0 | L48: 0
A49: ônibus de carreira | B49: 40000 | C49: 14 | D49: 2.6 | E49: 36.4 | F49: 0 | G49: 0 | H49: 0 | I49: 0 | K49: 0 | L49: 0
A50: moto | B50: 200 | C50: 0.5 | D50: 2 | E50: 1 | F50: 301 | G50: 310 | H50: 317 | I50: 928 | K50: 309.3333333 | L50: 0.1012437268
A51: extra | C51: 5.5 | D51: 2.5 | E51: 13.75 | F51: 2 | G51: 5 | H51: 7 | I51: 14 | K51: 4.666666667 | L51: 0.00152738381
A52: outros | C52: 5.5 | D52: 2.5 | E52: 13.75 | F52: 8 | G52: 1 | H52: 16 | I52: 25 | K52: 8.333333333 | L52: 0.002727471089
E53: 0 | F53: =SUM(F38:F52) -> 1160 | G53: =SUM(G38:G52) -> 1088 | H53: =SUM(H38:H52) -> 1134 | I53: =SUM(I38:I52) -> 3382 | K53: =SUM(K38:K52) -> 1127.333333 | L53: 0.3689722889
A55: Resumo porto indaiá de baixo
A56: Tipo | B56: qtde média | C56: participação | D56: área ocup por veículo | E56: área disponível balsas x veículo | F56: capacidade por tipo de veículo | H56: tarifa | I56: qtde veículos | K56: faturamento previsto
A57: moto | B57: =K50 -> 309.3333333 | C57: =B57/$B$64 -> 0.2743938498 | D57: =D25 -> 1.4 | E57: =$E$64*C57 -> 52.88118273 | F57: =E57/D57 -> 37.77227338 | H57: ='tarifa serviços'!C38 -> 3.95391252 | I57: =C57*$I$66 -> 4436.948551 | K57: =H57*I57 -> 17543.30643
A58: pequeno | B58: =K38+K46+K47 -> 614.6666667 | C58: =B58/$B$64 -> 0.5452395033 | D58: =D26 -> 10 | E58: =$E$64*C58 -> 105.0785571 | F58: =E58/D58 -> 10.50785571 | H58: ='tarifa serviços'!C39 -> 11.86173756 | I58: =C58*$I$66 -> 8816.522768 | K58: =H58*I58 -> 104579.2793
A59: médio | B59: =K39+K51+K52 -> 13 | C59: 0.01153163808 | D59: 13.2 | E59: 2.222377292 | F59: 0.168361916 | H59: ='tarifa serviços'!C40 -> 17.79260634 | I59: 186.4665878 | K59: 3317.726593
A60: 3/4 van e microônbus | B60: =K40 -> 32 | C60: 0.02838557067 | D60: 16.25 | E60: 5.470467179 | F60: 0.3366441341 | H60: ='tarifa serviços'!C41 -> 23.72347512 | I60: 458.9946777 | K60: 10888.94882
A61: caminhão/ônibus | B61: =K41+K42+K45+K48+K49 -> 141.6666667 | C61: 0.1256652868 | D61: 36.4 | E61: 24.21821407 | F61: 0.6653355515 | H61: ='tarifa serviços'!C42 -> 35.58521268 | I61: 2032.007688 | K61: 72309.42574
A62: carreta | B62: =K43 -> 6.666666667 | C62: 0.005913660556 | D62: 51.8 | E62: 1.139680662 | F62: 0.02200155719 | H62: ='tarifa serviços'!C43 -> 47.44695024 | I62: 95.62389119 | K62: 4537.062007
A63: bitrem | B63: =K44 -> 10 | C63: 0.008870490834 | D63: 84 | E63: 1.709520993 | F63: 0.0203514404 | H63: ='tarifa serviços'!C44 -> 59.3086878 | I63: 143.4358368 | K63: 8506.991263
A64: Total | B64: =SUM(B57:B63) -> 1127.333333 | C64: 1 | E64: =capacidade!E28 -> 192.72 | F64: =SUM(F57:F63) -> 49.49282369 | I64: faturamento previsto | K64: =SUM(K57:K63) -> 221682.7401 | L64: =K64/Produção!N11 -> 1.372610299
H66: veículos último ano | I66: =Produção!N10 -> 16170
A67: Porto Indaiá de cima
A69: veículo | B69: Peso | C69: cumprimento | D69: largura | E69: área ocup | F69: extrema | G69: coelho | I69: total | K69: extrema | L69: coelho | N69: total | P69: extrema | Q69: coelho | S69: total
A70: passeio | B70: 1500 | C70: 5 | D70: 2 | E70: =C70*D70 -> 10 | F70: 487 | G70: 174 | I70: =SUM(F70:H70) -> 661 | K70: 562 | L70: 43 | N70: =SUM(K70:M70) -> 605 | P70: 497 | Q70: 166 | S70: =SUM(P70:R70) -> 663 | U70: =(I70+N70+S70)/3 -> 643 | V70: =U70/$U$21 -> 0.2104516692
A71: caminhonete e van | B71: 2500 | C71: 6 | D71: 2.5 | E71: =C71*D71 -> 15 | I71: =SUM(F71:H71) -> 0 | N71: 0 | S71: 0 | U71: =(I71+N71+S71)/3 -> 0 | V71: =U71/$U$21 -> 0
A72: caminhão 3/4 microônibus | B72: 10000 | C72: 6.5 | D72: 2.5 | E72: =C72*D72 -> 16.25 | F72: 19 | G72: 12 | I72: 31 | K72: 24 | L72: 6 | N72: 30 | P72: 21 | Q72: 10 | S72: 31 | U72: 30.66666667 | V72: 0.01003709361
A73: caminhão toco | B73: 10000 | C73: 14 | D73: 2.5 | E73: 35 | F73: 11 | G73: 12 | I73: 23 | K73: 7 | L73: 0 | N73: 7 | P73: 10 | Q73: 14 | S73: 24 | U73: 18 | V73: 0.005891337552
A74: caminhão truck | B74: 20000 | C74: 14 | D74: 2.5 | E74: 35 | F74: 2 | G74: 3 | I74: 5 | K74: 13 | L74: 4 | N74: 17 | P74: 12 | Q74: 9 | S74: 21 | U74: 14.33333333 | V74: 0.004691250273
A75: carreta | B75: 30000 | C75: 18.5 | D75: 2.8 | E75: 51.8 | F75: 24 | G75: 16 | I75: 40 | K75: 0 | L75: 1 | N75: 1 | Q75: 9 | S75: 9 | U75: 16.66666667 | V75: 0.005454942178
A76: bitrem | B76: 50000 | C76: 30 | D76: 2.8 | E76: 84 | F76: 0 | G76: 0 | I76: 0 | K76: 0 | L76: 0 | N76: 0 | S76: 0 | U76: 0 | V76: 0
A77: caminhão leiteiro | B77: 25000 | C77: 14 | D77: 2.5 | E77: 35 | F77: 17 | G77: 9 | I77: 26 | K77: 28 | L77: 0 | N77: 28 | P77: 20 | Q77: 11 | S77: 31 | U77: 28.33333333 | V77: 0.009273401702
A78: reboque pequeno e tri | B78: 20000 | C78: 5 | D78: 2 | E78: 10 | F78: 1 | G78: 1 | I78: 2 | L78: 1 | N78: 1 | S78: 0 | U78: 1 | V78: 0.0003272965307
A79: reboque de barco | B79: 15000 | C79: 5 | D79: 2 | E79: 10 | F79: 0 | I79: 0 | N79: 0 | S79: 0 | U79: 0 | V79: 0
A80: ônibus trab. Rural | B80: 40000 | C80: 14 | D80: 2.6 | E80: 36.4 | F80: 0 | I80: 0 | N80: 0 | S80: 0 | U80: 0 | V80: 0
A81: ônibus de carreira | B81: 40000 | C81: 14 | D81: 2.6 | E81: 36.4 | F81: 0 | I81: 0 | N81: 0 | P81: 1 | S81: 1 | U81: 0.3333333333 | V81: 0.0001090988436
A82: moto | B82: 200 | C82: 0.5 | D82: 2 | E82: 1 | F82: 91 | G82: 46 | I82: 137 | K82: 110 | L82: 7 | N82: 117 | P82: 114 | Q82: 25 | S82: 139 | U82: 131 | V82: 0.04287584552
A83: extra | C83: 5.5 | D83: 2.5 | E83: 13.75 | F83: 1 | G83: 1 | I83: 2 | K83: 0 | N83: 0 | S83: 0 | U83: 0.6666666667 | V83: 0.0002181976871
A84: outros | C84: 5.5 | D84: 2.5 | E84: 13.75 | F84: 50 | G84: 23 | I84: 73 | K84: 26 | L84: 4 | N84: 30 | P84: 21 | Q84: 15 | S84: 36 | U84: 46.33333333 | V84: 0.01516473925
E85: 0 | F85: =SUM(F70:F84) -> 703 | G85: =SUM(G70:G84) -> 297 | H85: =SUM(H70:H84) -> 0 | I85: =SUM(I70:I84) -> 1000 | K85: =SUM(K70:K84) -> 770 | L85: =SUM(L70:L84) -> 66 | M85: =SUM(M70:M84) -> 0 | N85: =SUM(N70:N84) -> 836 | P85: =SUM(P70:P84) -> 696 | Q85: =SUM(Q70:Q84) -> 259 | R85: =SUM(R70:R84) -> 0 | S85: =SUM(S70:S84) -> 955 | U85: =SUM(U70:U84) -> 930.3333333 | V85: 0.3044948724
A87: Porto Indaiá de cima
A88: Tipo | B88: qtde média | C88: participação | D88: área ocup por veículo | E88: área disponível balsas x veículo | F88: capacidade por tipo de veículo | H88: tarifa | I88: qtde veículos | K88: faturamento previsto
A89: moto | B89: =U82 -> 131 | C89: =B89/$B$96 -> 0.1408097456 | D89: =D57 -> 1.4 | E89: =$E$96*C89 -> 55.35512719 | F89: =E89/D89 -> 39.53937657 | H89: ='tarifa serviços'!D38 -> 7.213041975 | I89: =C89*$I$98 -> 1673.664636 | K89: =H89*I89 -> 12072.21327
A90: pequeno | B90: =U70+U78+U79 -> 644 | C90: =B90/$B$96 -> 0.692225009 | D90: =D58 -> 10 | E90: =$E$96*C90 -> 272.1274955 | F90: =E90/D90 -> 27.21274955 | H90: ='tarifa serviços'!D39 -> 21.63912592 | I90: =C90*$I$98 -> 8227.786456 | K90: =H90*I90 -> 178042.1072
A91: médio | B91: =U71+U83+U84 -> 47 | C91: 0.05051952705 | D91: 13.2 | E91: 19.86023647 | F91: 1.504563369 | H91: ='tarifa serviços'!D40 -> 32.45868889 | I91: 600.4750985 | K91: 19490.63441
A92: 3/4 van e microônbus | B92: =U72 -> 30.66666667 | C92: 0.03296309566 | D92: 16.25 | E92: 12.95845217 | F92: 0.7974432103 | H92: ='tarifa serviços'!D41 -> 43.27825185 | I92: 391.7993551 | K92: 16956.39116
A93: caminhão/ônibus | B93: =U73+U74+U77+U80+U81 -> 61 | C93: 0.06556789681 | D93: 36.4 | E93: 25.77605159 | F93: 0.7081332856 | H93: ='tarifa serviços'!D42 -> 64.91737777 | I93: 779.3400215 | K93: 50592.71059
A94: carreta | B94: =U75 -> 16.66666667 | C94: 0.0179147259 | D94: 51.8 | E94: 7.042637048 | F94: 0.1359582442 | H94: ='tarifa serviços'!D43 -> 86.5565037 | I94: 212.9344321 | K94: 18430.85996
A95: bitrem | B95: =U76 -> 0 | C95: 0 | D95: 84 | E95: 0 | F95: 0 | H95: ='tarifa serviços'!D44 -> 108.1956296 | I95: 0 | K95: 0
A96: Total | B96: =SUM(B89:B95) -> 930.3333333 | C96: 1 | E96: =capacidade!E29 -> 393.12 | F96: =SUM(F89:F95) -> 69.89822423 | I96: faturamento previsto | K96: =SUM(K89:K95) -> 295584.9166 | L96: =K96/Produção!N15 -> 2.232522907
H98: veículos último ano | I98: =Produção!N14 -> 11886
A99: =capacidade!A30 -> EXTREMA
A100: veículo | B100: Peso | C100: cumprimento | D100: largura | E100: área ocup | I100: total
A101: passeio | B101: 1500 | C101: 5 | D101: 2 | E101: =C101*D101 -> 10 | F101: 163 | G101: 224 | H101: 230 | I101: =SUM(F101:H101) -> 617 | K101: =(I101)/3 -> 205.6666667 | L101: =K101/$U$21 -> 0.06731398647
A102: caminhonete e van | B102: 2500 | C102: 6 | D102: 2.5 | E102: =C102*D102 -> 15 | F102: 110 | G102: 119 | H102: 90 | I102: =SUM(F102:H102) -> 319 | K102: =(I102)/3 -> 106.3333333 | L102: =K102/$U$21 -> 0.03480253109
A103: caminhão 3/4 microônibus | B103: 10000 | C103: 6.5 | D103: 2.5 | E103: =C103*D103 -> 16.25 | F103: 13 | G103: 48 | H103: 31 | I103: 92 | K103: 30.66666667 | L103: 0.01003709361
A104: caminhão toco | B104: 10000 | C104: 14 | D104: 2.5 | E104: 35 | F104: 102 | G104: 90 | H104: 95 | I104: 287 | K104: 95.66666667 | L104: 0.0313113681
A105: caminhão truck | B105: 20000 | C105: 14 | D105: 2.5 | E105: 35 | F105: 14 | G105: 52 | H105: 23 | I105: 89 | K105: 29.66666667 | L105: 0.009709797076
A106: carreta | B106: 30000 | C106: 18.5 | D106: 2.8 | E106: 51.8 | F106: 8 | G106: 6 | H106: 7 | I106: 21 | K106: 7 | L106: 0.002291075715
A107: bitrem | B107: 50000 | C107: 30 | D107: 2.8 | E107: 84 | F107: 0 | G107: 0 | H107: 0 | I107: 0 | K107: 0 | L107: 0
A108: caminhão leiteiro | B108: 25000 | C108: 14 | D108: 2.5 | E108: 35 | F108: 0 | G108: 0 | H108: 0 | I108: 0 | K108: 0 | L108: 0
A109: reboque pequeno e tri | B109: 20000 | C109: 5 | D109: 2 | E109: 10 | F109: 92 | G109: 92 | H109: 89 | I109: 273 | K109: 91 | L109: 0.02978398429
A110: reboque de barco | B110: 15000 | C110: 5 | D110: 2 | E110: 10 | F110: 0 | G110: 2 | H110: 0 | I110: 2 | K110: 0.6666666667 | L110: 0.0002181976871
A111: ônibus trab. Rural | B111: 40000 | C111: 14 | D111: 2.6 | E111: 36.4 | F111: 0 | G111: 0 | H111: 0 | I111: 0 | K111: 0 | L111: 0
A112: ônibus de carreira | B112: 40000 | C112: 14 | D112: 2.6 | E112: 36.4 | F112: 0 | G112: 0 | H112: 0 | I112: 0 | K112: 0 | L112: 0
A113: moto | B113: 200 | C113: 0.5 | D113: 2 | E113: 1 | F113: 14 | G113: 11 | H113: 13 | I113: 38 | K113: 12.66666667 | L113: 0.004145756055
A114: extra | C114: 5.5 | D114: 2.5 | E114: 13.75 | F114: 0 | G114: 0 | H114: 0 | I114: 0 | K114: 0 | L114: 0
A115: outros | C115: 5.5 | D115: 2.5 | E115: 13.75 | F115: 45 | G115: 0 | H115: 1 | I115: 46 | K115: 15.33333333 | L115: 0.005018546803
E116: 0 | F116: =SUM(F101:F115) -> 561 | G116: =SUM(G101:G115) -> 644 | H116: =SUM(H101:H115) -> 579 | I116: =SUM(I101:I115) -> 1784 | K116: =SUM(K101:K115) -> 594.6666667 | L116: 0.1946323369
A118: =A99 -> EXTREMA
A119: Tipo | B119: qtde média | C119: participação | D119: área ocup por veículo | E119: área disponível balsas x veículo | F119: capacidade por tipo de veículo | H119: tarifa | I119: qtde veículos | K119: faturamento previsto
A120: moto | B120: =K113 -> 12.66666667 | C120: =B120/$B$127 -> 0.02130044843 | D120: =D89 -> 1.4 | E120: =$E$127*C120 -> 2.331802691 | F120: =E120/D120 -> 1.66557335 | H120: ='tarifa serviços'!E38 -> 12.9575071 | I120: =C120*$I$129 -> 154.1087444 | K120: =H120*I120 -> 1996.86515
A121: pequeno | B121: =K101+K109+K110 -> 297.3333333 | C121: =B121/$B$127 -> 0.5 | D121: =D90 -> 10 | E121: =$E$127*C121 -> 54.736 | F121: =E121/D121 -> 5.4736 | H121: ='tarifa serviços'!E39 -> 38.87252131 | I121: =C121*$I$129 -> 3617.5 | K121: =H121*I121 -> 140621.3458
A122: médio | B122: =K102+K114+K115 -> 121.6666667 | C122: 0.2045964126 | D122: 13.2 | E122: 22.39757848 | F122: 1.696786248 | H122: ='tarifa serviços'!E40 -> 58.30878196 | I122: 1480.255045 | K122: 86311.86866
A123: 3/4 van e microônbus | B123: =K103 -> 30.66666667 | C123: 0.05156950673 | D123: 16.25 | E123: 5.64541704 | F123: 0.3474102794 | H123: ='tarifa serviços'!E41 -> 77.74504262 | I123: 373.1053812 | K123: 29007.09376
A124: caminhão/ônibus | B124: =K104+K105+K108+K111+K112 -> 125.3333333 | C124: 0.2107623318 | D124: 36.4 | E124: 23.07257399 | F124: 0.6338619228 | H124: ='tarifa serviços'!E42 -> 116.6175639 | I124: 1524.865471 | K124: 177826.0965
A125: carreta | B125: =K106 -> 7 | C125: 0.01177130045 | D125: 51.8 | E125: 1.288627803 | F125: 0.02487698461 | H125: ='tarifa serviços'!E43 -> 155.4900852 | I125: 85.16535874 | K125: 13242.36889
A126: bitrem | B126: =K107 -> 0 | C126: 0 | D126: 84 | E126: 0 | F126: 0 | H126: ='tarifa serviços'!E44 -> 194.3626065 | I126: 0 | K126: 0
A127: Total | B127: =SUM(B120:B126) -> 594.6666667 | C127: 1 | E127: =capacidade!E30 -> 109.472 | F127: =SUM(F120:F126) -> 9.842108785 | I127: faturamento previsto | K127: =SUM(K120:K126) -> 449005.6388 | L127: =K127/Produção!N20 -> 6.846946572
H129: veículos último ano | I129: =Produção!N19 -> 7235
A130: =capacidade!A31 -> SÃO VINCENTE
A131: veículo | B131: Peso | C131: cumprimento | D131: largura | E131: área ocup | I131: total
A132: passeio | B132: 1500 | C132: 5 | D132: 2 | E132: =C132*D132 -> 10 | F132: 526 | G132: 377 | H132: 545 | I132: =SUM(F132:H132) -> 1448 | K132: =(I132)/3 -> 482.6666667 | L132: =K132/$U$21 -> 0.1579751255
A133: caminhonete e van | B133: 2500 | C133: 6 | D133: 2.5 | E133: =C133*D133 -> 15 | F133: 122 | G133: 81 | H133: 91 | I133: =SUM(F133:H133) -> 294 | K133: =(I133)/3 -> 98 | L133: =K133/$U$21 -> 0.03207506
A134: caminhão 3/4 microônibus | B134: 10000 | C134: 6.5 | D134: 2.5 | E134: =C134*D134 -> 16.25 | F134: 26 | G134: 31 | H134: 27 | I134: 84 | K134: 28 | L134: 0.009164302858
A135: caminhão toco | B135: 10000 | C135: 14 | D135: 2.5 | E135: 35 | F135: 20 | G135: 20 | H135: 28 | I135: 68 | K135: 22.66666667 | L135: 0.007418721362
A136: caminhão truck | B136: 20000 | C136: 14 | D136: 2.5 | E136: 35 | F136: 10 | G136: 24 | H136: 16 | I136: 50 | K136: 16.66666667 | L136: 0.005454942178
A137: carreta | B137: 30000 | C137: 18.5 | D137: 2.8 | E137: 51.8 | I137: 0 | K137: 0 | L137: 0
A138: bitrem | B138: 50000 | C138: 30 | D138: 2.8 | E138: 84 | I138: 0 | K138: 0 | L138: 0
A139: caminhão leiteiro | B139: 25000 | C139: 14 | D139: 2.5 | E139: 35 | H139: 14 | I139: 14 | K139: 4.666666667 | L139: 0.00152738381
A140: reboque pequeno e tri | B140: 20000 | C140: 5 | D140: 2 | E140: 10 | F140: 59 | G140: 67 | H140: 49 | I140: 175 | K140: 58.33333333 | L140: 0.01909229762
A141: reboque de barco | B141: 15000 | C141: 5 | D141: 2 | E141: 10 | F141: 4 | G141: 4 | H141: 5 | I141: 13 | K141: 4.333333333 | L141: 0.001418284966
A142: ônibus trab. Rural | B142: 40000 | C142: 14 | D142: 2.6 | E142: 36.4 | F142: 3 | G142: 1 | I142: 4 | K142: 1.333333333 | L142: 0.0004363953742
A143: ônibus de carreira | B143: 40000 | C143: 14 | D143: 2.6 | E143: 36.4 | I143: 0 | K143: 0 | L143: 0
A144: moto | B144: 200 | C144: 0.5 | D144: 2 | E144: 1 | F144: 48 | G144: 39 | H144: 71 | I144: 158 | K144: 52.66666667 | L144: 0.01723761728
A145: extra | C145: 5.5 | D145: 2.5 | E145: 13.75 | F145: 1 | G145: 0 | H145: 1 | I145: 2 | K145: 0.6666666667 | L145: 0.0002181976871
A146: outros | C146: 5.5 | D146: 2.5 | E146: 13.75 | F146: 31 | G146: 4 | H146: 3 | I146: 38 | K146: 12.66666667 | L146: 0.004145756055
E147: 0 | F147: =SUM(F132:F146) -> 850 | G147: =SUM(G132:G146) -> 648 | H147: =SUM(H132:H146) -> 850 | I147: =SUM(I132:I146) -> 2348 | K147: =SUM(K132:K146) -> 782.6666667 | L147: 0.2561640847
A149: =A130 -> SÃO VINCENTE
A150: Tipo | B150: qtde média | C150: participação | D150: área ocup por veículo | E150: área disponível balsas x veículo | F150: capacidade por tipo de veículo | H150: tarifa | I150: qtde veículos | K150: faturamento previsto
A151: moto | B151: =K144 -> 52.66666667 | C151: =B151/$B$158 -> 0.06729131175 | D151: =D120 -> 1.4 | E151: =$E$158*C151 -> 7.073662692 | F151: =E151/D151 -> 5.052616208 | H151: ='tarifa serviços'!F38 -> 10.17535881 | I151: =C151*$I$160 -> 621.7044293 | K151: =H151*I151 -> 6326.06564
A152: pequeno | B152: =K132+K140+K141 -> 545.3333333 | C152: =B152/$B$158 -> 0.6967632027 | D152: =D121 -> 10 | E152: =$E$158*C152 -> 73.24374787 | F152: =E152/D152 -> 7.324374787 | H152: ='tarifa serviços'!F39 -> 30.52607642 | I152: 6437.39523 | K152: =H152*I152 -> 196508.4187
A153: médio | B153: =K133+K145+K146 -> 111.3333333 | C153: 0.1422487223 | D153: 13.2 | E153: 14.95318569 | F153: 1.132817098 | H153: ='tarifa serviços'!F40 -> 45.78911463 | I153: 1314.235945 | K153: 60177.70036
A154: 3/4 van e microônbus | B154: =K134 -> 28 | C154: 0.03577512777 | D154: 16.25 | E154: 3.760681431 | F154: 0.2314265496 | H154: ='tarifa serviços'!F41 -> 61.05215284 | I154: 330.5264055 | K154: 20179.34862
A155: caminhão/ônibus | B155: =K135+K136+K139+K142+K143 -> 45.33333333 | C155: 0.05792163543 | D155: 36.4 | E155: 6.088722317 | F155: 0.1672725911 | H155: ='tarifa serviços'!F42 -> 91.57822926 | I155: 535.1379898 | K155: 49006.98951
A156: carreta | B156: =K137 -> 0 | C156: 0 | D156: 51.8 | E156: 0 | F156: 0 | H156: ='tarifa serviços'!F43 -> 122.1043057 | I156: 0 | K156: 0
A157: bitrem | B157: =K138 -> 0 | C157: 0 | D157: 84 | E157: 0 | F157: 0 | H157: ='tarifa serviços'!F44 -> 152.6303821 | I157: 0 | K157: 0
A158: Total | B158: =SUM(B151:B157) -> 782.6666667 | C158: 1 | E158: =capacidade!E31 -> 105.12 | F158: =SUM(F151:F157) -> 13.90850723 | I158: faturamento previsto | K158: =SUM(K151:K157) -> 332198.5229 | L158: =K158/Produção!N24 -> 3.464497326
H160: veículos último ano | I160: =Produção!N23 -> 9239
A161: =capacidade!A32 -> MELANCIAS
A162: veículo | B162: Peso | C162: cumprimento | D162: largura | E162: área ocup | I162: total
A163: passeio | B163: 1500 | C163: 5 | D163: 2 | E163: =C163*D163 -> 10 | F163: 260 | G163: 130 | H163: 197 | I163: =SUM(F163:H163) -> 587 | K163: =(I163)/3 -> 195.6666667 | L163: =K163/$U$21 -> 0.06404102117
A164: caminhonete e van | B164: 2500 | C164: 6 | D164: 2.5 | E164: =C164*D164 -> 15 | F164: 47 | G164: 53 | H164: 34 | I164: =SUM(F164:H164) -> 134 | K164: =(I164)/3 -> 44.66666667 | L164: =K164/$U$21 -> 0.01461924504
A165: caminhão 3/4 microônibus | B165: 10000 | C165: 6.5 | D165: 2.5 | E165: =C165*D165 -> 16.25 | F165: 28 | G165: 18 | H165: 27 | I165: 73 | K165: 24.33333333 | L165: 0.007964215579
A166: caminhão toco | B166: 10000 | C166: 14 | D166: 2.5 | E166: 35 | F166: 10 | G166: 9 | H166: 10 | I166: 29 | K166: 9.666666667 | L166: 0.003163866463
A167: caminhão truck | B167: 20000 | C167: 14 | D167: 2.5 | E167: 35 | F167: 31 | G167: 32 | H167: 15 | I167: 78 | K167: 26 | L167: 0.008509709797
A168: carreta | B168: 30000 | C168: 18.5 | D168: 2.8 | E168: 51.8 | I168: 0 | K168: 0 | L168: 0
A169: bitrem | B169: 50000 | C169: 30 | D169: 2.8 | E169: 84 | F169: 1 | I169: 1 | K169: 0.3333333333 | L169: 0.0001090988436
A170: caminhão leiteiro | B170: 25000 | C170: 14 | D170: 2.5 | E170: 35 | H170: 15 | I170: 15 | K170: 5 | L170: 0.001636482653
A171: reboque pequeno e tri | B171: 20000 | C171: 5 | D171: 2 | E171: 10 | F171: 1 | I171: 1 | K171: 0.3333333333 | L171: 0.0001090988436
A172: reboque de barco | B172: 15000 | C172: 5 | D172: 2 | E172: 10 | F172: 6 | G172: 6 | H172: 2 | I172: 14 | K172: 4.666666667 | L172: 0.00152738381
A173: ônibus trab. Rural | B173: 40000 | C173: 14 | D173: 2.6 | E173: 36.4 | F173: 2 | G173: 1 | I173: 3 | K173: 1 | L173: 0.0003272965307
A174: ônibus de carreira | B174: 40000 | C174: 14 | D174: 2.6 | E174: 36.4 | I174: 0 | K174: 0 | L174: 0
A175: moto | B175: 200 | C175: 0.5 | D175: 2 | E175: 1 | F175: 59 | G175: 83 | H175: 46 | I175: 188 | K175: 62.66666667 | L175: 0.02051058259
A176: extra | C176: 5.5 | D176: 2.5 | E176: 13.75 | G176: 1 | H176: 1 | I176: 2 | K176: 0.6666666667 | L176: 0.0002181976871
A177: outros | C177: 5.5 | D177: 2.5 | E177: 13.75 | F177: 3 | I177: 3 | K177: 1 | L177: 0.0003272965307
E178: 0 | F178: =SUM(F163:F177) -> 448 | G178: =SUM(G163:G177) -> 333 | H178: =SUM(H163:H177) -> 347 | I178: =SUM(I163:I177) -> 1128 | K178: =SUM(K163:K177) -> 376 | L178: 0.1230634955
A180: =A161 -> MELANCIAS
A181: Tipo | B181: qtde média | C181: participação | D181: área ocup por veículo | E181: área disponível balsas x veículo | F181: capacidade por tipo de veículo | H181: tarifa | I181: qtde veículos | K181: faturamento previsto
A182: moto | B182: =K175 -> 62.66666667 | C182: =B182/$B$189 -> 0.1666666667 | D182: =D151 -> 1.4 | E182: =$E$189*C182 -> 25.66666667 | F182: =E182/D182 -> 18.33333333 | H182: ='tarifa serviços'!G38 -> 11.01164538 | I182: =C182*$I$191 -> 764.5 | K182: =H182*I182 -> 8418.402895
A183: pequeno | B183: =K163+K171+K172 -> 200.6666667 | C183: =B183/$B$189 -> 0.5336879433 | D183: =D152 -> 10 | E183: =$E$189*C183 -> 82.18794326 | F183: =E183/D183 -> 8.218794326 | H183: ='tarifa serviços'!G39 -> 33.03493615 | I183: =C183*$I$191 -> 2448.026596 | K183: =H183*I183 -> 80870.40228
A184: médio | B184: =K164+K176+K177 -> 46.33333333 | C184: 0.1232269504 | D184: 13.2 | E184: 18.97695035 | F184: 1.437647754 | H184: ='tarifa serviços'!G40 -> 49.55240422 | I184: 565.2420213 | K184: 28009.10112
A185: 3/4 van e microônbus | B185: =K165 -> 24.33333333 | C185: 0.06471631206 | D185: 16.25 | E185: 9.966312057 | F185: 0.6133115112 | H185: ='tarifa serviços'!G41 -> 66.0698723 | I185: 296.8537234 | K185: 19613.0876
A186: caminhão/ônibus | B186: =K166+K167+K170+K173+K174 -> 41.66666667 | C186: 0.1108156028 | D186: 36.4 | E186: 17.06560284 | F186: 0.4688352428 | H186: ='tarifa serviços'!G42 -> 99.10480844 | I186: 508.3111702 | K186: 50376.08115
A187: carreta | B187: =K168 -> 0 | C187: 0 | D187: 51.8 | E187: 0 | F187: 0 | H187: ='tarifa serviços'!G43 -> 132.1397446 | I187: 0 | K187: 0
A188: bitrem | B188: =K169 -> 0.3333333333 | C188: 0.0008865248227 | D188: 84 | E188: 0.1365248227 | F188: 0.001625295508 | H188: ='tarifa serviços'!G44 -> 165.1746807 | I188: 4.066489362 | K188: 671.6810821
A189: Total | B189: =SUM(B182:B188) -> 376 | C189: 1 | E189: =capacidade!E32 -> 154 | F189: =SUM(F182:F188) -> 29.07354746 | I189: faturamento previsto | K189: =SUM(K182:K188) -> 187958.7561 | L189: =K189/Produção!N28 -> 2.492755578
H191: veículos último ano | I191: =Produção!N27 -> 4587
K193: =K189+K158+K127+K96+K64+K32 -> 2461487.8
A196: GERAL
A197: Tipo | B197: Quantidade | C197: Participação
B198: Média
A199: moto | B199: =B25+B57+B89+B120+B151+B182 -> 736.6666667 | C199: =B199/$B$206 -> 0.1072867615
A200: pequeno | B200: =B26+B58+B90+B121+B152+B183 -> 4293 | C200: =B200/$B$206 -> 0.6252245255
A201: médio | B201: 727.3333333 | C201: 0.1059274722
A202: 3/4 van e microônbus | B202: 311 | C202: 0.04529346085
A203: caminhão/ônibus | B203: 671.6666667 | C203: 0.09782028254
A204: carreta | B204: 113 | C204: 0.01645710957
A205: bitrem | B205: 13.66666667 | C205: 0.001990387883
A206: Total | B206: =SUM(B199:B205) -> 6866.333333 | C206: 1
